{"text_format":"1","workbook":"xlsx","n_sheets":3,"sheets":["data","data2","Feuil3"],"not_rendered":{"charts":0,"images":0,"macros":1,"external_links":1,"defined_names":0,"comments":0,"pivot_tables":0},"unopened":[],"bounds":{"document_bytes":16777216,"sheet_cells":100000,"rows_first":2000,"rows_last":500,"rows_between":2000,"halvings":0,"cell_chars":16384,"cell_head_chars":4096},"cells_cut":0,"cells_raw":0,"read":"whole","date_system":"1900"}

{"sheet":"data","index":0,"n_rows":852,"n_cols":25,"rows_kept":852,"cut":false,"hidden":false,"merged":[]}
[]
["رقم ","رقم التعريف","اللقب","الاسم","الجنس","تاريخ الازدياد","مكان الازدياد","القسم","الولي","الاسم و اللقب بالفرنسية","السنة","الشعبة","القسم","ر ت ","تاريخ الخروج","اسم الولي","العنوان","تاريخ الدخول","دخول","خروج","شهادة مدرسية ","استدعاء","إنذار ","توبيخ "]
[1,1100213270260000,"أحمد على1","سهام1","أنثى","2002-11-19","مغنية","3ت ر/هم","الشيخ محمد ",null,"ثالثة","تقني رياضي",1,1,"إلى يومنا هذا ",null,null,null,null,null,null,null,null,null,{"$f":"C3 & \" \" &  D3","v":"أحمد على1 سهام1"}]
[2,1000213270226500,"أحمد على2","أحمد1","ذكر","2002-10-09","مغنية","3ت ر/هم","سامري احمد ",null,"ثالثة","تقني رياضي",1,2,"إلى يومنا هذا ",null,null,null,null,null,null,null,null,null,{"$f":"C4 & \" \" &  D4","v":"أحمد على2 أحمد1"}]
[3,1100113270050900,"أحمد على3","نور الهدى1","أنثى","2001-03-08","مغنية","3ت ر/هم","شارف حبيب ",null,"ثالثة","تقني رياضي",1,3,"إلى يومنا هذا ",null,null,null,null,null,null,null,null,null,"أحمد على3 نور الهدى1"]
[4,1100213270157100,"أحمد على4","أسماء1","أنثى","2002-07-25","مغنية","3ت ر/هم"," عثماني محمد ",null,"ثالثة","تقني رياضي",1,4,"إلى يومنا هذا ",null,null,null,null,null,null,null,null,null,"أحمد على4 أسماء1"]
[5,1000013270283300,"أحمد على5","إسماعيل1","ذكر","2000-12-29","مغنية","3ت ر/هم","عريشي مكي ",null,"ثالثة","تقني رياضي",1,5,"إلى يومنا هذا ",null,null,null,null,null,null,null,null,null,"أحمد على5 إسماعيل1"]
[6,1100213270261600,"أحمد على6","وسام1","أنثى","2002-11-20","مغنية","3ت ر/هم","كريم تاج ",null,"ثالثة","تقني رياضي",1,6,"إلى يومنا هذا ",null,null,null,null,null,null,null,null,null,"أحمد على6 وسام1"]
[7,1000213070043900,"أحمد على7","عبد الصمد1","ذكر","2002-06-13","الغزوات","3ت ر/هم","سبوح مراد ",null,"ثالثة","تقني رياضي",1,7,"إلى يومنا هذا ",null,null,null,null,null,null,null,null,null,"أحمد على7 عبد الصمد1"]
[8,1000213270087000,"أحمد على8","انيس شرف الدين1","ذكر","2002-05-08","مغنية","3ت ر/هم","طالب سعيد ",null,"ثالثة","تقني رياضي",1,8,"إلى يومنا هذا ",null,null,null,null,null,null,null,null,null,"أحمد على8 انيس شرف الدين1"]
[9,1000227010310700,"أحمد على9","سيدي محمد ريان1","ذكر","2002-08-02","مستغانم","3ت ر/هم","نيار عبد الباقي ",null,"ثالثة","تقني رياضي",1,9,"إلى يومنا هذا ",null,null,null,null,null,null,null,null,null,"أحمد على9 سيدي محمد ريان1"]
[10,1000213270116600,"أحمد على10","بومدين1","ذكر","2002-06-13","مغنية","3ت ر/هك","العباس بلخير ",null,"ثالثة","تقني رياضي",1,10,"إلى يومنا هذا ",null,null,null,null,null,null,null,null,null,"أحمد على10 بومدين1"]
[11,1000213271479100,"أحمد على11","محمد1","ذكر","2002-03-09","مغنية","3ت ر/هك","بلعجل منصور ",null,"ثالثة","تقني رياضي",1,11,"إلى يومنا هذا ",null,null,null,null,null,null,null,null,null,"أحمد على11 محمد1"]
[12,1100213270212700,"أحمد على12","فريال1","أنثى","2002-09-25","مغنية","3ت ر/هك","بن عبد الله اسماعيل ",null,"ثالثة","تقني رياضي",1,12,"إلى يومنا هذا ",null,null,null,null,null,null,null,null,null,"أحمد على12 فريال1"]
[13,1000313270170900,"أحمد على13","مصطفى1","ذكر","2003-07-30","مغنية","3ت ر/هك","بن عبد الله كريم ",null,"ثالثة","تقني رياضي",1,13,"إلى يومنا هذا ",null,null,null,null,null,null,null,null,null,"أحمد على13 مصطفى1"]
[14,1000213270031500,"أحمد على14","حسام1","ذكر","2002-02-24","مغنية","3ت ر/هك","بوعزة عبد القادر ",null,"ثالثة","تقني رياضي",1,14,"إلى يومنا هذا ",null,null,null,null,null,null,null,null,null,"أحمد على14 حسام1"]
[15,1100313270013500,"أحمد على15","وسام1","أنثى","2003-01-16","مغنية","3ت ر/هك","راجعي حسين ",null,"ثالثة","تقني رياضي",1,15,"إلى يومنا هذا ",null,null,null,null,null,null,null,null,null,"أحمد على15 وسام1"]
[16,1000213270105500,"أحمد على16","أسامة1","ذكر","2002-06-01","مغنية","3ت ر/هك","لحلاح أحمد ",null,"ثالثة","تقني رياضي",1,16,"إلى يومنا هذا ",null,null,null,null,null,null,null,null,null,"أحمد على16 أسامة1"]
[17,1100246010197100,"أحمد على17","سهام2","أنثى","2002-08-16","عين تموشنت","3ت ر/هك","بن عمار احمد ",null,"ثالثة","تقني رياضي",1,17,"إلى يومنا هذا ",null,null,null,null,null,null,null,null,null,"أحمد على17 سهام2"]
[18,1000213270627600,"أحمد على18","أحمد2","ذكر","2002-10-31","تلمسان","3ت ر/هك","بن هدي الواسيني ",null,"ثالثة","تقني رياضي",1,18,"إلى يومنا هذا ",null,null,null,null,null,null,null,null,null,"أحمد على18 أحمد2"]
[19,1100213270090100,"أحمد على19","نور الهدى2","أنثى","2002-05-12","مغنية","3ت ر/هك","حمادي عبد الرحمن ",null,"ثالثة","تقني رياضي",1,19,"إلى يومنا هذا ",null,null,null,null,null,null,null,null,null,"أحمد على19 نور الهدى2"]
[20,1000213270230200,"أحمد على20","أسماء2","ذكر","2002-10-16","مغنية","3ت ر/هك","صباحي كمال الدين ",null,"ثالثة","تقني رياضي",1,20,"إلى يومنا هذا ",null,null,null,null,null,null,null,null,null,"أحمد على20 أسماء2"]
[21,1000313270035700,"أحمد على21","إسماعيل2","ذكر","2003-02-14","مغنية","3ت ر/هك","محلة محمد ",null,"ثالثة","تقني رياضي",1,21,"إلى يومنا هذا ",null,null,null,null,null,null,null,null,null,"أحمد على21 إسماعيل2"]
[22,1000113270060100,"أحمد على22","وسام2","ذكر","2001-03-24","مغنية","3ت إ","أحمودي أحمد ",null,"ثالثة","تسيير واقتصاد",1,22,"إلى يومنا هذا ",null,null,null,null,null,null,null,null,null,"أحمد على22 وسام2"]
[23,1100213270163700,"أحمد على23","عبد الصمد2","أنثى","2002-07-31","مغنية","3ت إ","امبارك بوشارب ",null,"ثالثة","تسيير واقتصاد",1,23,"إلى يومنا هذا ",null,null,null,null,null,null,null,null,null,"أحمد على23 عبد الصمد2"]
[24,1000213270044500,"أحمد على24","انيس شرف الدين2","ذكر","2002-03-09","مغنية","3ت إ","بلعباسي محمد ",null,"ثالثة","تسيير واقتصاد",1,24,"إلى يومنا هذا ",null,null,null,null,null,null,null,null,null,"أحمد على24 انيس شرف الدين2"]
[25,1000113270018900,"أحمد على25","سيدي محمد ريان2","أنثى","2001-01-22","مغنية","3ت إ","بن زمرة بن يونس ",null,"ثالثة","تسيير واقتصاد",1,25,"إلى يومنا هذا ",null,null,null,null,null,null,null,null,null,"أحمد على25 سيدي محمد ريان2"]
[26,1100113270003200,"أحمد على26","بومدين2","أنثى","2001-01-03","مغنية","3ت إ","بن علي نور الدين ",null,"ثالثة","تسيير واقتصاد",1,26,"إلى يومنا هذا ",null,null,null,null,null,null,null,null,null,"أحمد على26 بومدين2"]
[27,1000013350086100,"أحمد على27","محمد2","ذكر","2000-09-29","سبدو","3ت إ","بن يوبي محمد ",null,"ثالثة","تسيير واقتصاد",1,27,"إلى يومنا هذا ",null,null,null,null,null,null,null,null,null,"أحمد على27 محمد2"]
[28,1000213270046900,"أحمد على28","فريال2","ذكر","2002-03-11","مغنية","3ت إ","بوطاقة لخضر ",null,"ثالثة","تسيير واقتصاد",1,28,"إلى يومنا هذا ",null,null,null,null,null,null,null,null,null,"أحمد على28 فريال2"]
[29,1100213270153000,"أحمد على29","مصطفى2","أنثى","2002-07-21","مغنية","3ت إ","بوطاقة زبير ",null,"ثالثة","تسيير واقتصاد",1,29,"إلى يومنا هذا ",null,null,null,null,null,null,null,null,null,"أحمد على29 مصطفى2"]
[30,1000113270068600,"أحمد على30","حسام2","ذكر","2001-12-05","وهران","3ت إ","تومي بلبشير ",null,"ثالثة","تسيير واقتصاد",1,30,"إلى يومنا هذا ",null,null,null,null,null,null,null,null,null,"أحمد على30 حسام2"]
[31,1099913270145300,"أحمد على31","وسام2","ذكر","1999-07-13","مغنية","3ت إ","حمادي نصر الدين ",null,"ثالثة","تسيير واقتصاد",1,31,"إلى يومنا هذا ",null,null,null,null,null,null,null,null,null,"أحمد على31 وسام2"]
[32,1000113270128100,"أحمد على32","أسامة2","ذكر","2001-06-25","مغنية","3ت إ","حمزة قدور ",null,"ثالثة","تسيير واقتصاد",1,32,"إلى يومنا هذا ",null,null,null,null,null,null,null,null,null,"أحمد على32 أسامة2"]
[33,1100113270159300,"أحمد على33","سهام3","أنثى","2001-07-30","مغنية","3ت إ","خضراوي عبد الله ",null,"ثالثة","تسيير واقتصاد",1,33,"إلى يومنا هذا ",null,null,null,null,null,null,null,null,null,"أحمد على33 سهام3"]
[34,1199913270030400,"أحمد على34","أحمد3","أنثى","1999-02-09","مغنية","3ت إ","دياب حسان ",null,"ثالثة","تسيير واقتصاد",1,34,"إلى يومنا هذا ",null,null,null,null,null,null,null,null,null,"أحمد على34 أحمد3"]
[35,1100038010150200,"أحمد على35","نور الهدى3","أنثى","2000-09-09","خميستي","3ت إ","ديلم عيسى ",null,"ثالثة","تسيير واقتصاد",1,35,"إلى يومنا هذا ",null,null,null,null,null,null,null,null,null,"أحمد على35 نور الهدى3"]
[36,1100213270113800,"أحمد على36","أسماء3","أنثى","2002-06-10","مغنية","3ت إ","ساولي محمد ",null,"ثالثة","تسيير واقتصاد",1,36,"إلى يومنا هذا ",null,null,null,null,null,null,null,null,null,"أحمد على36 أسماء3"]
[37,1099913270240600,"أحمد على37","إسماعيل3","ذكر","1999-11-19","مغنية","3ت إ","سربوت عبد المالك ",null,"ثالثة","تسيير واقتصاد",1,37,"إلى يومنا هذا ",null,null,null,null,null,null,null,null,null,"أحمد على37 إسماعيل3"]
[38,1100113270272300,"أحمد على38","وسام3","أنثى","2001-12-15","مغنية","3ت إ","سلطاني بلخير ",null,"ثالثة","تسيير واقتصاد",1,38,"إلى يومنا هذا ",null,null,null,null,null,null,null,null,null,"أحمد على38 وسام3"]
[39,1000213010276600,"أحمد على39","عبد الصمد3","ذكر","2002-06-02","تلمسان","3ت إ","سلومي محمد ",null,"ثالثة","تسيير واقتصاد",1,39,"إلى يومنا هذا ",null,null,null,null,null,null,null,null,null,"أحمد على39 عبد الصمد3"]
[40,1000213270016800,"أحمد على40","انيس شرف الدين3","ذكر","2002-10-05","مغنية","3ت إ","صوالح احمد ",null,"ثالثة","تسيير واقتصاد",1,40,"إلى يومنا هذا ",null,null,null,null,null,null,null,null,null,"أحمد على40 انيس شرف الدين3"]
[41,1100213270026200,"أحمد على41","سيدي محمد ريان3","أنثى","2002-02-10","مغنية","3ت إ","صوفي لخضر ",null,"ثالثة","تسيير واقتصاد",1,41,"إلى يومنا هذا ",null,null,null,null,null,null,null,null,null,"أحمد على41 سيدي محمد ريان3"]
[42,1000113270089100,"أحمد على42","بومدين3","ذكر","2001-05-07","مغنية","3ت إ","طيبي طاهر ",null,"ثالثة","تسيير واقتصاد",1,42,"إلى يومنا هذا ",null,null,null,null,null,null,null,null,null,"أحمد على42 بومدين3"]
[43,1099813270026600,"أحمد على43","محمد3","ذكر","1998-01-28","مغنية","3ت إ","كبير عبد الله ",null,"ثالثة","تسيير واقتصاد",1,43,"إلى يومنا هذا ",null,null,null,null,null,null,null,null,null,"أحمد على43 محمد3"]
[44,1100213270301300,"أحمد على44","فريال3","ذكر","2002-11-06","دبدابة","3ت إ","مخلوفي عماري ",null,"ثالثة","تسيير واقتصاد",1,44,"إلى يومنا هذا ",null,null,null,null,null,null,null,null,null,"أحمد على44 فريال3"]
[45,1000113270174500,"أحمد على45","مصطفى3","ذكر","2001-08-15","مغنية","3ت إ","مداني كمال ",null,"ثالثة","تسيير واقتصاد",1,45,"إلى يومنا هذا ",null,null,null,null,null,null,null,null,null,"أحمد على45 مصطفى3"]
[46,1100013270073700,"أحمد على46","حسام3","أنثى","2000-04-10","مغنية","3ت إ","مزاري عبد العزيز ",null,"ثالثة","تسيير واقتصاد",1,46,"إلى يومنا هذا ",null,null,null,null,null,null,null,null,null,"أحمد على46 حسام3"]
[47,1100213270142100,"أحمد على47","وسام3","أنثى","2002-07-09","مغنية","3ت إ","مفتاح محمد ",null,"ثالثة","تسيير واقتصاد",1,47,"إلى يومنا هذا ",null,null,null,null,null,null,null,null,null,"أحمد على47 وسام3"]
[48,1000113270208300,"أحمد على48","أسامة3","ذكر","2001-09-29","مغنية","3ت إ","مقدم الشيخ ",null,"ثالثة","تسيير واقتصاد",1,48,"إلى يومنا هذا ",null,null,null,null,null,null,null,null,null,"أحمد على48 أسامة3"]
[49,1100213270038500,"أحمد على49","سهام4","أنثى","2002-03-01","مغنية","3ت إ","وازني عبد الله ",null,"ثالثة","تسيير واقتصاد",1,49,"إلى يومنا هذا ",null,null,null,null,null,null,null,null,null,"أحمد على49 سهام4"]
[50,1000213270272200,"أحمد على50","أحمد4","ذكر","2002-11-30","مغنية","3ت إ","بوزيان عبد الحفيظ ",null,"ثالثة","تسيير واقتصاد",1,50,"إلى يومنا هذا ",null,null,null,null,null,null,null,null,null,"أحمد على50 أحمد4"]
[51,1000213270173000,"أحمد على51","نور الهدى4","ذكر","2002-08-11","مغنية","3ت إ","زوهيري عبد القادر ",null,"ثالثة","تسيير واقتصاد",1,51,"إلى يومنا هذا ",null,null,null,null,null,null,null,null,null,"أحمد على51 نور الهدى4"]
[52,1000113270118000,"أحمد على52","أسماء4","ذكر","2001-06-15","مغنية","3ت إ","زياني الأول محمد ",null,"ثالثة","تسيير واقتصاد",1,52,"إلى يومنا هذا ",null,null,null,null,null,null,null,null,null,"أحمد على52 أسماء4"]
[53,1000013270206000,"أحمد على53","إسماعيل4","ذكر","2000-09-18","مغنية","3ت إ","قناد عبد الرزاق ",null,"ثالثة","تسيير واقتصاد",1,53,"إلى يومنا هذا ",null,null,null,null,null,null,null,null,null,"أحمد على53 إسماعيل4"]
[54,1100213270213400,"أحمد على54","وسام4","أنثى","2002-09-26","مغنية","3ع ت01","بصغير احمد ",null,"ثالثة","علوم تجريبية",1,54,"إلى يومنا هذا ",null,null,null,null,null,null,null,null,null,"أحمد على54 وسام4"]
[55,1100313270053600,"أحمد على55","عبد الصمد4","أنثى","2003-03-09","مغنية","3ع ت01","بن عبد الله بلقاسم ",null,"ثالثة","علوم تجريبية",1,55,"إلى يومنا هذا ",null,null,null,null,null,null,null,null,null,"أحمد على55 عبد الصمد4"]
[56,1000213270115000,"أحمد على56","انيس شرف الدين4","ذكر","2002-06-12","مغنية","3ع ت01","بن عراج يحيى ",null,"ثالثة","علوم تجريبية",1,56,"إلى يومنا هذا ",null,null,null,null,null,null,null,null,null,"أحمد على56 انيس شرف الدين4"]
[57,1100213270008900,"أحمد على57","سيدي محمد ريان4","أنثى","2002-01-13","مغنية","3ع ت01","بن مغني لخضر ",null,"ثالثة","علوم تجريبية",1,57,"إلى يومنا هذا ",null,null,null,null,null,null,null,null,null,"أحمد على57 سيدي محمد ريان4"]
[58,1000213270295300,"أحمد على58","بومدين4","ذكر","2002-12-25","مغنية","3ع ت01","بن منصور مصطفى ",null,"ثالثة","علوم تجريبية",1,58,"إلى يومنا هذا ",null,null,null,null,null,null,null,null,null,"أحمد على58 بومدين4"]
[59,1000113270020000,"أحمد على59","محمد4","ذكر","2001-01-24","مغنية","3ع ت01","حساني يحي ",null,"ثالثة","علوم تجريبية",1,59,"إلى يومنا هذا ",null,null,null,null,null,null,null,null,null,"أحمد على59 محمد4"]
[60,1100213270449700,"أحمد على60","فريال4","أنثى","2002-08-10","مغنية","3ع ت01","حقاوي محمد ",null,"ثالثة","علوم تجريبية",1,60,"إلى يومنا هذا ",null,null,null,null,null,null,null,null,null,"أحمد على60 فريال4"]
[61,1100213270077900,"أحمد على61","مصطفى4","أنثى","2002-04-26","مغنية","3ع ت01","زيني عمر ",null,"ثالثة","علوم تجريبية",1,61,"إلى يومنا هذا ",null,null,null,null,null,null,null,null,null,"أحمد على61 مصطفى4"]
[62,1100313270041800,"أحمد على62","حسام4","أنثى","2003-02-21","مغنية","3ع ت01","شارف حمزة ",null,"ثالثة","علوم تجريبية",1,62,"إلى يومنا هذا ",null,null,null,null,null,null,null,null,null,"أحمد على62 حسام4"]
[63,1000213270290800,"أحمد على63","وسام4","ذكر","2002-03-27","وهران","3ع ت01","علواني شيخ ",null,"ثالثة","علوم تجريبية",1,63,"إلى يومنا هذا ",null,null,null,null,null,null,null,null,null,"أحمد على63 وسام4"]
[64,1100213270044100,"أحمد على64","أسامة4","أنثى","2002-03-08","مغنية","3ع ت01","فريجة عمار ",null,"ثالثة","علوم تجريبية",1,64,"إلى يومنا هذا ",null,null,null,null,null,null,null,null,null,"أحمد على64 أسامة4"]
[65,1000213270140200,"أحمد على65","سهام5","أنثى","2002-07-08","مغنية","3ع ت01","قديم ميلود ",null,"ثالثة","علوم تجريبية",1,65,"إلى يومنا هذا ",null,null,null,null,null,null,null,null,null,"أحمد على65 سهام5"]
[66,1100213270007900,"أحمد على66","أحمد5","أنثى","2002-01-12","مغنية","3ع ت01","قديم عبد الصمد ",null,"ثالثة","علوم تجريبية",1,66,"إلى يومنا هذا ",null,null,null,null,null,null,null,null,null,{"$f":"C68 & \" \" &  D68","v":"أحمد على66 أحمد5"}]
[67,1100213270261100,"أحمد على67","نور الهدى5","أنثى","2002-11-20","مغنية","3ع ت01","كبيب محمد ",null,"ثالثة","علوم تجريبية",1,67,"إلى يومنا هذا ",null,null,null,null,null,null,null,null,null,"أحمد على67 نور الهدى5"]
[68,1000213270098900,"أحمد على68","أسماء5","ذكر","2002-05-23","مغنية","3ع ت01","لعروسي عبد القادر ",null,"ثالثة","علوم تجريبية",1,68,"إلى يومنا هذا ",null,null,null,null,null,null,null,null,null,"أحمد على68 أسماء5"]
[69,1000213270236000,"أحمد على69","إسماعيل5","ذكر","2002-10-22","مغنية","3ع ت01","مصار احمد ",null,"ثالثة","علوم تجريبية",1,70,"2019-11-04",null,null,null,null,"ن د1",null,null,null,null,"أحمد على69 إسماعيل5"]
[70,1100213270266200,"أحمد على70","وسام5","أنثى","2002-11-25","مغنية","3ع ت01","مقدم علي ",null,"ثالثة","علوم تجريبية",1,71,"إلى يومنا هذا ",null,null,null,null,null,null,null,null,null,"أحمد على70 وسام5"]
[71,1100113270193200,"أحمد على71","عبد الصمد5","أنثى","2001-09-08","مغنية","3ع ت01","بلخير محمد ",null,"ثالثة","علوم تجريبية",1,72,"إلى يومنا هذا ",null,null,null,null,null,null,null,null,null,"أحمد على71 عبد الصمد5"]
[72,1100213270077200,"أحمد على72","انيس شرف الدين5","أنثى","2002-04-25","مغنية","3ع ت01","بن قطاي محمد ميلود ",null,"ثالثة","علوم تجريبية",1,73,"إلى يومنا هذا ",null,null,null,null,null,null,null,null,null,"أحمد على72 انيس شرف الدين5"]
[73,1000213270204200,"أحمد على73","سيدي محمد ريان5","ذكر","2002-05-19","تيارت","3ع ت01","حود جيلالي ",null,"ثالثة","علوم تجريبية",1,74,"إلى يومنا هذا ",null,null,null,null,null,null,null,null,null,"أحمد على73 سيدي محمد ريان5"]
[74,1100213270201000,"أحمد على74","بومدين5","أنثى","2002-09-14","مغنية","3ع ت01","دار رمضان محمد ",null,"ثالثة","علوم تجريبية",1,75,"إلى يومنا هذا ",null,null,null,null,null,null,null,null,null,"أحمد على74 بومدين5"]
[75,1100213270248800,"أحمد على75","محمد5","أنثى","2002-11-06","مغنية","3ع ت01","دكالي محمد ",null,"ثالثة","علوم تجريبية",1,76,"إلى يومنا هذا ",null,null,null,null,null,null,null,null,null,"أحمد على75 محمد5"]
[76,1100113270057700,"أحمد على76","فريال5","أنثى","2001-03-21","مغنية","3ع ت01","زجاوي عبد اللطيف ",null,"ثالثة","علوم تجريبية",1,77,"إلى يومنا هذا ",null,null,null,null,null,null,null,null,null,"أحمد على76 فريال5"]
[77,1000213270168900,"أحمد على77","مصطفى5","ذكر","2002-08-06","مغنية","3ع ت01","سبو محمد ",null,"ثالثة","علوم تجريبية",1,78,"إلى يومنا هذا ",null,null,null,null,null,null,null,null,null,"أحمد على77 مصطفى5"]
[78,1000013270167600,"أحمد على78","حسام5","ذكر","2000-08-07","مغنية","3ع ت01","شهبي عبد القادر ",null,"ثالثة","علوم تجريبية",1,79,"إلى يومنا هذا ",null,null,null,null,null,null,null,null,null,"أحمد على78 حسام5"]
[79,1100213270249300,"أحمد على79","وسام5","أنثى","2002-11-06","مغنية","3ع ت01","محلة محمد ",null,"ثالثة","علوم تجريبية",2,80,"إلى يومنا هذا ",null,null,null,null,null,null,null,null,null,"أحمد على79 وسام5"]
[80,1000213270103600,"أحمد على80","أسامة5","ذكر","2002-06-01","مغنية","3ع ت02","العربي محمد ",null,"ثالثة","علوم تجريبية",2,81,"إلى يومنا هذا ",null,null,null,null,null,null,null,null,null,"أحمد على80 أسامة5"]
[81,1100213270049600,"أحمد على81","سهام6","أنثى","2002-03-15","مغنية","3ع ت02","بلحسين واسيني ",null,"ثالثة","علوم تجريبية",2,82,"إلى يومنا هذا ",null,null,null,null,null,null,null,null,null,"أحمد على81 سهام6"]
[82,1100213270026500,"أحمد على82","أحمد6","أنثى","2002-08-06","ندرومة","3ع ت02","بن عامر نور الدين ",null,"ثالثة","علوم تجريبية",2,83,"إلى يومنا هذا ",null,null,null,null,null,null,null,null,null,"أحمد على82 أحمد6"]
[83,1000013270207700,"أحمد على83","نور الهدى6","ذكر","2000-03-02","مغنية","3ع ت02","بن عبد الواحد طاهر ",null,"ثالثة","علوم تجريبية",2,84,"إلى يومنا هذا ",null,null,null,null,null,null,null,null,null,"أحمد على83 نور الهدى6"]
[84,1100213270256600,"أحمد على84","أسماء6","أنثى","2002-11-16","مغنية","3ع ت02","بن عيش عبد القادر عبد الحفيظ ",null,"ثالثة","علوم تجريبية",2,85,"إلى يومنا هذا ",null,null,null,null,null,null,null,null,null,"أحمد على84 أسماء6"]
[85,1000213270128900,"أحمد على85","إسماعيل6","ذكر","2002-06-26","مغنية","3ع ت02","بوعزة ميلود ",null,"ثالثة","علوم تجريبية",2,86,"إلى يومنا هذا ",null,null,null,null,null,null,null,null,null,"أحمد على85 إسماعيل6"]
[86,1100213270107000,"أحمد على86","وسام6","أنثى","2002-06-01","مغنية","3ع ت02","حداج عمر ",null,"ثالثة","علوم تجريبية",2,87,"إلى يومنا هذا ",null,null,null,null,null,null,null,null,null,"أحمد على86 وسام6"]
[87,1100213270106900,"أحمد على87","عبد الصمد6","أنثى","2002-06-01","مغنية","3ع ت02","حمادي مروان ",null,"ثالثة","علوم تجريبية",2,88,"إلى يومنا هذا ",null,null,null,null,null,null,null,null,null,"أحمد على87 عبد الصمد6"]
[88,1100013270073300,"أحمد على88","انيس شرف الدين6","أنثى","2000-04-10","مغنية","3ع ت02","حمادي مروان ",null,"ثالثة","علوم تجريبية",2,89,"إلى يومنا هذا ",null,null,null,null,null,null,null,null,null,"أحمد على88 انيس شرف الدين6"]
[89,1100213270047500,"أحمد على89","سيدي محمد ريان6","أنثى","2002-03-13","مغنية","3ع ت02","دكالي عبد القادر ",null,"ثالثة","علوم تجريبية",2,90,"إلى يومنا هذا ",null,null,null,null,null,null,null,null,null,"أحمد على89 سيدي محمد ريان6"]
[90,1100213270217600,"أحمد على90","بومدين6","أنثى","2002-03-01","مغنية","3ع ت02","زياني الأول عبد القادر ",null,"ثالثة","علوم تجريبية",2,91,"إلى يومنا هذا ",null,null,null,null,null,null,null,null,null,"أحمد على90 بومدين6"]
[91,1100213270252600,"أحمد على91","محمد6","أنثى","2002-11-11","مغنية","3ع ت02","زيني عبد الحميد ",null,"ثالثة","علوم تجريبية",2,92,"إلى يومنا هذا ",null,null,null,null,null,null,null,null,null,"أحمد على91 محمد6"]
[92,1000231010819800,"أحمد على92","فريال6","ذكر","2002-08-11","وهران","3ع ت02","كاري نصرالدين ",null,"ثالثة","علوم تجريبية",2,93,"إلى يومنا هذا ",null,null,null,null,null,null,null,null,null,"أحمد على92 فريال6"]
[93,1100213270027900,"أحمد على93","مصطفى6","أنثى","2002-02-12","مغنية","3ع ت02","كلتومي عبد الناصر ",null,"ثالثة","علوم تجريبية",2,94,"إلى يومنا هذا ",null,null,null,null,null,null,null,null,null,"أحمد على93 مصطفى6"]
[94,1100213270193400,"أحمد على94","حسام6","أنثى","2002-09-03","مغنية","3ع ت02","معطى الله مصطفى ",null,"ثالثة","علوم تجريبية",2,95,"إلى يومنا هذا ",null,null,null,null,null,null,null,null,null,"أحمد على94 حسام6"]
[95,1000113270236000,"أحمد على95","وسام6","ذكر","2001-11-03","مغنية","3ع ت02","منصوري عبد المجيد ",null,"ثالثة","علوم تجريبية",2,96,"إلى يومنا هذا ",null,null,null,null,null,null,null,null,null,"أحمد على95 وسام6"]
[96,1100213270135100,"أحمد على96","أسامة6","أنثى","2002-07-02","مغنية","3ع ت02","أوشريف أحمد ",null,"ثالثة","علوم تجريبية",2,97,"إلى يومنا هذا ",null,null,null,null,null,null,null,null,null,"أحمد على96 أسامة6"]
[97,1100113270064400,"أحمد على97","سهام7","أنثى","2001-03-30","مغنية","3ع ت02","بن دحو عبد الحميد ",null,"ثالثة","علوم تجريبية",2,98,"إلى يومنا هذا ",null,null,null,null,null,null,null,null,null,"أحمد على97 سهام7"]
[98,1000213270229500,"أحمد على98","أحمد7","ذكر","2002-10-15","مغنية","3ع ت02","بوجمعة أحمد ",null,"ثالثة","علوم تجريبية",2,99,"إلى يومنا هذا ",null,null,null,null,null,null,null,null,null,"أحمد على98 أحمد7"]
[99,1100313270009800,"أحمد على99","نور الهدى7","أنثى","2003-01-01","مغنية","3ع ت02","حاج يحيى ",null,"ثالثة","علوم تجريبية",2,100,"إلى يومنا هذا ",null,null,null,null,null,null,null,null,null,"أحمد على99 نور الهدى7"]
[100,1000213270020400,"أحمد على100","أسماء7","ذكر","2002-01-31","مغنية","3ع ت02","دفافني عمر ",null,"ثالثة","علوم تجريبية",2,101,"إلى يومنا هذا ",null,null,null,null,null,null,null,null,null,"أحمد على100 أسماء7"]
[101,1100313270005600,"أحمد على101","إسماعيل7","أنثى","2003-01-02","تلمسان","3ع ت02","دوجي عبد الكريم ",null,"ثالثة","علوم تجريبية",2,102,"إلى يومنا هذا ",null,null,null,null,null,null,null,null,null,"أحمد على101 إسماعيل7"]
[102,1100229060285900,"أحمد على102","وسام7","أنثى","2002-12-24","تيغنيف","3ع ت02","صباحي زهير ",null,"ثالثة","علوم تجريبية",2,103,"إلى يومنا هذا ",null,null,null,null,null,null,null,null,null,"أحمد على102 وسام7"]
[103,1000213270266700,"أحمد على103","عبد الصمد7","ذكر","2002-11-25","مغنية","3ع ت02","عويسة محمد ",null,"ثالثة","علوم تجريبية",2,104,"إلى يومنا هذا ",null,null,null,null,null,null,null,null,null,"أحمد على103 عبد الصمد7"]
[104,1000313350002000,"أحمد على104","انيس شرف الدين7","ذكر","2003-01-08","سبدو","3ع ت02","عويسي زوبير ",null,"ثالثة","علوم تجريبية",2,105,"إلى يومنا هذا ",null,null,null,null,null,null,null,null,null,"أحمد على104 انيس شرف الدين7"]
[105,1100013270156900,"أحمد على105","سيدي محمد ريان7","أنثى","2000-07-27","مغنية","3ع ت02","قنطاري بوفلجة ",null,"ثالثة","علوم تجريبية",3,106,"إلى يومنا هذا ",null,null,null,null,null,null,null,null,null,"أحمد على105 سيدي محمد ريان7"]
[106,1100213270151500,"أحمد على106","بومدين7","أنثى","2002-07-20","مغنية","3ع ت03","أمحمدي حبيب ",null,"ثالثة","علوم تجريبية",3,107,"إلى يومنا هذا ",null,null,null,null,null,null,null,null,null,"أحمد على106 بومدين7"]
[107,1100213270214800,"أحمد على107","محمد7","أنثى","2002-09-27","مغنية","3ع ت03","بن زمرة جمال ",null,"ثالثة","علوم تجريبية",3,108,"إلى يومنا هذا ",null,null,null,null,null,null,null,null,null,"أحمد على107 محمد7"]
[108,1100213270180800,"أحمد على108","فريال7","أنثى","2002-08-19","مغنية","3ع ت03","بن عبد الله رشيد ",null,"ثالثة","علوم تجريبية",3,109,"إلى يومنا هذا ",null,null,null,null,null,null,null,null,null,"أحمد على108 فريال7"]
[109,1100013270237200,"أحمد على109","مصطفى7","أنثى","2000-10-31","مغنية","3ع ت03","بن عمارة عبد القادر ",null,"ثالثة","علوم تجريبية",3,110,"إلى يومنا هذا ",null,null,null,null,null,null,null,null,null,"أحمد على109 مصطفى7"]
[110,1100113270202200,"أحمد على110","حسام7","أنثى","2001-12-04","مغنية","3ع ت03","بن موسى أحمد ",null,"ثالثة","علوم تجريبية",3,111,"إلى يومنا هذا ",null,null,null,null,null,null,null,null,null,"أحمد على110 حسام7"]
[111,1000213270292800,"أحمد على111","وسام7","ذكر","2002-12-22","مغنية","3ع ت03","حميدي موسى ",null,"ثالثة","علوم تجريبية",3,112,"إلى يومنا هذا ",null,null,null,null,null,null,null,null,null,"أحمد على111 وسام7"]
[112,1100213270121500,"أحمد على112","أسامة7","أنثى","2002-06-18","مغنية","3ع ت03","دحماني محمد ",null,"ثالثة","علوم تجريبية",3,113,"إلى يومنا هذا ",null,null,null,null,null,null,null,null,null,"أحمد على112 أسامة7"]
[113,1100213270026700,"أحمد على113","سهام8","أنثى","2002-02-10","مغنية","3ع ت03","رمضاني ابراهيم ",null,"ثالثة","علوم تجريبية",3,114,"إلى يومنا هذا ",null,null,null,null,null,null,null,null,null,"أحمد على113 سهام8"]
[114,1100113270145200,"أحمد على114","أحمد8","أنثى","2001-07-16","مغنية","3ع ت03","رمضاني محمد ",null,"ثالثة","علوم تجريبية",3,115,"إلى يومنا هذا ",null,null,null,null,null,null,null,null,null,"أحمد على114 أحمد8"]
[115,1100313270037700,"أحمد على115","نور الهدى8","أنثى","2003-02-17","مغنية","3ع ت03","زحزوح مصطفى ",null,"ثالثة","علوم تجريبية",3,116,"إلى يومنا هذا ",null,null,null,null,null,null,null,null,null,"أحمد على115 نور الهدى8"]
[116,1000213040082900,"أحمد على116","أسماء8","ذكر","2002-12-21","الرمشي","3ع ت03","زيني مجاهد ",null,"ثالثة","علوم تجريبية",3,117,"إلى يومنا هذا ",null,null,null,null,null,null,null,null,null,"أحمد على116 أسماء8"]
[117,1100113270044200,"أحمد على117","إسماعيل8","أنثى","2001-02-28","مغنية","3ع ت03","صايم سفيان ",null,"ثالثة","علوم تجريبية",3,118,"إلى يومنا هذا ",null,null,null,null,null,null,null,null,null,"أحمد على117 إسماعيل8"]
[118,1100213270233700,"أحمد على118","وسام8","أنثى","2002-10-20","مغنية","3ع ت03","طواع أحمد ",null,"ثالثة","علوم تجريبية",3,119,"إلى يومنا هذا ",null,null,null,null,null,null,null,null,null,"أحمد على118 وسام8"]
[119,1100213270335800,"أحمد على119","عبد الصمد8","أنثى","2002-06-27","تلمسان","3ع ت03","غربي مصطفى ",null,"ثالثة","علوم تجريبية",3,120,"إلى يومنا هذا ",null,null,null,null,null,null,null,null,null,"أحمد على119 عبد الصمد8"]
[120,1199913270047200,"أحمد على120","انيس شرف الدين8","أنثى","1999-03-02","مغنية","3ع ت03","مزاري جمال ",null,"ثالثة","علوم تجريبية",3,121,"إلى يومنا هذا ",null,null,null,null,null,null,null,null,null,"أحمد على120 انيس شرف الدين8"]
[121,1100213270272300,"أحمد على121","سيدي محمد ريان8","أنثى","2002-11-30","مغنية","3ع ت03","موساتي موسى ",null,"ثالثة","علوم تجريبية",3,122,"إلى يومنا هذا ",null,null,null,null,null,null,null,null,null,"أحمد على121 سيدي محمد ريان8"]
[122,1100202110074500,"أحمد على122","بومدين8","أنثى","2002-04-21","مغنية","3ع ت03","بوزيان عبد الحفيظ ",null,"ثالثة","علوم تجريبية",3,123,"إلى يومنا هذا ",null,null,null,null,null,null,null,null,null,"أحمد على122 بومدين8"]
[123,1100213270291200,"أحمد على123","محمد8","أنثى","2002-12-20","مغنية","3ع ت03","بوغالية أحمد ",null,"ثالثة","علوم تجريبية",3,124,"إلى يومنا هذا ",null,null,null,null,null,null,null,null,null,"أحمد على123 محمد8"]
[124,1000213270283000,"أحمد على124","فريال8","ذكر","2002-12-11","مغنية","3ع ت03","حدار بومدين ",null,"ثالثة","علوم تجريبية",3,125,"إلى يومنا هذا ",null,null,null,null,null,null,null,null,null,"أحمد على124 فريال8"]
[125,1099931011247900,"أحمد على125","مصطفى8","ذكر","1999-12-16","وهران","3ع ت03","رايس احمد ",null,"ثالثة","علوم تجريبية",3,126,"إلى يومنا هذا ",null,null,null,null,null,null,null,null,null,"أحمد على125 مصطفى8"]
[126,1100313270057700,"أحمد على126","حسام8","أنثى","2003-03-16","مغنية","3ع ت03","طماشة بوتليلس ",null,"ثالثة","علوم تجريبية",3,127,"إلى يومنا هذا ",null,null,null,null,null,null,null,null,null,"أحمد على126 حسام8"]
[127,1000213270040400,"أحمد على127","وسام8","ذكر","2002-03-03","مغنية","3ع ت03","طيب أمين محمد شريف ",null,"ثالثة","علوم تجريبية",3,128,"إلى يومنا هذا ",null,null,null,null,null,null,null,null,null,"أحمد على127 وسام8"]
[128,1099913070041600,"أحمد على128","أسامة8","ذكر","1999-06-06","الغزوات","3ع ت03","قليلة عباس ",null,"ثالثة","علوم تجريبية",3,129,"إلى يومنا هذا ",null,null,null,null,null,null,null,null,null,"أحمد على128 أسامة8"]
[129,1100213270078900,"أحمد على129","سهام9","أنثى","2002-04-28","مغنية","3ع ت03","نجاري لخضر ",null,"ثالثة","علوم تجريبية",3,130,"إلى يومنا هذا ",null,null,null,null,null,null,null,null,null,"أحمد على129 سهام9"]
[130,1100013270475500,"أحمد على130","أحمد9","أنثى","2000-09-10","تلمسان","3ع ت03","وادفل بن يونس ",null,"ثالثة","آداب وفلسفة",1,131,"إلى يومنا هذا ",null,null,null,null,null,null,null,null,null,{"$f":"C132 & \" \" &  D132","v":"أحمد على130 أحمد9"}]
[131,1100213270107900,"أحمد على131","نور الهدى9","أنثى","2002-06-03","مغنية","3أ ف","أولاجي عبدالرحمان ",null,"ثالثة","آداب وفلسفة",1,132,"إلى يومنا هذا ",null,null,null,null,null,null,null,null,null,"أحمد على131 نور الهدى9"]
[132,1100213270110800,"أحمد على132","أسماء9","أنثى","2002-06-06","مغنية","3أ ف","الحمليلي العربي ",null,"ثالثة","آداب وفلسفة",1,133,"إلى يومنا هذا ",null,null,null,null,null,null,null,null,null,"أحمد على132 أسماء9"]
[133,1199813270214700,"أحمد على133","إسماعيل9","أنثى","1998-09-19","مغنية","3أ ف","الشيخ علي ",null,"ثالثة","آداب وفلسفة",1,134,"إلى يومنا هذا ",null,null,null,null,null,null,null,null,null,"أحمد على133 إسماعيل9"]
[134,1099913010400200,"أحمد على134","وسام9","ذكر","1999-08-09","تلمسان","3أ ف","بسويعة عبد العزيز ",null,"ثالثة","آداب وفلسفة",1,135,"إلى يومنا هذا ",null,null,null,null,null,null,null,null,null,"أحمد على134 وسام9"]
[135,1100027190072200,"أحمد على135","عبد الصمد9","أنثى","2000-12-06","بوقيراط","3أ ف","بلعمري عبد النور ",null,"ثالثة","آداب وفلسفة",1,136,"إلى يومنا هذا ",null,null,null,null,null,null,null,null,null,"أحمد على135 عبد الصمد9"]
[136,1100113270253100,"أحمد على136","انيس شرف الدين9","أنثى","2001-11-23","مغنية","3أ ف","بلمختار الصادق ",null,"ثالثة","آداب وفلسفة",1,137,"إلى يومنا هذا ",null,null,null,null,null,null,null,null,null,"أحمد على136 انيس شرف الدين9"]
[137,1000113270096100,"أحمد على137","سيدي محمد ريان9","ذكر","2001-05-16","مغنية","3أ ف","بن عبد الله جبلالي ",null,"ثالثة","آداب وفلسفة",1,138,"إلى يومنا هذا ",null,null,null,null,null,null,null,null,null,"أحمد على137 سيدي محمد ريان9"]
[138,1100113270010000,"أحمد على138","بومدين9","أنثى","2001-02-13","مغنية","3أ ف","بن هدي أحمد ",null,"ثالثة","آداب وفلسفة",1,139,"إلى يومنا هذا ",null,null,null,null,null,null,null,null,null,"أحمد على138 بومدين9"]
[139,1100013270151900,"أحمد على139","محمد9","أنثى","2000-07-21","مغنية","3أ ف","بوجمعة عبد القادر ",null,"ثالثة","آداب وفلسفة",1,140,"إلى يومنا هذا ",null,null,null,null,null,null,null,null,null,"أحمد على139 محمد9"]
[140,1100213270034400,"أحمد على140","فريال9","أنثى","2002-02-23","مغنية","3أ ف","بوحسون عبد القادر ",null,"ثالثة","آداب وفلسفة",1,141,"إلى يومنا هذا ",null,null,null,null,null,null,null,null,null,"أحمد على140 فريال9"]
[141,1100113270078200,"أحمد على141","مصطفى9","أنثى","2001-04-22","مغنية","3أ ف","تادلي محمد ",null,"ثالثة","آداب وفلسفة",1,142,"إلى يومنا هذا ",null,null,null,null,null,null,null,null,null,"أحمد على141 مصطفى9"]
[142,1000013270207500,"أحمد على142","حسام9","ذكر","2000-09-20","مغنية","3أ ف","جزيري واسيني ",null,"ثالثة","آداب وفلسفة",1,143,"إلى يومنا هذا ",null,null,null,null,null,null,null,null,null,"أحمد على142 حسام9"]
[143,1100313270070500,"أحمد على143","وسام9","أنثى","2003-04-08","مغنية","3أ ف","جزيري بوسيف ",null,"ثالثة","آداب وفلسفة",1,144,"إلى يومنا هذا ",null,null,null,null,null,null,null,null,null,"أحمد على143 وسام9"]
[144,1100213270191800,"أحمد على144","أسامة9","أنثى","2002-09-01","مغنية","3أ ف","جغدي سعيد ",null,"ثالثة","آداب وفلسفة",1,145,"إلى يومنا هذا ",null,null,null,null,null,null,null,null,null,"أحمد على144 أسامة9"]
[145,1000213270017400,"أحمد على145","سهام10","ذكر","2002-01-27","مغنية","3أ ف","جملي عبد القادر ",null,"ثالثة","آداب وفلسفة",1,146,"إلى يومنا هذا ",null,null,null,null,null,null,null,null,null,"أحمد على145 سهام10"]
[146,1100013270014500,"أحمد على146","أحمد10","أنثى","2000-01-20","مغنية","3أ ف","حواسة عبد الله ",null,"ثالثة","آداب وفلسفة",1,147,"إلى يومنا هذا ",null,null,null,null,null,null,null,null,null,"أحمد على146 أحمد10"]
[147,1100213400031900,"أحمد على147","نور الهدى10","أنثى","2002-09-29","ندرومة","3أ ف","خيري احمد ",null,"ثالثة","آداب وفلسفة",1,148,"إلى يومنا هذا ",null,null,null,null,null,null,null,null,null,"أحمد على147 نور الهدى10"]
[148,1000113270029300,"أحمد على148","أسماء10","ذكر","2001-02-05","مغنية","3أ ف","دحماني عبد الغاني ",null,"ثالثة","آداب وفلسفة",1,149,"إلى يومنا هذا ",null,null,null,null,null,null,null,null,null,"أحمد على148 أسماء10"]
[149,1000213270119900,"أحمد على149","إسماعيل10","ذكر","2002-06-16","مغنية","3أ ف","دراوي عكاشة ",null,"ثالثة","آداب وفلسفة",1,150,"إلى يومنا هذا ",null,null,null,null,null,null,null,null,null,"أحمد على149 إسماعيل10"]
[150,1100213270107200,"أحمد على150","وسام10","أنثى","2002-06-02","مغنية","3أ ف","دفو جمال ",null,"ثالثة","آداب وفلسفة",1,151,"إلى يومنا هذا ",null,null,null,null,null,null,null,null,null,"أحمد على150 وسام10"]
[151,1100213270114100,"أحمد على151","عبد الصمد10","أنثى","2002-06-10","مغنية","3أ ف","راس الواد بوبكر ",null,"ثالثة","آداب وفلسفة",1,152,"إلى يومنا هذا ",null,null,null,null,null,null,null,null,null,"أحمد على151 عبد الصمد10"]
[152,1100213270222900,"أحمد على152","انيس شرف الدين10","أنثى","2002-10-05","مغنية","3أ ف","زروالي مخطار ",null,"ثالثة","آداب وفلسفة",1,153,"إلى يومنا هذا ",null,null,null,null,null,null,null,null,null,"أحمد على152 انيس شرف الدين10"]
[153,1100213270299900,"أحمد على153","سيدي محمد ريان10","أنثى","2002-12-30","مغنية","3أ ف","سلهامي لخضر ",null,"ثالثة","آداب وفلسفة",1,154,"إلى يومنا هذا ",null,null,null,null,null,null,null,null,null,"أحمد على153 سيدي محمد ريان10"]
[154,1100013270230400,"أحمد على154","بومدين10","أنثى","2000-10-21","مغنية","3أ ف","شارف مصطفى ",null,"ثالثة","آداب وفلسفة",1,155,"إلى يومنا هذا ",null,null,null,null,null,null,null,null,null,"أحمد على154 بومدين10"]
[155,1199913270647900,"أحمد على155","محمد10","أنثى","1999-12-29","تلمسان","3أ ف","عاون محمد ",null,"ثالثة","آداب وفلسفة",1,156,"إلى يومنا هذا ",null,null,null,null,null,null,null,null,null,"أحمد على155 محمد10"]
[156,1099813270097100,"أحمد على156","فريال10","ذكر","1998-05-09","مغنية","3أ ف","عبد المالك بوعزة ",null,"ثالثة","آداب وفلسفة",1,157,"إلى يومنا هذا ",null,null,null,null,null,null,null,null,null,"أحمد على156 فريال10"]
[157,1000213270108800,"أحمد على157","مصطفى10","ذكر","2002-06-04","مغنية","3أ ف","عبد المالك لخضر ",null,"ثالثة","آداب وفلسفة",1,158,"إلى يومنا هذا ",null,null,null,null,null,null,null,null,null,"أحمد على157 مصطفى10"]
[158,1000013270073000,"أحمد على158","حسام10","ذكر","2000-04-10","مغنية","3أ ف","عيساني محمد ",null,"ثالثة","آداب وفلسفة",1,159,"إلى يومنا هذا ",null,null,null,null,null,"MAGHNIA","IBRAHIM","SEBAHI",null,"أحمد على158 حسام10"]
[159,1000113270221200,"أحمد على159","وسام10","ذكر","2001-10-16","مغنية","3أ ف","غريب عمار ",null,"ثالثة","آداب وفلسفة",1,160,"إلى يومنا هذا ",null,null,null,null,null,null,null,null,null,"أحمد على159 وسام10"]
[160,1099913270011000,"أحمد على160","أسامة10","أنثى","1999-06-05","مغنية","3أ ف","قيطوني حمدون ",null,"ثالثة","آداب وفلسفة",1,161,"إلى يومنا هذا ",null,null,null,null,null,null,null,null,null,"أحمد على160 أسامة10"]
[161,1100013270089000,"أحمد على161","سهام11","أنثى","2000-05-03","مغنية","3أ ف","كرومي بن اعمر ",null,"ثالثة","آداب وفلسفة",1,162,"إلى يومنا هذا ",null,null,null,null,null,null,null,null,null,"أحمد على161 سهام11"]
[162,1199913270146200,"أحمد على162","أحمد11","أنثى","1999-07-15","مغنية","3أ ف","لامي ميلود ",null,"ثالثة","آداب وفلسفة",1,163,"إلى يومنا هذا ",null,null,null,null,null,null,null,null,null,"أحمد على162 أحمد11"]
[163,1000213270131600,"أحمد على163","نور الهدى11","ذكر","2002-06-28","مغنية","3أ ف","مقدم الحاج قدور ",null,"ثالثة","آداب وفلسفة",1,164,"إلى يومنا هذا ",null,null,null,null,null,null,null,null,null,"أحمد على163 نور الهدى11"]
[164,1100113270201300,"أحمد على164","أسماء11","أنثى","2001-09-20","مغنية","3أ ف","مهديد احمد ",null,"ثالثة","آداب وفلسفة",1,165,"إلى يومنا هذا ",null,null,null,null,null,null,null,null,null,"أحمد على164 أسماء11"]
[165,1199813270288200,"أحمد على165","إسماعيل11","أنثى","1998-12-28","مغنية","3أ ف","البهلول محمد ",null,"ثالثة","آداب وفلسفة",1,166,"إلى يومنا هذا ",null,null,null,null,null,null,null,null,null,"أحمد على165 إسماعيل11"]
[166,1100013270050300,"أحمد على166","وسام11","أنثى","2000-03-08","مغنية","3أ ف","بن يعقوب حسين ",null,"ثالثة","آداب وفلسفة",1,167,"إلى يومنا هذا ",null,null,null,null,null,null,null,null,null,"أحمد على166 وسام11"]
[167,1000213270135400,"أحمد على167","عبد الصمد11","ذكر","2002-07-02","مغنية","3أ ف","بوعزة ميمون ",null,"ثالثة","آداب وفلسفة",1,168,"إلى يومنا هذا ",null,null,null,null,null,null,null,null,null,"أحمد على167 عبد الصمد11"]
[168,1100113270169000,"أحمد على168","انيس شرف الدين11","أنثى","2001-08-08","مغنية","3أ ف","تيسوراسي محمد ",null,"ثالثة","آداب وفلسفة",1,169,"إلى يومنا هذا ",null,null,null,null,null,null,null,null,null,"أحمد على168 انيس شرف الدين11"]
[169,1100013270142900,"أحمد على169","سيدي محمد ريان11","أنثى","2000-07-10","مغنية","3أ ف","ديب سعيد ",null,"ثالثة","آداب وفلسفة",1,170,"إلى يومنا هذا ",null,null,null,null,null,null,null,null,null,"أحمد على169 سيدي محمد ريان11"]
[170,1099913270209100,"أحمد على170","بومدين11","ذكر","1999-10-08","مغنية","3أ ف","زناقي ميلود ",null,"ثالثة","آداب وفلسفة",1,171,"إلى يومنا هذا ",null,null,null,null,null,null,null,null,null,"أحمد على170 بومدين11"]
[171,1100113270018500,"أحمد على171","محمد11","أنثى","2001-01-21","مغنية","3أ ف","لعور محمد ",null,"ثالثة","آداب وفلسفة",1,172,"إلى يومنا هذا ",null,null,null,null,null,null,null,null,null,"أحمد على171 محمد11"]
[172,1199913270202900,"أحمد على172","فريال11","أنثى","1999-09-25","مغنية","3أ ف","مرغاد عبد الرزاق ",null,"ثالثة","آداب وفلسفة",1,173,"إلى يومنا هذا ",null,null,null,null,null,null,null,null,null,"أحمد على172 فريال11"]
[173,1000213270028500,"أحمد على173","مصطفى11","ذكر","2002-02-13","مغنية","3أ ف","مزيان ميلود ",null,"ثالثة","آداب وفلسفة",1,174,"إلى يومنا هذا ",null,null,null,null,null,null,null,null,null,"أحمد على173 مصطفى11"]
[174,1000013270190100,"أحمد على174","حسام11","ذكر","2000-08-28","مغنية","3أ ف","مليوي بوعزة ",null,"ثالثة","آداب وفلسفة",1,175,"إلى يومنا هذا ",null,null,null,null,null,null,null,null,null,"أحمد على174 حسام11"]
[175,1099813270184300,"أحمد على175","وسام11","ذكر","1998-08-17","مغنية","3أ ف","يبدري محمد ",null,"ثالثة","لغات أجنبية",1,176,"إلى يومنا هذا ",null,null,null,null,null,null,null,null,null,"أحمد على175 وسام11"]
[176,1100213270049900,"أحمد على176","أسامة11","أنثى","2002-03-16","مغنية","3لغات","أمبارك رشيد ",null,"ثالثة","لغات أجنبية",1,177,"إلى يومنا هذا ",null,null,null,null,null,null,null,null,null,"أحمد على176 أسامة11"]
[177,1100013270018700,"أحمد على177","سهام12","أنثى","2000-01-26","مغنية","3لغات","أورابح عبد العزيز ",null,"ثالثة","لغات أجنبية",1,178,"إلى يومنا هذا ",null,null,null,null,null,null,null,null,null,"أحمد على177 سهام12"]
[178,1000213270258000,"أحمد على178","أحمد12","ذكر","2002-11-18","مغنية","3لغات","امحمدي حميد ",null,"ثالثة","لغات أجنبية",1,179,"إلى يومنا هذا ",null,null,null,null,null,null,null,null,null,"أحمد على178 أحمد12"]
[179,1000013270063600,"أحمد على179","نور الهدى12","ذكر","2000-03-26","مغنية","3لغات","برياح محمد ",null,"ثالثة","لغات أجنبية",1,180,"إلى يومنا هذا ",null,null,null,null,null,null,null,null,null,"أحمد على179 نور الهدى12"]
[180,1100213270158100,"أحمد على180","أسماء12","أنثى","2002-07-28","مغنية","3لغات","بن شقرة علي ",null,"ثالثة","لغات أجنبية",1,181,"إلى يومنا هذا ",null,null,null,null,null,null,null,null,null,"أحمد على180 أسماء12"]
[181,1000113270161700,"أحمد على181","إسماعيل12","ذكر","2001-08-01","مغنية","3لغات","بورجي عبد القادر ",null,"ثالثة","لغات أجنبية",1,182,"إلى يومنا هذا ",null,null,null,null,null,null,null,null,null,"أحمد على181 إسماعيل12"]
[182,1100213270354800,"أحمد على182","وسام12","أنثى","2002-07-06","الحراش","3لغات","حجيوي رشيد ",null,"ثالثة","لغات أجنبية",1,183,"إلى يومنا هذا ",null,null,null,null,null,null,null,null,null,"أحمد على182 وسام12"]
[183,1100213270214500,"أحمد على183","عبد الصمد12","أنثى","2002-09-26","مغنية","3لغات","رحو بن عمر ",null,"ثالثة","لغات أجنبية",1,184,"إلى يومنا هذا ",null,null,null,null,null,null,null,null,null,"أحمد على183 عبد الصمد12"]
[184,1100113270026700,"أحمد على184","انيس شرف الدين12","أنثى","2001-02-02","مغنية","3لغات","شارف حسين ",null,"ثالثة","لغات أجنبية",1,185,"إلى يومنا هذا ",null,null,null,null,null,null,null,null,null,"أحمد على184 انيس شرف الدين12"]
[185,1100113270269800,"أحمد على185","سيدي محمد ريان12","أنثى","2001-12-18","مغنية","3لغات","طوالة محمد ",null,"ثالثة","لغات أجنبية",1,186,"إلى يومنا هذا ",null,null,null,null,null,null,null,null,null,"أحمد على185 سيدي محمد ريان12"]
[186,1100113270217200,"أحمد على186","بومدين12","أنثى","2001-10-10","مغنية","3لغات","عثمان شريف أحمد ",null,"ثالثة","لغات أجنبية",1,187,"إلى يومنا هذا ",null,null,null,null,null,null,null,null,null,"أحمد على186 بومدين12"]
[187,1100213270094500,"أحمد على187","محمد12","أنثى","2002-05-17","مغنية","3لغات","كروم موسى ",null,"ثالثة","لغات أجنبية",1,188,"إلى يومنا هذا ",null,null,null,null,null,null,null,null,null,"أحمد على187 محمد12"]
[188,1100213270242800,"أحمد على188","فريال12","أنثى","2002-10-30","مغنية","3لغات","لكحل بلخير ",null,"ثالثة","لغات أجنبية",1,189,"إلى يومنا هذا ",null,null,null,null,null,null,null,null,null,"أحمد على188 فريال12"]
[189,1100213270026800,"أحمد على189","مصطفى12","أنثى","2002-02-11","مغنية","3لغات","مقداد علي ",null,"ثالثة","لغات أجنبية",1,190,"إلى يومنا هذا ",null,null,null,null,null,null,null,null,null,"أحمد على189 مصطفى12"]
[190,1100013010536500,"أحمد على190","حسام12","أنثى","2000-10-18","تلمسان","3لغات","مقدم ميلود ",null,"ثالثة","لغات أجنبية",1,191,"إلى يومنا هذا ",null,null,null,null,null,null,null,null,null,"أحمد على190 حسام12"]
[191,1100213270008700,"أحمد على191","وسام12","أنثى","2002-01-13","مغنية","3لغات","مقدم مجاهد ",null,"ثالثة","لغات أجنبية",1,192,"إلى يومنا هذا ",null,null,null,null,null,null,null,null,null,"أحمد على191 وسام12"]
[192,1100213270182800,"أحمد على192","أسامة12","أنثى","2002-08-22","مغنية","3لغات","ميري عزالدين ",null,"ثالثة","لغات أجنبية",1,193,"إلى يومنا هذا ",null,null,null,null,null,null,null,null,null,"أحمد على192 أسامة12"]
[193,1100213270193000,"أحمد على193","سهام13","أنثى","2002-09-02","مغنية","3لغات","ميلود قدور ",null,"ثالثة","لغات أجنبية",1,194,"إلى يومنا هذا ",null,null,null,null,null,null,null,null,null,"أحمد على193 سهام13"]
[194,1199913270130200,"أحمد على194","أحمد13","أنثى","1999-06-22","مغنية","3لغات","هاشمي رمضان ",null,"ثالثة","لغات أجنبية",1,195,"إلى يومنا هذا ",null,null,null,null,null,null,null,null,null,{"$f":"C196 & \" \" &  D196","v":"أحمد على194 أحمد13"}]
[195,1000013270095700,"أحمد على195","نور الهدى13","ذكر","2000-05-13","مغنية","3لغات","هواري يحي ",null,"ثالثة","لغات أجنبية",1,196,"إلى يومنا هذا ",null,null,null,null,null,null,null,null,null,"أحمد على195 نور الهدى13"]
[196,1199913270180600,"أحمد على196","أسماء13","أنثى","1999-08-25","مغنية","3لغات","العابد بن أعمر ",null,"ثالثة","لغات أجنبية",1,197,"إلى يومنا هذا ",null,null,null,null,null,null,null,null,null,"أحمد على196 أسماء13"]
[197,1100013270142700,"أحمد على197","إسماعيل13","أنثى","2000-07-10","مغنية","3لغات","حواسة أحمد ",null,"ثالثة","لغات أجنبية",1,198,"إلى يومنا هذا ",null,null,null,null,null,null,null,null,null,"أحمد على197 إسماعيل13"]
[198,1199913270224800,"أحمد على198","وسام13","أنثى","1999-10-30","مغنية","3لغات","زواري ميلود ",null,"ثالثة","لغات أجنبية",1,199,"إلى يومنا هذا ",null,null,null,null,null,null,null,null,null,"أحمد على198 وسام13"]
[199,1000213270111000,"أحمد على199","عبد الصمد13","ذكر","2002-06-06","مغنية","3لغات","زيتوني امحمد ",null,"ثالثة","لغات أجنبية",1,200,"إلى يومنا هذا ",null,null,null,null,null,null,null,null,null,"أحمد على199 عبد الصمد13"]
[200,1000313270060200,"أحمد على200","انيس شرف الدين13","ذكر","2003-03-20","مغنية","3لغات","عبد المالك مصطفى ",null,"ثانية","تقني رياضي",1,201,"إلى يومنا هذا ",null,null,null,null,null,null,null,null,null,"أحمد على200 انيس شرف الدين13"]
[201,1099945020157700,"أحمد على201","سيدي محمد ريان13","ذكر","1999-11-13","مشرية","2ت ر/هم","العابد أحمد ",null,"ثانية","تقني رياضي",1,202,"إلى يومنا هذا ",null,null,null,null,null,null,null,null,null,"أحمد على201 سيدي محمد ريان13"]
[202,1000313270186600,"أحمد على202","بومدين13","ذكر","2003-08-15","مغنية","2ت ر/هم","بن سالم ميلود ",null,"ثانية","تقني رياضي",1,203,"إلى يومنا هذا ",null,null,null,null,null,null,null,null,null,"أحمد على202 بومدين13"]
[203,1100213270199500,"أحمد على203","محمد13","أنثى","2002-09-11","مغنية","2ت ر/هم","بن عابد سعيد ",null,"ثانية","تقني رياضي",1,204,"إلى يومنا هذا ",null,null,null,null,null,null,null,null,null,"أحمد على203 محمد13"]
[204,1000313270298700,"أحمد على204","فريال13","ذكر","2003-12-26","مغنية","2ت ر/هم","بوعجاجة التركي ",null,"ثانية","تقني رياضي",1,205,"إلى يومنا هذا ",null,null,null,null,null,null,null,null,null,"أحمد على204 فريال13"]
[205,1000313270212500,"أحمد على205","مصطفى13","ذكر","2003-09-13","مغنية","2ت ر/هم","قوريري محمد ",null,"ثانية","تقني رياضي",1,206,"إلى يومنا هذا ",null,null,null,null,null,null,null,null,null,"أحمد على205 مصطفى13"]
[206,1100313270001400,"أحمد على206","حسام13","أنثى","2003-01-01","مغنية","2ت ر/هم","منور عبد القادر ",null,"ثانية","تقني رياضي",1,207,"إلى يومنا هذا ",null,null,null,null,null,null,null,null,null,"أحمد على206 حسام13"]
[207,1000413270063600,"أحمد على207","وسام13","ذكر","2004-03-16","مغنية","2ت ر/هم","موساوي ميلود ",null,"ثانية","تقني رياضي",1,208,"إلى يومنا هذا ",null,null,null,null,null,null,null,null,null,"أحمد على207 وسام13"]
[208,1100313270275300,"أحمد على208","أسامة13","أنثى","2003-11-27","مغنية","2ت ر/هم","هواري عبد القادر ",null,"ثانية","تقني رياضي",1,209,"إلى يومنا هذا ",null,null,null,null,null,null,null,null,null,"أحمد على208 أسامة13"]
[209,1100313273622700,"أحمد على209","سهام14","أنثى","2003-02-16","مغنية","2ت ر/هم","بوزي فوزي ",null,"ثانية","تقني رياضي",1,210,"إلى يومنا هذا ",null,null,null,null,null,null,null,null,null,"أحمد على209 سهام14"]
[210,1000102080143700,"أحمد على210","أحمد14","ذكر","2001-10-05","الصبحة","2ت ر/هم","دلهم معاشو ",null,"ثانية","تقني رياضي",1,211,"إلى يومنا هذا ",null,null,null,null,null,null,null,null,null,"أحمد على210 أحمد14"]
[211,1100313270224100,"أحمد على211","نور الهدى14","أنثى","2003-04-23","مغنية","2ت ر/هم","سالم عدة ",null,"ثانية","تقني رياضي",1,212,"إلى يومنا هذا ",null,null,null,null,null,null,null,null,null,"أحمد على211 نور الهدى14"]
[212,1000213270267800,"أحمد على212","أسماء14","ذكر","2002-11-26","مغنية","2ت ر/هم","غرفاتي العيد ",null,"ثانية","تقني رياضي",1,213,"إلى يومنا هذا ",null,null,null,null,null,null,null,null,null,"أحمد على212 أسماء14"]
[213,1100313270107600,"أحمد على213","إسماعيل14","أنثى","2003-05-27","مغنية","2ت ر/هك","الحامدي ميلود ",null,"ثانية","تقني رياضي",1,214,"إلى يومنا هذا ",null,null,null,null,null,null,null,null,null,"أحمد على213 إسماعيل14"]
[214,1100313270064600,"أحمد على214","وسام14","أنثى","2003-03-30","مغنية","2ت ر/هك","بن يوبي محمد ",null,"ثانية","تقني رياضي",1,215,"إلى يومنا هذا ",null,null,null,null,null,null,null,null,null,"أحمد على214 وسام14"]
[215,1100313270033800,"أحمد على215","عبد الصمد14","أنثى","2003-02-11","مغنية","2ت ر/هك","بوبكر يوسف ",null,"ثانية","تقني رياضي",1,216,"إلى يومنا هذا ",null,null,null,null,null,null,null,null,null,"أحمد على215 عبد الصمد14"]
[216,1000413270030500,"أحمد على216","انيس شرف الدين14","ذكر","2004-02-06","مغنية","2ت ر/هك","بوزيان ميلود ",null,"ثانية","تقني رياضي",1,217,"إلى يومنا هذا ",null,null,null,null,null,null,null,null,null,"أحمد على216 انيس شرف الدين14"]
[217,1100413270027100,"أحمد على217","سيدي محمد ريان14","أنثى","2004-03-27","مغنية","2ت ر/هك","دردار مصطفى ",null,"ثانية","تقني رياضي",1,218,"إلى يومنا هذا ",null,null,null,null,null,null,null,null,null,"أحمد على217 سيدي محمد ريان14"]
[218,1000313270113000,"أحمد على218","بومدين14","ذكر","2003-06-01","مغنية","2ت ر/هك","مزاري أحمد  ",null,"ثانية","تقني رياضي",1,219,"إلى يومنا هذا ",null,null,null,null,null,null,null,null,null,"أحمد على218 بومدين14"]
[219,1000213270295000,"أحمد على219","محمد14","ذكر","2002-12-25","مغنية","2ت ر/هك","زرعي سيدي محمد ",null,"ثانية","تقني رياضي",1,220,"إلى يومنا هذا ",null,null,null,null,null,null,null,null,null,"أحمد على219 محمد14"]
[220,1000113270069800,"أحمد على220","فريال14","ذكر","2001-11-23","مغنية","2ت ر/هك","قنشي عبد الرزاق ",null,"ثانية","تقني رياضي",1,221,"إلى يومنا هذا ",null,null,null,null,null,null,null,null,null,"أحمد على220 فريال14"]
[221,1100313270112700,"أحمد على221","مصطفى14","أنثى","2003-06-01","مغنية","2ت ر/هك","لعراجي سعيد ",null,"ثانية","تسيير واقتصاد",1,222,"إلى يومنا هذا ",null,null,null,null,null,null,null,null,null,"أحمد على221 مصطفى14"]
[222,1000313270122100,"أحمد على222","حسام14","ذكر","2003-06-12","مغنية","2ت إ","أمبارك واسيني ",null,"ثانية","تسيير واقتصاد",1,223,"إلى يومنا هذا ",null,null,null,null,null,null,null,null,null,"أحمد على222 حسام14"]
[223,1100313270300600,"أحمد على223","وسام14","أنثى","2003-12-28","مغنية","2ت إ","بلعباس علي ",null,"ثانية","تسيير واقتصاد",1,224,"إلى يومنا هذا ",null,null,null,null,null,null,null,null,null,"أحمد على223 وسام14"]
[224,1100313270080700,"أحمد على224","أسامة14","أنثى","2003-04-21","مغنية","2ت إ","بلميمون عبد المجيد ",null,"ثانية","تسيير واقتصاد",1,225,"إلى يومنا هذا ",null,null,null,null,null,null,null,null,null,"أحمد على224 أسامة14"]
[225,1100113270148700,"أحمد على225","سهام15","أنثى","2001-07-18","مغنية","2ت إ","بلميمون رشيد ",null,"ثانية","تسيير واقتصاد",1,226,"إلى يومنا هذا ",null,null,null,null,null,null,null,null,null,"أحمد على225 سهام15"]
[226,1100313270067400,"أحمد على226","أحمد15","أنثى","2003-04-03","مغنية","2ت إ","بن زاير يحي ",null,"ثانية","تسيير واقتصاد",1,227,"إلى يومنا هذا ",null,null,null,null,null,null,null,null,null,"أحمد على226 أحمد15"]
[227,1000213270045700,"أحمد على227","نور الهدى15","ذكر","2002-03-10","مغنية","2ت إ","بن قرين احمد ",null,"ثانية","تسيير واقتصاد",1,228,"إلى يومنا هذا ",null,null,null,null,null,null,null,null,null,"أحمد على227 نور الهدى15"]
[228,1100313270232000,"أحمد على228","أسماء15","أنثى","2003-10-05","مغنية","2ت إ","بورديم عبد الرحمن ",null,"ثانية","تسيير واقتصاد",1,229,"إلى يومنا هذا ",null,null,null,null,null,null,null,null,null,"أحمد على228 أسماء15"]
[229,1000313270145000,"أحمد على229","إسماعيل15","ذكر","2003-07-03","مغنية","2ت إ","جرارفاوي محمد ",null,"ثانية","تسيير واقتصاد",1,230,"إلى يومنا هذا ",null,null,null,null,null,null,null,null,null,"أحمد على229 إسماعيل15"]
[230,1000213270110500,"أحمد على230","وسام15","ذكر","2002-06-06","مغنية","2ت إ","دخيسي علي ",null,"ثانية","تسيير واقتصاد",1,231,"إلى يومنا هذا ",null,null,null,null,null,null,null,null,null,"أحمد على230 وسام15"]
[231,1100313270158500,"أحمد على231","عبد الصمد15","أنثى","2003-07-19","مغنية","2ت إ","دخيسي عبد الحميد ",null,"ثانية","تسيير واقتصاد",1,232,"إلى يومنا هذا ",null,null,null,null,null,null,null,null,null,"أحمد على231 عبد الصمد15"]
[232,1100313270070700,"أحمد على232","انيس شرف الدين15","أنثى","2003-04-08","مغنية","2ت إ","زياني الأول هاشمي ",null,"ثانية","تسيير واقتصاد",1,233,"إلى يومنا هذا ",null,null,null,null,null,null,null,null,null,"أحمد على232 انيس شرف الدين15"]
[233,1000044040284300,"أحمد على233","سيدي محمد ريان15","ذكر","2000-12-20","خميس مليانة","2ت إ","زياني الأول عبد الله ",null,"ثانية","تسيير واقتصاد",1,234,"إلى يومنا هذا ",null,null,null,null,null,null,null,null,null,"أحمد على233 سيدي محمد ريان15"]
[234,1000313270142400,"أحمد على234","بومدين15","ذكر","2003-06-30","مغنية","2ت إ","سكاك محمد ",null,"ثانية","تسيير واقتصاد",1,235,"إلى يومنا هذا ",null,null,null,null,null,null,null,null,null,"أحمد على234 بومدين15"]
[235,1100313270148800,"أحمد على235","محمد15","أنثى","2003-07-08","مغنية","2ت إ","سلومي واسيني ",null,"ثانية","تسيير واقتصاد",1,236,"إلى يومنا هذا ",null,null,null,null,null,null,null,null,null,"أحمد على235 محمد15"]
[236,1100313270247000,"أحمد على236","فريال15","أنثى","2003-10-21","مغنية","2ت إ","عمراني محمد ",null,"ثانية","تسيير واقتصاد",1,237,"إلى يومنا هذا ",null,null,null,null,null,null,null,null,null,"أحمد على236 فريال15"]
[237,1100313270225200,"أحمد على237","مصطفى15","أنثى","2003-09-28","مغنية","2ت إ","عمراوي عبد الحليم ",null,"ثانية","تسيير واقتصاد",1,238,"إلى يومنا هذا ",null,null,null,null,null,null,null,null,null,"أحمد على237 مصطفى15"]
[238,1000013270078800,"أحمد على238","حسام15","ذكر","2000-04-18","مغنية","2ت إ","غربي عبد المجيد ",null,"ثانية","تسيير واقتصاد",1,239,"إلى يومنا هذا ",null,null,null,null,null,null,null,null,null,"أحمد على238 حسام15"]
[239,1000313270110300,"أحمد على239","وسام15","ذكر","2003-05-29","مغنية","2ت إ","قطي واسيني ",null,"ثانية","تسيير واقتصاد",1,240,"إلى يومنا هذا ",null,null,null,null,null,null,null,null,null,"أحمد على239 وسام15"]
[240,1100213270270800,"أحمد على240","أسامة15","أنثى","2002-11-29","مغنية","2ت إ","قوري عبد الكريم ",null,"ثانية","تسيير واقتصاد",1,241,"إلى يومنا هذا ",null,null,null,null,null,null,null,null,null,"أحمد على240 أسامة15"]
[241,1100413270045300,"أحمد على241","سهام16","أنثى","2004-02-22","مغنية","2ت إ","كوليلي عبد الغاني ",null,"ثانية","تسيير واقتصاد",1,242,"إلى يومنا هذا ",null,null,null,null,null,null,null,null,null,"أحمد على241 سهام16"]
[242,1000313270141400,"أحمد على242","أحمد16","ذكر","2003-06-28","مغنية","2ت إ","مزاري واسيني ",null,"ثانية","تسيير واقتصاد",1,243,"إلى يومنا هذا ",null,null,null,null,null,null,null,null,null,"أحمد على242 أحمد16"]
[243,1000313270153500,"أحمد على243","نور الهدى16","ذكر","2003-07-13","مغنية","2ت إ","بختي سيدي محمد ",null,"ثانية","تسيير واقتصاد",1,244,"إلى يومنا هذا ",null,null,null,null,null,null,null,null,null,"أحمد على243 نور الهدى16"]
[244,1000213270166800,"أحمد على244","أسماء16","ذكر","2002-08-04","مغنية","2ت إ","بن سالم عبد العزيز ",null,"ثانية","تسيير واقتصاد",1,245,"إلى يومنا هذا ",null,null,null,null,null,null,null,null,null,"أحمد على244 أسماء16"]
[245,1000313270036500,"أحمد على245","إسماعيل16","ذكر","2003-02-02","مغنية","2ت إ","بوسكين عبد اللطيف ",null,"ثانية","تسيير واقتصاد",1,247,"إلى يومنا هذا ",null,null,null,null,null,null,null,null,null,"أحمد على245 إسماعيل16"]
[246,1000213380014400,"أحمد على246","وسام16","ذكر","2002-01-23","مغنية","2ت إ","جزيري محفوظ ",null,"ثانية","تسيير واقتصاد",1,248,"إلى يومنا هذا ",null,null,null,null,null,null,null,null,null,"أحمد على246 وسام16"]
[247,1100313270264300,"أحمد على247","عبد الصمد16","أنثى","2003-11-12","مغنية","2ت إ","صدار محمد ",null,"ثانية","علوم تجريبية",1,249,"إلى يومنا هذا ",null,null,null,null,null,null,null,null,null,"أحمد على247 عبد الصمد16"]
[248,1000309030012800,"أحمد على248","انيس شرف الدين16","ذكر","2003-06-01","الشبلي","2ت إ","عبوين عبد الرحمان ",null,"ثانية","علوم تجريبية",1,250,"2019-04-07",null,null,null,null,null,null,null,null,null,"أحمد على248 انيس شرف الدين16"]
[249,1000313270082600,"أحمد على249","سيدي محمد ريان16","ذكر","2003-04-25","مغنية","2ع ت01","بلهادي عبد القادر ",null,"ثانية","علوم تجريبية",1,251,"إلى يومنا هذا ",null,null,null,null,null,null,null,null,null,"أحمد على249 سيدي محمد ريان16"]
[250,1100313270254700,"أحمد على250","بومدين16","أنثى","2003-10-30","مغنية","2ع ت01","بن براهيم محمد ",null,"ثانية","علوم تجريبية",1,252,"إلى يومنا هذا ",null,null,null,null,null,null,null,null,null,"أحمد على250 بومدين16"]
[251,1100213270135300,"أحمد على251","محمد16","أنثى","2002-07-02","مغنية","2ع ت01","بن عبد الرحمن معزوز ",null,"ثانية","علوم تجريبية",1,253,"إلى يومنا هذا ",null,null,null,null,null,null,null,null,null,"أحمد على251 محمد16"]
[252,1100113270178100,"أحمد على252","فريال16","أنثى","2001-08-22","مغنية","2ع ت01","بورديم امحمد ",null,"ثانية","علوم تجريبية",1,254,"إلى يومنا هذا ",null,null,null,null,null,null,null,null,null,"أحمد على252 فريال16"]
[253,1000213270206200,"أحمد على253","مصطفى16","ذكر","2002-09-19","مغنية","2ع ت01","بوعربي عبد القادر ",null,"ثانية","علوم تجريبية",1,255,"إلى يومنا هذا ",null,null,null,null,null,null,null,null,null,"أحمد على253 مصطفى16"]
[254,1100313270268300,"أحمد على254","حسام16","أنثى","2003-11-17","مغنية","2ع ت01","بومدين واسيني ",null,"ثانية","علوم تجريبية",1,256,"إلى يومنا هذا ",null,null,null,null,null,null,null,null,null,"أحمد على254 حسام16"]
[255,1100313270145900,"أحمد على255","وسام16","أنثى","2003-07-05","مغنية","2ع ت01","تاجوري الشيخ ",null,"ثانية","علوم تجريبية",1,257,"إلى يومنا هذا ",null,null,null,null,null,null,null,null,null,"أحمد على255 وسام16"]
[256,1000013010481400,"أحمد على256","أسامة16","ذكر","2000-09-14","تلمسان","2ع ت01","تليسي واسيني ",null,"ثانية","علوم تجريبية",1,258,"إلى يومنا هذا ",null,null,null,null,null,null,null,null,null,"أحمد على256 أسامة16"]
[257,1100313270276100,"أحمد على257","سهام17","أنثى","2003-11-27","مغنية","2ع ت01","دخيسي رشيد ",null,"ثانية","علوم تجريبية",1,259,"إلى يومنا هذا ",null,null,null,null,null,null,null,null,null,"أحمد على257 سهام17"]
[258,1100313270009900,"أحمد على258","أحمد17","أنثى","2003-01-11","مغنية","2ع ت01","ديب عبد القادر ",null,"ثانية","علوم تجريبية",1,260,"إلى يومنا هذا ",null,null,null,null,null,null,null,null,null,{"$f":"C260 & \" \" &  D260","v":"أحمد على258 أحمد17"}]
[259,1100013270114900,"أحمد على259","نور الهدى17","أنثى","2000-06-06","مغنية","2ع ت01","راجعي محمد ",null,"ثانية","علوم تجريبية",1,261,"إلى يومنا هذا ",null,null,null,null,null,null,null,null,null,"أحمد على259 نور الهدى17"]
[260,1000113270259900,"أحمد على260","أسماء17","ذكر","2001-12-02","مغنية","2ع ت01","زحوط مصطفى ",null,"ثانية","علوم تجريبية",1,262,"إلى يومنا هذا ",null,null,null,null,null,null,null,null,null,"أحمد على260 أسماء17"]
[261,1100313270209900,"أحمد على261","إسماعيل17","أنثى","2003-09-09","مغنية","2ع ت01","زمور جمال ",null,"ثانية","علوم تجريبية",1,263,"إلى يومنا هذا ",null,null,null,null,null,null,null,null,null,"أحمد على261 إسماعيل17"]
[262,1100313270130600,"أحمد على262","وسام17","أنثى","2003-06-19","مغنية","2ع ت01","زيني محمد ",null,"ثانية","علوم تجريبية",1,264,"إلى يومنا هذا ",null,null,null,null,null,null,null,null,null,"أحمد على262 وسام17"]
[263,1100313270156400,"أحمد على263","عبد الصمد17","أنثى","2003-07-16","مغنية","2ع ت01","ساعد أحمد ",null,"ثانية","علوم تجريبية",1,265,"إلى يومنا هذا ",null,null,null,null,null,null,null,null,null,"أحمد على263 عبد الصمد17"]
[264,1100313270086100,"أحمد على264","انيس شرف الدين17","أنثى","2003-04-29","مغنية","2ع ت01","شارف مجاهد ",null,"ثانية","علوم تجريبية",1,266,"إلى يومنا هذا ",null,null,null,null,null,null,null,null,null,"أحمد على264 انيس شرف الدين17"]
[265,1100213270080300,"أحمد على265","سيدي محمد ريان17","أنثى","2002-04-28","مغنية","2ع ت01","طرشون محمد ",null,"ثانية","علوم تجريبية",1,267,"إلى يومنا هذا ",null,null,null,null,null,null,null,null,null,"أحمد على265 سيدي محمد ريان17"]
[266,1100313270155300,"أحمد على266","بومدين17","أنثى","2003-07-14","مغنية","2ع ت01","عبد المالك مصطفى ",null,"ثانية","علوم تجريبية",1,268,"إلى يومنا هذا ",null,null,null,null,null,null,null,null,null,"أحمد على266 بومدين17"]
[267,1100313270066600,"أحمد على267","محمد17","أنثى","2003-04-02","مغنية","2ع ت01","عمراوي جمال ",null,"ثانية","علوم تجريبية",1,269,"إلى يومنا هذا ",null,null,null,null,null,null,null,null,null,"أحمد على267 محمد17"]
[268,1000120140036300,"أحمد على268","فريال17","ذكر","2001-11-20","أولاد ابراهيم","2ع ت01","مجاطي محمد ",null,"ثانية","علوم تجريبية",1,270,"إلى يومنا هذا ",null,null,null,null,null,null,null,null,null,"أحمد على268 فريال17"]
[269,1100213270264300,"أحمد على269","مصطفى17","أنثى","2002-11-22","مغنية","2ع ت01","مساعدي أحمد ",null,"ثانية","علوم تجريبية",1,271,"إلى يومنا هذا ",null,null,null,null,null,null,null,null,null,"أحمد على269 مصطفى17"]
[270,1000213270245200,"أحمد على270","حسام17","ذكر","2002-11-01","مغنية","2ع ت01","مكي محمد ",null,"ثانية","علوم تجريبية",1,272,"إلى يومنا هذا ",null,null,null,null,null,null,null,null,null,"أحمد على270 حسام17"]
[271,1100313270052000,"أحمد على271","وسام17","أنثى","2003-03-06","مغنية","2ع ت01","ناير محمد ",null,"ثانية","علوم تجريبية",1,273,"إلى يومنا هذا ",null,null,null,null,null,null,null,null,null,"أحمد على271 وسام17"]
[272,1100213270058600,"أحمد على272","أسامة17","أنثى","2002-03-29","مغنية","2ع ت01","نواوي بن اعمر ",null,"ثانية","علوم تجريبية",1,274,"إلى يومنا هذا ",null,null,null,null,null,null,null,null,null,"أحمد على272 أسامة17"]
[273,1100346010305400,"أحمد على273","سهام18","أنثى","2003-11-16","عين تيموشنت","2ع ت01","أمريق مكي ",null,"ثانية","علوم تجريبية",1,275,"إلى يومنا هذا ",null,null,null,null,null,null,null,null,null,"أحمد على273 سهام18"]
[274,1000313270025900,"أحمد على274","أحمد18","ذكر","2003-02-01","مغنية","2ع ت01","بن منصور عبد الله ",null,"ثانية","علوم تجريبية",1,276,"إلى يومنا هذا ",null,null,null,null,null,null,null,null,null,"أحمد على274 أحمد18"]
[275,1100313270299900,"أحمد على275","نور الهدى18","أنثى","2003-12-27","مغنية","2ع ت01","بو الكرطوس جمال ",null,"ثانية","علوم تجريبية",1,277,"إلى يومنا هذا ",null,null,null,null,null,null,null,null,null,"أحمد على275 نور الهدى18"]
[276,1100313270062600,"أحمد على276","أسماء18","أنثى","2003-03-24","مغنية","2ع ت01","بوحفص عبد القادر ",null,"ثانية","علوم تجريبية",1,278,"إلى يومنا هذا ",null,null,null,null,null,null,null,null,null,"أحمد على276 أسماء18"]
[277,1000313070047400,"أحمد على277","إسماعيل18","ذكر","2003-06-22","الغزوات","2ع ت01","بوحلواس رشيد ",null,"ثانية","علوم تجريبية",1,279,"إلى يومنا هذا ",null,null,null,null,null,null,null,null,null,"أحمد على277 إسماعيل18"]
[278,1000313270233000,"أحمد على278","وسام18","ذكر","2003-10-05","مغنية","2ع ت01","دريسي بكاي ",null,"ثانية","علوم تجريبية",1,280,"إلى يومنا هذا ",null,null,null,null,null,null,null,null,null,"أحمد على278 وسام18"]
[279,1000313270247400,"أحمد على279","عبد الصمد18","ذكر","2003-10-22","مغنية","2ع ت01","رجالة لباس ",null,"ثانية","علوم تجريبية",1,281,"إلى يومنا هذا ",null,null,null,null,null,null,null,null,null,"أحمد على279 عبد الصمد18"]
[280,1100413270026600,"أحمد على280","انيس شرف الدين18","أنثى","2004-01-28","مغنية","2ع ت01","سحنون بلقاسم ",null,"ثانية","علوم تجريبية",1,282,"إلى يومنا هذا ",null,null,null,null,null,null,null,null,null,"أحمد على280 انيس شرف الدين18"]
[281,1100313270217500,"أحمد على281","سيدي محمد ريان18","أنثى","2003-09-17","مغنية","2ع ت01","شهبي عبد القادر ",null,"ثانية","علوم تجريبية",1,283,"إلى يومنا هذا ",null,null,null,null,null,null,null,null,null,"أحمد على281 سيدي محمد ريان18"]
[282,1100413270008100,"أحمد على282","بومدين18","أنثى","2004-01-11","مغنية","2ع ت01","طاهي فتحي ",null,"ثانية","علوم تجريبية",1,284,"إلى يومنا هذا ",null,null,null,null,null,null,null,null,null,"أحمد على282 بومدين18"]
[283,1100313270220000,"أحمد على283","محمد18","أنثى","2003-09-22","مغنية","2ع ت01","عبد المالك بومدين ",null,"ثانية","علوم تجريبية",1,285,"إلى يومنا هذا ",null,null,null,null,null,null,null,null,null,"أحمد على283 محمد18"]
[284,1100313270275700,"أحمد على284","فريال18","أنثى","2003-11-27","مغنية","2ع ت01","فدوحة مصطفى ",null,"ثانية","علوم تجريبية",1,286,"إلى يومنا هذا ",null,null,null,null,null,null,null,null,null,"أحمد على284 فريال18"]
[285,1100313270611400,"أحمد على285","مصطفى18","أنثى","2003-09-25","مغنية","2ع ت01","قليلة بلعباس ",null,"ثانية","علوم تجريبية",1,287,"إلى يومنا هذا ",null,null,null,null,null,null,null,null,null,"أحمد على285 مصطفى18"]
[286,1000313270057800,"أحمد على286","حسام18","ذكر","2003-03-16","مغنية","2ع ت01","لحسايني مصطفى ",null,"ثانية","علوم تجريبية",2,288,"إلى يومنا هذا ",null,null,null,null,null,null,null,null,null,"أحمد على286 حسام18"]
[287,1000413300000500,"أحمد على287","وسام18","ذكر","2004-01-01","مغنية","2ع ت01","واسطي سمير ",null,"ثانية","علوم تجريبية",2,289,"إلى يومنا هذا ",null,null,null,null,null,null,null,null,null,"أحمد على287 وسام18"]
[288,1100413270025800,"أحمد على288","أسامة18","أنثى","2004-01-29","مغنية","2ع ت02","أوشريف عبد اللطيف ",null,"ثانية","علوم تجريبية",2,290,"إلى يومنا هذا ",null,null,null,null,null,null,null,null,null,"أحمد على288 أسامة18"]
[289,1100313270056000,"أحمد على289","سهام19","أنثى","2003-01-06","مغنية","2ع ت02","اوراغي عبد الهادي ",null,"ثانية","علوم تجريبية",2,291,"إلى يومنا هذا ",null,null,null,null,null,null,null,null,null,"أحمد على289 سهام19"]
[290,1100313270010200,"أحمد على290","أحمد19","أنثى","2003-01-11","مغنية","2ع ت02","بلعباسي عمر ",null,"ثانية","علوم تجريبية",2,292,"إلى يومنا هذا ",null,null,null,null,null,null,null,null,null,"أحمد على290 أحمد19"]
[291,1100313270112100,"أحمد على291","نور الهدى19","أنثى","2003-05-31","مغنية","2ع ت02","بن ديدة ",null,"ثانية","علوم تجريبية",2,293,"إلى يومنا هذا ",null,null,null,null,null,null,null,null,null,"أحمد على291 نور الهدى19"]
[292,1100313270201700,"أحمد على292","أسماء19","أنثى","2003-09-01","مغنية","2ع ت02","بن صغير محمد ",null,"ثانية","علوم تجريبية",2,294,"إلى يومنا هذا ",null,null,null,null,null,null,null,null,null,"أحمد على292 أسماء19"]
[293,1100331010449800,"أحمد على293","إسماعيل19","أنثى","2003-04-29","وهران","2ع ت02","بن عزوز سليمان ",null,"ثانية","علوم تجريبية",2,295,"إلى يومنا هذا ",null,null,null,null,null,null,null,null,null,"أحمد على293 إسماعيل19"]
[294,1100313270062000,"أحمد على294","وسام19","أنثى","2003-03-23","مغنية","2ع ت02","بن عمارة عمر ",null,"ثانية","علوم تجريبية",2,296,"إلى يومنا هذا ",null,null,null,null,null,null,null,null,null,"أحمد على294 وسام19"]
[295,1100313270084200,"أحمد على295","عبد الصمد19","أنثى","2003-04-27","مغنية","2ع ت02","بواب عبد القادر ",null,"ثانية","علوم تجريبية",2,297,"إلى يومنا هذا ",null,null,null,null,null,null,null,null,null,"أحمد على295 عبد الصمد19"]
[296,1100313270060800,"أحمد على296","انيس شرف الدين19","أنثى","2003-03-21","مغنية","2ع ت02","بوتيتل اعمر ",null,"ثانية","علوم تجريبية",2,298,"إلى يومنا هذا ",null,null,null,null,null,null,null,null,null,"أحمد على296 انيس شرف الدين19"]
[297,1100313270227300,"أحمد على297","سيدي محمد ريان19","أنثى","2003-09-29","مغنية","2ع ت02","بوجلولي أحمد ",null,"ثانية","علوم تجريبية",2,299,"إلى يومنا هذا ",null,null,null,null,null,null,null,null,null,"أحمد على297 سيدي محمد ريان19"]
[298,1000313270228000,"أحمد على298","بومدين19","ذكر","2003-09-30","مغنية","2ع ت02","بوحفص مصطفى ",null,"ثانية","علوم تجريبية",2,300,"إلى يومنا هذا ",null,null,null,null,null,null,null,null,null,"أحمد على298 بومدين19"]
[299,1100313270129000,"أحمد على299","محمد19","أنثى","2003-06-17","مغنية","2ع ت02","تاوريت يحي ",null,"ثانية","علوم تجريبية",2,301,"إلى يومنا هذا ",null,null,null,null,null,null,null,null,null,"أحمد على299 محمد19"]
[300,1100313270124100,"أحمد على300","فريال19","أنثى","2003-06-14","مغنية","2ع ت02","جدودي عبد الرزاق ",null,"ثانية","علوم تجريبية",2,302,"إلى يومنا هذا ",null,null,null,null,null,null,null,null,null,"أحمد على300 فريال19"]
[301,1199913270255200,"أحمد على301","مصطفى19","أنثى","1999-12-09","مغنية","2ع ت02","جرودي احمد ",null,"ثانية","علوم تجريبية",2,303,"إلى يومنا هذا ",null,null,null,null,null,null,null,null,null,"أحمد على301 مصطفى19"]
[302,1100313270084500,"أحمد على302","حسام19","أنثى","2003-04-27","مغنية","2ع ت02","حرايق عبد الله ",null,"ثانية","علوم تجريبية",2,304,"إلى يومنا هذا ",null,null,null,null,null,null,null,null,null,"أحمد على302 حسام19"]
[303,1100113270089400,"أحمد على303","وسام19","أنثى","2001-05-07","مغنية","2ع ت02","حقاوي عبد القادر ",null,"ثانية","علوم تجريبية",2,305,"إلى يومنا هذا ",null,null,null,null,null,null,null,null,null,"أحمد على303 وسام19"]
[304,1100413270208000,"أحمد على304","أسامة19","أنثى","2004-08-03","مغنية","2ع ت02","خاليد أحمد ",null,"ثانية","علوم تجريبية",2,306,"إلى يومنا هذا ",null,null,null,null,null,null,null,null,null,"أحمد على304 أسامة19"]
[305,1100213270027800,"أحمد على305","سهام20","أنثى","2002-02-12","مغنية","2ع ت02","رحماني محمد ",null,"ثانية","علوم تجريبية",2,307,"إلى يومنا هذا ",null,null,null,null,null,null,null,null,null,"أحمد على305 سهام20"]
[306,1100113270059100,"أحمد على306","أحمد20","أنثى","2001-03-23","مغنية","2ع ت02","رفوفي محفوظ ",null,"ثانية","علوم تجريبية",2,308,"2019-02-06",null,null,null,null,null,null,null,null,null,"أحمد على306 أحمد20"]
[307,1100313270187300,"أحمد على307","نور الهدى20","أنثى","2003-08-15","مغنية","2ع ت02","رقاد بن عمر ",null,"ثانية","علوم تجريبية",2,309,"إلى يومنا هذا ",null,null,null,null,null,null,null,null,null,"أحمد على307 نور الهدى20"]
[308,1100313270048100,"أحمد على308","أسماء20","أنثى","2003-02-28","مغنية","2ع ت02","زحزوح محمد ",null,"ثانية","علوم تجريبية",2,310,"إلى يومنا هذا ",null,null,null,null,null,null,null,null,null,"أحمد على308 أسماء20"]
[309,1100313270224200,"أحمد على309","إسماعيل20","أنثى","2003-09-26","مغنية","2ع ت02","زماني نور الدين ",null,"ثانية","علوم تجريبية",2,311,"إلى يومنا هذا ",null,null,null,null,null,null,null,null,null,"أحمد على309 إسماعيل20"]
[310,1100313270234200,"أحمد على310","وسام20","أنثى","2003-10-07","مغنية","2ع ت02","عبابدي مجاهد ",null,"ثانية","علوم تجريبية",2,312,"إلى يومنا هذا ",null,null,null,null,null,null,null,null,null,"أحمد على310 وسام20"]
[311,1000313270173300,"أحمد على311","عبد الصمد20","ذكر","2003-07-31","مغنية","2ع ت02","عباسي ",null,"ثانية","علوم تجريبية",2,313,"إلى يومنا هذا ",null,null,null,null,null,null,null,null,null,"أحمد على311 عبد الصمد20"]
[312,1100413270028800,"أحمد على312","انيس شرف الدين20","أنثى","2004-02-03","مغنية","2ع ت02","عبد اللي أحمد ",null,"ثانية","علوم تجريبية",2,314,"إلى يومنا هذا ",null,null,null,null,null,null,null,null,null,"أحمد على312 انيس شرف الدين20"]
[313,1100313270285500,"أحمد على313","سيدي محمد ريان20","أنثى","2003-12-09","مغنية","2ع ت02","عبوين العيد ",null,"ثانية","علوم تجريبية",2,315,"إلى يومنا هذا ",null,null,null,null,null,null,null,null,null,"أحمد على313 سيدي محمد ريان20"]
[314,1100313270289500,"أحمد على314","بومدين20","أنثى","2003-12-14","مغنية","2ع ت02","علي بوتبان أحمد ",null,"ثانية","علوم تجريبية",2,316,"إلى يومنا هذا ",null,null,null,null,null,null,null,null,null,"أحمد على314 بومدين20"]
[315,1000213270035000,"أحمد على315","محمد20","ذكر","2002-02-20","مغنية","2ع ت02","قرقور بوزيان ",null,"ثانية","علوم تجريبية",2,317,"إلى يومنا هذا ",null,null,null,null,null,null,null,null,null,"أحمد على315 محمد20"]
[316,1000313270210200,"أحمد على316","فريال20","ذكر","2003-09-09","مغنية","2ع ت02","قطاية يوسف ",null,"ثانية","علوم تجريبية",2,318,"إلى يومنا هذا ",null,null,null,null,null,null,null,null,null,"أحمد على316 فريال20"]
[317,1000413010498100,"أحمد على317","مصطفى20","ذكر","2004-07-24","تلمسان","2ع ت02","مقداد عبد القادر ",null,"ثانية","علوم تجريبية",2,319,"إلى يومنا هذا ",null,null,null,null,null,null,null,null,null,"أحمد على317 مصطفى20"]
[318,1100213270161700,"أحمد على318","حسام20","أنثى","2002-03-31","مغنية","2ع ت02","مهنان الحاج ",null,"ثانية","علوم تجريبية",2,320,"إلى يومنا هذا ",null,null,null,null,null,null,null,null,null,"أحمد على318 حسام20"]
[319,1100313270209200,"أحمد على319","وسام20","أنثى","2003-09-09","مغنية","2ع ت02","إبراهيم جيلالي ",null,"ثانية","علوم تجريبية",2,321,"إلى يومنا هذا ",null,null,null,null,null,null,null,null,null,"أحمد على319 وسام20"]
[320,1000413270015800,"أحمد على320","أسامة20","ذكر","2004-01-18","مغنية","2ع ت02","العربي محمد ",null,"ثانية","علوم تجريبية",2,322,"إلى يومنا هذا ",null,null,null,null,null,null,null,null,null,"أحمد على320 أسامة20"]
[321,1100313270035300,"أحمد على321","سهام21","أنثى","2003-02-13","مغنية","2ع ت02","بلال نور الدين ",null,"ثانية","علوم تجريبية",2,323,"إلى يومنا هذا ",null,null,null,null,null,null,null,null,null,"أحمد على321 سهام21"]
[322,1100313270205500,"أحمد على322","أحمد21","أنثى","2003-09-04","مغنية","2ع ت02","بلخير فوزي ",null,"ثانية","علوم تجريبية",2,324,"إلى يومنا هذا ",null,null,null,null,null,null,null,null,null,{"$f":"C324 & \" \" &  D324","v":"أحمد على322 أحمد21"}]
[323,1000313270219800,"أحمد على323","نور الهدى21","ذكر","2003-09-23","مغنية","2ع ت02","بوسكين سيد احمد ",null,"ثانية","علوم تجريبية",2,325,"إلى يومنا هذا ",null,null,null,null,null,null,null,null,null,"أحمد على323 نور الهدى21"]
[324,1000413270036800,"أحمد على324","أسماء21","ذكر","2004-02-11","مغنية","2ع ت02","حامدي عبد الحميد ",null,"ثانية","علوم تجريبية",2,326,"إلى يومنا هذا ",null,null,null,null,null,null,null,null,null,"أحمد على324 أسماء21"]
[325,1000313010574900,"أحمد على325","إسماعيل21","ذكر","2003-09-09","تلمسان","2ع ت02","صحراوي حمزة ",null,"ثانية","آداب وفلسفة",1,327,"إلى يومنا هذا ",null,null,null,null,null,null,null,null,null,"أحمد على325 إسماعيل21"]
[326,1100313270149200,"أحمد على326","وسام21","أنثى","2003-07-09","مغنية","2ع ت02","معطى الله احمد ",null,"ثانية","آداب وفلسفة",1,328,"إلى يومنا هذا ",null,null,null,null,null,null,null,null,null,"أحمد على326 وسام21"]
[327,1000013270265000,"أحمد على327","عبد الصمد21","ذكر","2000-12-06","مغنية","2أ ف01","أحمودي أحمد ",null,"ثانية","آداب وفلسفة",1,329,"إلى يومنا هذا ",null,null,null,null,null,null,null,null,null,"أحمد على327 عبد الصمد21"]
[328,1000113270131500,"أحمد على328","انيس شرف الدين21","ذكر","2001-06-30","مغنية","2أ ف01","أمبارك بن عمر ",null,"ثانية","آداب وفلسفة",1,330,"إلى يومنا هذا ",null,null,null,null,null,null,null,null,null,"أحمد على328 انيس شرف الدين21"]
[329,1000313270256000,"أحمد على329","سيدي محمد ريان21","ذكر","2003-11-01","مغنية","2أ ف01","أمبارك أمحمد ",null,"ثانية","آداب وفلسفة",1,331,"إلى يومنا هذا ",null,null,null,null,null,null,null,null,null,"أحمد على329 سيدي محمد ريان21"]
[330,1000013270134700,"أحمد على330","بومدين21","ذكر","2000-07-01","مغنية","2أ ف01","الحاجي فوزي ",null,"ثانية","آداب وفلسفة",1,332,"إلى يومنا هذا ",null,null,null,null,null,null,null,null,null,"أحمد على330 بومدين21"]
[331,1000213270216000,"أحمد على331","محمد21","ذكر","2002-09-29","مغنية","2أ ف01","الشيخ عبد الرحمن ",null,"ثانية","آداب وفلسفة",1,333,"إلى يومنا هذا ",null,null,null,null,null,null,null,null,null,"أحمد على331 محمد21"]
[332,1000113270013700,"أحمد على332","فريال21","ذكر","2001-01-16","مغنية","2أ ف01","العابد واسيني ",null,"ثانية","آداب وفلسفة",1,334,"إلى يومنا هذا ",null,null,null,null,null,null,null,null,null,"أحمد على332 فريال21"]
[333,1000313270133500,"أحمد على333","مصطفى21","ذكر","2003-06-22","مغنية","2أ ف01","بارودي نور الدين ",null,"ثانية","آداب وفلسفة",1,335,"إلى يومنا هذا ",null,null,null,null,null,null,null,null,null,"أحمد على333 مصطفى21"]
[334,1000213270019500,"أحمد على334","حسام21","ذكر","2002-04-21","مغنية","2أ ف01","بشير محمد ",null,"ثانية","آداب وفلسفة",1,336,"إلى يومنا هذا ",null,null,null,null,null,null,null,null,null,"أحمد على334 حسام21"]
[335,1100313270252400,"أحمد على335","وسام21","أنثى","2003-10-27","مغنية","2أ ف01","بوشارب جمال ",null,"ثانية","آداب وفلسفة",1,337,"إلى يومنا هذا ",null,null,null,null,null,null,null,null,null,"أحمد على335 وسام21"]
[336,1100413270036900,"أحمد على336","أسامة21","أنثى","2004-02-11","مغنية","2أ ف01","بوشيبة قويدر ",null,"ثانية","آداب وفلسفة",1,338,"إلى يومنا هذا ",null,null,null,null,null,null,null,null,null,"أحمد على336 أسامة21"]
[337,1100213270055900,"أحمد على337","سهام22","أنثى","2002-03-24","مغنية","2أ ف01","بومدين محمد ",null,"ثانية","آداب وفلسفة",1,339,"إلى يومنا هذا ",null,null,null,null,null,null,null,null,null,"أحمد على337 سهام22"]
[338,1100313270204900,"أحمد على338","أحمد22","أنثى","2003-09-03","مغنية","2أ ف01","جديد عيسى ",null,"ثانية","آداب وفلسفة",1,340,"إلى يومنا هذا ",null,null,null,null,null,null,null,null,null,"أحمد على338 أحمد22"]
[339,1100313270168600,"أحمد على339","نور الهدى22","أنثى","2003-07-28","مغنية","2أ ف01","دخيسي هاشمي ",null,"ثانية","آداب وفلسفة",1,341,"إلى يومنا هذا ",null,null,null,null,null,null,null,null,null,"أحمد على339 نور الهدى22"]
[340,1100313270019600,"أحمد على340","أسماء22","أنثى","2003-01-24","مغنية","2أ ف01","دودوح واسيني ",null,"ثانية","آداب وفلسفة",1,342,"إلى يومنا هذا ",null,null,null,null,null,null,null,null,null,"أحمد على340 أسماء22"]
[341,1099913270107800,"أحمد على341","إسماعيل22","أنثى","1999-06-01","مغنية","2أ ف01","ديدي سغير ",null,"ثانية","آداب وفلسفة",1,343,"إلى يومنا هذا ",null,null,null,null,null,null,null,null,null,"أحمد على341 إسماعيل22"]
[342,1100213270179500,"أحمد على342","وسام22","أنثى","2002-08-18","مغنية","2أ ف01","راجعي عبد القادر ",null,"ثانية","آداب وفلسفة",1,344,"إلى يومنا هذا ",null,null,null,null,null,null,null,null,null,"أحمد على342 وسام22"]
[343,1000113270139800,"أحمد على343","عبد الصمد22","أنثى","2001-07-07","مغنية","2أ ف01","زروالي مخطار ",null,"ثانية","آداب وفلسفة",1,345,"إلى يومنا هذا ",null,null,null,null,null,null,null,null,null,"أحمد على343 عبد الصمد22"]
[344,1000013270017900,"أحمد على344","انيس شرف الدين22","ذكر","2000-01-24","مغنية","2أ ف01","سايح سعيد ",null,"ثانية","آداب وفلسفة",1,346,"إلى يومنا هذا ",null,null,null,null,null,null,null,null,null,"أحمد على344 انيس شرف الدين22"]
[345,1000313070015300,"أحمد على345","سيدي محمد ريان22","ذكر","2003-02-20","غزوات","2أ ف01","عايشي محمد ",null,"ثانية","آداب وفلسفة",1,347,"إلى يومنا هذا ",null,null,null,null,null,null,null,null,null,"أحمد على345 سيدي محمد ريان22"]
[346,1100313270136200,"أحمد على346","بومدين22","أنثى","2003-06-25","مغنية","2أ ف01","قبلي محمد ",null,"ثانية","آداب وفلسفة",1,348,"إلى يومنا هذا ",null,null,null,null,null,null,null,null,null,"أحمد على346 بومدين22"]
[347,1000213270239900,"أحمد على347","محمد22","ذكر","2002-10-27","مغنية","2أ ف01","لحلو زبير ",null,"ثانية","آداب وفلسفة",1,349,"إلى يومنا هذا ",null,null,null,null,null,null,null,null,null,"أحمد على347 محمد22"]
[348,1000113270267100,"أحمد على348","فريال22","ذكر","2001-12-09","مغنية","2أ ف01","لعموري محمد ",null,"ثانية","آداب وفلسفة",1,350,"إلى يومنا هذا ",null,null,null,null,null,null,null,null,null,"أحمد على348 فريال22"]
[349,1001214160005000,"أحمد على349","مصطفى22","ذكر","2003-01-09","السوقر","2أ ف01","مكاحلي أحمد ",null,"ثانية","آداب وفلسفة",1,351,"إلى يومنا هذا ",null,null,null,null,null,null,null,null,null,"أحمد على349 مصطفى22"]
[350,1100213270125200,"أحمد على350","حسام22","أنثى","2002-06-23","مغنية","2أ ف01","نوالي محمد ",null,"ثانية","آداب وفلسفة",1,352,"إلى يومنا هذا ",null,null,null,null,null,null,null,null,null,"أحمد على350 حسام22"]
[351,1000313270156800,"أحمد على351","وسام22","ذكر","2003-07-16","مغنية","2أ ف01","نوضاري بن سعيد ",null,"ثانية","آداب وفلسفة",1,353,"إلى يومنا هذا ",null,null,null,null,null,null,null,null,null,"أحمد على351 وسام22"]
[352,1100413270067700,"أحمد على352","أسامة22","أنثى","2004-03-20","مغنية","2أ ف01","اوحسين بومدين ",null,"ثانية","آداب وفلسفة",2,354,"إلى يومنا هذا ",null,null,null,null,null,null,null,null,null,"أحمد على352 أسامة22"]
[353,1100313270136000,"أحمد على353","سهام23","أنثى","2003-06-25","مغنية","2أ ف01","بن عبد الله مجاهد ",null,"ثانية","آداب وفلسفة",2,355,"إلى يومنا هذا ",null,null,null,null,null,null,null,null,null,"أحمد على353 سهام23"]
[354,1100213270066700,"أحمد على354","أحمد23","أنثى","2002-04-09","مغنية","2أ ف02","القناوي عمر ",null,"ثانية","آداب وفلسفة",2,356,"إلى يومنا هذا ",null,null,null,null,null,null,null,null,null,"أحمد على354 أحمد23"]
[355,1000413270032600,"أحمد على355","نور الهدى23","ذكر","2004-02-07","مغنية","2أ ف02","امبارك عبد العزيز ",null,"ثانية","آداب وفلسفة",2,357,"إلى يومنا هذا ",null,null,null,null,null,null,null,null,null,"أحمد على355 نور الهدى23"]
[356,1000113270028300,"أحمد على356","أسماء23","ذكر","2001-02-04","مغنية","2أ ف02","بن عبد الرحمن نصر الدين ",null,"ثانية","آداب وفلسفة",2,358,"إلى يومنا هذا ",null,null,null,null,null,null,null,null,null,"أحمد على356 أسماء23"]
[357,1100313270261800,"أحمد على357","إسماعيل23","أنثى","2003-11-09","مغنية","2أ ف02","بن عبد الله لطفي ",null,"ثانية","آداب وفلسفة",2,359,"إلى يومنا هذا ",null,null,null,null,null,null,null,null,null,"أحمد على357 إسماعيل23"]
[358,1000013270145000,"أحمد على358","وسام23","ذكر","2000-07-13","مغنية","2أ ف02","بن عراج قويدر ",null,"ثانية","آداب وفلسفة",2,360,"إلى يومنا هذا ",null,null,null,null,null,null,null,null,null,"أحمد على358 وسام23"]
[359,1100313270058600,"أحمد على359","عبد الصمد23","أنثى","2003-03-18","مغنية","2أ ف02","بن عيش زكرياء ",null,"ثانية","آداب وفلسفة",2,361,"إلى يومنا هذا ",null,null,null,null,null,null,null,null,null,"أحمد على359 عبد الصمد23"]
[360,1000413270024900,"أحمد على360","انيس شرف الدين23","ذكر","2004-01-28","مغنية","2أ ف02","بومدين نور الدين ",null,"ثانية","آداب وفلسفة",2,362,"إلى يومنا هذا ",null,null,null,null,null,null,null,null,null,"أحمد على360 انيس شرف الدين23"]
[361,1000113270107300,"أحمد على361","سيدي محمد ريان23","ذكر","2001-06-01","مغنية","2أ ف02","جزيري فتحي ",null,"ثانية","آداب وفلسفة",2,363,"إلى يومنا هذا ",null,null,null,null,null,null,null,null,null,"أحمد على361 سيدي محمد ريان23"]
[362,1100213270237200,"أحمد على362","بومدين23","أنثى","2002-10-24","مغنية","2أ ف02","حمادي نور الدين ",null,"ثانية","آداب وفلسفة",2,364,"إلى يومنا هذا ",null,null,null,null,null,null,null,null,null,"أحمد على362 بومدين23"]
[363,1100113010582000,"أحمد على363","محمد23","أنثى","2001-10-17","مغنية","2أ ف02","دواني بوزيان ",null,"ثانية","آداب وفلسفة",2,365,"إلى يومنا هذا ",null,null,null,null,null,null,null,null,null,"أحمد على363 محمد23"]
[364,1100113270283000,"أحمد على364","فريال23","أنثى","2001-12-31","مغنية","2أ ف02","شباني احمد ",null,"ثانية","آداب وفلسفة",2,366,"إلى يومنا هذا ",null,null,null,null,null,null,null,null,null,"أحمد على364 فريال23"]
[365,1100413270009000,"أحمد على365","مصطفى23","أنثى","2004-01-11","مغنية","2أ ف02","فتوحي واسيني ",null,"ثانية","آداب وفلسفة",2,367,"إلى يومنا هذا ",null,null,null,null,null,null,null,null,null,"أحمد على365 مصطفى23"]
[366,1100313270032200,"أحمد على366","حسام23","أنثى","2003-02-09","مغنية","2أ ف02","لعرج مامون ",null,"ثانية","آداب وفلسفة",2,368,"إلى يومنا هذا ",null,null,null,null,null,null,null,null,null,"أحمد على366 حسام23"]
[367,1100313270231500,"أحمد على367","وسام23","أنثى","2003-10-04","مغنية","2أ ف02","لكحل عبد الناصر ",null,"ثانية","آداب وفلسفة",2,369,"إلى يومنا هذا ",null,null,null,null,null,null,null,null,null,"أحمد على367 وسام23"]
[368,1100313270298300,"أحمد على368","أسامة23","أنثى","2003-12-25","مغنية","2أ ف02","مالكي زين الدين ",null,"ثانية","آداب وفلسفة",2,370,"إلى يومنا هذا ",null,null,null,null,null,null,null,null,null,"أحمد على368 أسامة23"]
[369,1100313270158400,"أحمد على369","سهام24","أنثى","2002-08-31","مغنية","2أ ف02","مجاهد نصر الدين ",null,"ثانية","آداب وفلسفة",2,371,"إلى يومنا هذا ",null,null,null,null,null,null,null,null,null,"أحمد على369 سهام24"]
[370,1100313270122500,"أحمد على370","أحمد24","أنثى","2003-06-12","مغنية","2أ ف02","محياوي مهدي ",null,"ثانية","آداب وفلسفة",2,372,"إلى يومنا هذا ",null,null,null,null,null,null,null,null,null,"أحمد على370 أحمد24"]
[371,1000113270127800,"أحمد على371","نور الهدى24","ذكر","2001-06-25","مغنية","2أ ف02","مزيان",null,"ثانية","آداب وفلسفة",2,373,"إلى يومنا هذا ",null,null,null,null,null,null,null,null,null,"أحمد على371 نور الهدى24"]
[372,1100213270005100,"أحمد على372","أسماء24","أنثى","2002-07-01","مغنية","2أ ف02","مصنف محمد ",null,"ثانية","آداب وفلسفة",2,374,"إلى يومنا هذا ",null,null,null,null,null,null,null,null,null,"أحمد على372 أسماء24"]
[373,1100413270027000,"أحمد على373","إسماعيل24","أنثى","2004-01-31","مغنية","2أ ف02","مقدم أحمد ",null,"ثانية","آداب وفلسفة",2,375,"2019-06-30",null,null,null,null,null,null,null,null,null,"أحمد على373 إسماعيل24"]
[374,1100013390001300,"أحمد على374","وسام24","أنثى","2000-03-18","مرسى بن مهيدي","2أ ف02","ميلود عبيد بلقاسم ",null,"ثانية","آداب وفلسفة",2,376,"إلى يومنا هذا ",null,null,null,null,null,null,null,null,null,"أحمد على374 وسام24"]
[375,8400107600182500,"أحمد على375","عبد الصمد24","ذكر","2001-01-01","سوريا","2أ ف02","نوار محمد ",null,"ثانية","آداب وفلسفة",2,377,"إلى يومنا هذا ",null,null,null,null,null,null,null,null,null,"أحمد على375 عبد الصمد24"]
[376,1100213270186700,"أحمد على376","انيس شرف الدين24","أنثى","2002-08-26","مغنية","2أ ف02","وزاني نور الدين ",null,"ثانية","آداب وفلسفة",2,378,"إلى يومنا هذا ",null,null,null,null,null,null,null,null,null,"أحمد على376 انيس شرف الدين24"]
[377,1100313270142900,"أحمد على377","سيدي محمد ريان24","أنثى","2003-07-01","مغنية","2أ ف02","الدباس حسن ",null,"ثانية","آداب وفلسفة",2,379,"إلى يومنا هذا ",null,null,null,null,null,null,null,null,null,"أحمد على377 سيدي محمد ريان24"]
[378,1000113270251300,"أحمد على378","بومدين24","ذكر","2001-11-20","مغنية","2أ ف02","مخوخي بومدين",null,"ثانية","لغات أجنبية",1,381,"إلى يومنا هذا ",null,null,null,null,null,null,null,null,null,"أحمد على378 بومدين24"]
[379,1100313270265800,"أحمد على379","محمد24","أنثى","2003-11-14","مغنية","2أ ف02","حواسة محمد ",null,"ثانية","لغات أجنبية",1,382,"إلى يومنا هذا ",null,null,null,null,null,null,null,null,null,"أحمد على379 محمد24"]
[380,1100313270138000,"أحمد على380","فريال24","أنثى","2003-06-26","مغنية","2لغات","العرباوي أحمد ",null,"ثانية","لغات أجنبية",1,383,"إلى يومنا هذا ",null,null,null,null,null,null,null,null,null,"أحمد على380 فريال24"]
[381,1000313270218200,"أحمد على381","مصطفى24","ذكر","2003-09-18","مغنية","2لغات","الهلالي نور الدين ",null,"ثانية","لغات أجنبية",1,384,"إلى يومنا هذا ",null,null,null,null,null,null,null,null,null,"أحمد على381 مصطفى24"]
[382,1000113270199500,"أحمد على382","حسام24","ذكر","2001-09-17","مغنية","2لغات","بضياف أحمد ",null,"ثانية","لغات أجنبية",1,385,"إلى يومنا هذا ",null,null,null,null,null,null,null,null,null,"أحمد على382 حسام24"]
[383,1100313010575100,"أحمد على383","وسام24","أنثى","2003-09-09","تلمسان","2لغات","بن حمو صالح ",null,"ثانية","لغات أجنبية",1,386,"إلى يومنا هذا ",null,null,null,null,null,null,null,null,null,"أحمد على383 وسام24"]
[384,1100313270051200,"أحمد على384","أسامة24","أنثى","2003-03-05","مغنية","2لغات","بن عبد الرحمن توهامي ",null,"ثانية","لغات أجنبية",1,387,"إلى يومنا هذا ",null,null,null,null,null,null,null,null,null,"أحمد على384 أسامة24"]
[385,1100313270100400,"أحمد على385","سهام25","أنثى","2003-05-18","مغنية","2لغات","بن عمارة محمد ",null,"ثانية","لغات أجنبية",1,388,"إلى يومنا هذا ",null,null,null,null,null,null,null,null,null,"أحمد على385 سهام25"]
[386,1100213270102000,"أحمد على386","أحمد25","أنثى","2002-05-27","مغنية","2لغات","بورديم لخضر ",null,"ثانية","لغات أجنبية",1,389,"إلى يومنا هذا ",null,null,null,null,null,null,null,null,null,{"$f":"C388 & \" \" &  D388","v":"أحمد على386 أحمد25"}]
[387,1000113270052200,"أحمد على387","نور الهدى25","ذكر","2001-03-12","مغنية","2لغات","بوزيان جمال ",null,"ثانية","لغات أجنبية",1,390,"إلى يومنا هذا ",null,null,null,null,null,null,null,null,null,"أحمد على387 نور الهدى25"]
[388,1100413270015900,"أحمد على388","أسماء25","أنثى","2004-01-18","مغنية","2لغات","بوعرفة نصر الدين ",null,"ثانية","لغات أجنبية",1,391,"إلى يومنا هذا ",null,null,null,null,null,null,null,null,null,"أحمد على388 أسماء25"]
[389,1100313270203500,"أحمد على389","إسماعيل25","أنثى","2003-09-03","مغنية","2لغات","بومدين محمد ",null,"ثانية","لغات أجنبية",1,392,"إلى يومنا هذا ",null,null,null,null,null,null,null,null,null,"أحمد على389 إسماعيل25"]
[390,1000113270154600,"أحمد على390","وسام25","ذكر","2001-07-24","مغنية","2لغات","بومدين أحمد ",null,"ثانية","لغات أجنبية",1,393,"إلى يومنا هذا ",null,null,null,null,null,null,null,null,null,"أحمد على390 وسام25"]
[391,1000313270207400,"أحمد على391","عبد الصمد25","أنثى","2003-09-06","مغنية","2لغات","حدبي ميلود ",null,"ثانية","لغات أجنبية",1,394,"إلى يومنا هذا ",null,null,null,null,null,null,null,null,null,"أحمد على391 عبد الصمد25"]
[392,1100313270139100,"أحمد على392","انيس شرف الدين25","أنثى","2003-06-27","مغنية","2لغات","حمادي محمد ",null,"ثانية","لغات أجنبية",1,395,"إلى يومنا هذا ",null,null,null,null,null,null,null,null,null,"أحمد على392 انيس شرف الدين25"]
[393,1100313270046400,"أحمد على393","سيدي محمد ريان25","أنثى","2003-02-26","مغنية","2لغات","خش جمال ",null,"ثانية","لغات أجنبية",1,396,"إلى يومنا هذا ",null,null,null,null,null,null,null,null,null,"أحمد على393 سيدي محمد ريان25"]
[394,1100113270209500,"أحمد على394","بومدين25","أنثى","2001-10-30","مغنية","2لغات","دف عبد القادر ",null,"ثانية","لغات أجنبية",1,397,"إلى يومنا هذا ",null,null,null,null,null,null,null,null,null,"أحمد على394 بومدين25"]
[395,1000022450002400,"أحمد على395","محمد25","ذكر","2000-01-08","بن باديس","2لغات","شهراوي عبد القادر ",null,"ثانية","لغات أجنبية",1,398,"إلى يومنا هذا ",null,null,null,null,null,null,null,null,null,"أحمد على395 محمد25"]
[396,1000313270125800,"أحمد على396","فريال25","ذكر","2003-06-15","مغنية","2لغات","صباحي عبد الحق ",null,"ثانية","لغات أجنبية",1,399,"إلى يومنا هذا ",null,null,null,null,null,null,null,null,null,"أحمد على396 فريال25"]
[397,1100313270075500,"أحمد على397","مصطفى25","أنثى","2003-04-14","مغنية","2لغات","صحراوي حميد ",null,"ثانية","لغات أجنبية",1,400,"إلى يومنا هذا ",null,null,null,null,null,null,null,null,null,"أحمد على397 مصطفى25"]
[398,1000213270246400,"أحمد على398","حسام25","ذكر","2002-01-05","مغنية","2لغات","طاهري أحمد ",null,"ثانية","لغات أجنبية",1,401,"إلى يومنا هذا ",null,null,null,null,null,null,null,null,null,"أحمد على398 حسام25"]
[399,1100313270104300,"أحمد على399","وسام25","أنثى","2003-05-22","مغنية","2لغات","طواع يزيد ",null,"ثانية","لغات أجنبية",1,402,"إلى يومنا هذا ",null,null,null,null,null,null,null,null,null,"أحمد على399 وسام25"]
[400,1100213270206100,"أحمد على400","أسامة25","أنثى","2002-09-19","مغنية","2لغات","قاشور نور الدين ",null,"ثانية","لغات أجنبية",1,403,"إلى يومنا هذا ",null,null,null,null,null,null,null,null,null,"أحمد على400 أسامة25"]
[401,1100413270146200,"أحمد على401","سهام26","أنثى","2004-06-19","مغنية","2لغات","مزاري الطيب ",null,"ثانية","لغات أجنبية",1,404,"إلى يومنا هذا ",null,null,null,null,null,null,null,null,null,"أحمد على401 سهام26"]
[402,1100313270044800,"أحمد على402","أحمد26","أنثى","2003-02-24","مغنية","2لغات","أوشريف علي ",null,"ثانية","لغات أجنبية",1,405,"إلى يومنا هذا ",null,null,null,null,null,null,null,null,null,"أحمد على402 أحمد26"]
[403,1100313270281500,"أحمد على403","نور الهدى26","أنثى","2003-12-03","مغنية","2لغات","ايلاس علي ",null,"ثانية","لغات أجنبية",1,406,"إلى يومنا هذا ",null,null,null,null,null,null,null,null,null,"أحمد على403 نور الهدى26"]
[404,1100213270044400,"أحمد على404","أسماء26","أنثى","2002-03-08","مغنية","2لغات","بلعباس يحي ",null,"ثانية","لغات أجنبية",1,407,"إلى يومنا هذا ",null,null,null,null,null,null,null,null,null,"أحمد على404 أسماء26"]
[405,1100346010234500,"أحمد على405","إسماعيل26","أنثى","2003-08-31","عين تموشنت","2لغات","بوزيان ميلود ",null,"ثانية","لغات أجنبية",1,408,"إلى يومنا هذا ",null,null,null,null,null,null,null,null,null,"أحمد على405 إسماعيل26"]
[406,1100313270226300,"أحمد على406","وسام26","أنثى","2003-09-29","مغنية","2لغات","شارف أحمد ",null,"ثانية","لغات أجنبية",1,409,"إلى يومنا هذا ",null,null,null,null,null,null,null,null,null,"أحمد على406 وسام26"]
[407,1100413270204300,"أحمد على407","عبد الصمد26","أنثى","2004-07-31","مغنية","2لغات","شارف أحمد ",null,"أولى","جدع مشترك علوم وتكنولوجيا",1,410,"إلى يومنا هذا ",null,null,null,null,null,null,null,null,null,"أحمد على407 عبد الصمد26"]
[408,1100513270050800,"أحمد على408","انيس شرف الدين26","أنثى","2005-02-28","مغنية","2لغات","عجاج احمد ",null,"أولى","جدع مشترك علوم وتكنولوجيا",1,411,"إلى يومنا هذا ",null,null,null,null,null,null,null,null,null,"أحمد على408 انيس شرف الدين26"]
[409,1100413270069100,"أحمد على409","سيدي محمد ريان26","أنثى","2004-03-23","مغنية","2لغات","مبيتيل فتحي ",null,"أولى","جدع مشترك علوم وتكنولوجيا",1,412,"إلى يومنا هذا ",null,null,null,null,null,null,null,null,null,"أحمد على409 سيدي محمد ريان26"]
[410,1100413270219800,"أحمد على410","بومدين26","أنثى","2004-08-14","مغنية","1ع1","العرابي نور الدين ",null,"أولى","جدع مشترك علوم وتكنولوجيا",1,413,"إلى يومنا هذا ",null,null,null,null,null,null,null,null,null,"أحمد على410 بومدين26"]
[411,1000113270109800,"أحمد على411","محمد26","ذكر","2001-06-05","مغنية","1ع1","العربي سيدي محمد ",null,"أولى","جدع مشترك علوم وتكنولوجيا",1,414,"إلى يومنا هذا ",null,null,null,null,null,null,null,null,null,"أحمد على411 محمد26"]
[412,1100413270153100,"أحمد على412","فريال26","أنثى","2004-06-23","مغنية","1ع1","الفضيل نور الدين ",null,"أولى","جدع مشترك علوم وتكنولوجيا",1,415,"إلى يومنا هذا ",null,null,null,null,null,null,null,null,null,"أحمد على412 فريال26"]
[413,1100413270079200,"أحمد على413","مصطفى26","أنثى","2004-04-06","مغنية","1ع1","امبارك هواري ",null,"أولى","جدع مشترك علوم وتكنولوجيا",1,416,"إلى يومنا هذا ",null,null,null,null,null,null,null,null,null,"أحمد على413 مصطفى26"]
[414,5000402500329400,"أحمد على414","حسام26","ذكر","2004-09-30","سان دني","1ع1","اير حسين ",null,"أولى","جدع مشترك علوم وتكنولوجيا",1,417,"إلى يومنا هذا ",null,null,null,null,null,null,null,null,null,"أحمد على414 حسام26"]
[415,1000213270167800,"أحمد على415","وسام26","ذكر","2002-05-05","مغنية","1ع1","بطيب محمد ",null,"أولى","جدع مشترك علوم وتكنولوجيا",1,418,"إلى يومنا هذا ",null,null,null,null,null,null,null,null,null,"أحمد على415 وسام26"]
[416,1100313270072700,"أحمد على416","أسامة26","أنثى","2003-04-12","مغنية","1ع1","بن دلاع حسين ",null,"أولى","جدع مشترك علوم وتكنولوجيا",1,419,"إلى يومنا هذا ",null,null,null,null,null,null,null,null,null,"أحمد على416 أسامة26"]
[417,1100413270250600,"أحمد على417","سهام27","أنثى","2004-09-14","مغنية","1ع1","بوشام محمد ",null,"أولى","جدع مشترك علوم وتكنولوجيا",1,420,"إلى يومنا هذا ",null,null,null,null,null,null,null,null,null,"أحمد على417 سهام27"]
[418,1100413270292300,"أحمد على418","أحمد27","أنثى","2004-10-22","مغنية","1ع1","جبارة عبدالقادر ",null,"أولى","جدع مشترك علوم وتكنولوجيا",1,421,"إلى يومنا هذا ",null,null,null,null,null,null,null,null,null,"أحمد على418 أحمد27"]
[419,1000413270122200,"أحمد على419","نور الهدى27","ذكر","2004-05-27","مغنية","1ع1","خلادي زوبير ",null,"أولى","جدع مشترك علوم وتكنولوجيا",1,422,"إلى يومنا هذا ",null,null,null,null,null,null,null,null,null,"أحمد على419 نور الهدى27"]
[420,1100313270204500,"أحمد على420","أسماء27","أنثى","2003-09-03","مغنية","1ع1","خواني ابراهيم ",null,"أولى","جدع مشترك علوم وتكنولوجيا",1,423,"إلى يومنا هذا ",null,null,null,null,null,null,null,null,null,"أحمد على420 أسماء27"]
[421,1100413270003000,"أحمد على421","إسماعيل27","أنثى","2004-01-05","مغنية","1ع1","راجعي مصطفى ",null,"أولى","جدع مشترك علوم وتكنولوجيا",1,424,"إلى يومنا هذا ",null,null,null,null,null,null,null,null,null,"أحمد على421 إسماعيل27"]
[422,1100431010460900,"أحمد على422","وسام27","أنثى","2004-09-18","وهران","1ع1","زحزوح فريد ",null,"أولى","جدع مشترك علوم وتكنولوجيا",1,425,"إلى يومنا هذا ",null,null,null,null,null,null,null,null,null,"أحمد على422 وسام27"]
[423,1000413270257000,"أحمد على423","عبد الصمد27","ذكر","2004-09-20","مغنية","1ع1","سلومي رمضان ",null,"أولى","جدع مشترك علوم وتكنولوجيا",1,426,"إلى يومنا هذا ",null,null,null,null,null,null,null,null,null,"أحمد على423 عبد الصمد27"]
[424,1000413270187400,"أحمد على424","انيس شرف الدين27","ذكر","2004-07-17","مغنية","1ع1","شارف بلخير ",null,"أولى","جدع مشترك علوم وتكنولوجيا",1,427,"إلى يومنا هذا ",null,null,null,null,null,null,null,null,null,"أحمد على424 انيس شرف الدين27"]
[425,1100413270221000,"أحمد على425","سيدي محمد ريان27","أنثى","2004-04-18","تلمسان","1ع1","شبيب نور الدين ",null,"أولى","جدع مشترك علوم وتكنولوجيا",1,428,"إلى يومنا هذا ",null,null,null,null,null,null,null,null,null,"أحمد على425 سيدي محمد ريان27"]
[426,1000413270116800,"أحمد على426","بومدين27","ذكر","2004-05-22","مغنية","1ع1","عيساني محمد ",null,"أولى","جدع مشترك علوم وتكنولوجيا",1,429,"إلى يومنا هذا ",null,null,null,null,null,null,null,null,null,"أحمد على426 بومدين27"]
[427,1000413270193800,"أحمد على427","محمد27","ذكر","2004-07-22","مغنية","1ع1","قرد حمدون ",null,"أولى","جدع مشترك علوم وتكنولوجيا",1,430,"إلى يومنا هذا ",null,null,null,null,null,null,null,null,null,"أحمد على427 محمد27"]
[428,1000413270293000,"أحمد على428","فريال27","ذكر","2004-10-23","مغنية","1ع1","لحمر رشيد ",null,"أولى","جدع مشترك علوم وتكنولوجيا",1,431,"إلى يومنا هذا ",null,null,null,null,null,null,null,null,null,"أحمد على428 فريال27"]
[429,1000216170224300,"أحمد على429","مصطفى27","ذكر","2002-06-27","حسين داي","1ع1","مبرك جواد ",null,"أولى","جدع مشترك علوم وتكنولوجيا",1,432,"إلى يومنا هذا ",null,null,null,null,null,null,null,null,null,"أحمد على429 مصطفى27"]
[430,1000513270064500,"أحمد على430","حسام27","ذكر","2005-03-16","مغنية","1ع1","هواري لخضر ",null,"أولى","جدع مشترك علوم وتكنولوجيا",1,433,"إلى يومنا هذا ",null,null,null,null,null,null,null,null,null,"أحمد على430 حسام27"]
[431,1100413270077400,"أحمد على431","وسام27","أنثى","2004-04-04","مغنية","1ع1","أجد بشير ",null,"أولى","جدع مشترك علوم وتكنولوجيا",1,434,"إلى يومنا هذا ",null,null,null,null,null,null,null,null,null,"أحمد على431 وسام27"]
[432,1100413270115400,"أحمد على432","أسامة27","أنثى","2004-05-21","مغنية","1ع1","بوجمعة احمد ",null,"أولى","جدع مشترك علوم وتكنولوجيا",1,435,"إلى يومنا هذا ",null,null,null,null,null,null,null,null,null,"أحمد على432 أسامة27"]
[433,1100413270121400,"أحمد على433","سهام28","أنثى","2004-05-27","مغنية","1ع1","حمادي عبد الرحمن ",null,"أولى","جدع مشترك علوم وتكنولوجيا",1,436,"إلى يومنا هذا ",null,null,null,null,null,null,null,null,null,"أحمد على433 سهام28"]
[434,1000313270289100,"أحمد على434","أحمد28","ذكر","2003-12-14","مغنية","1ع1","زياني الأول امحمد ",null,"أولى","جدع مشترك علوم وتكنولوجيا",1,437,"إلى يومنا هذا ",null,null,null,null,null,null,null,null,null,"أحمد على434 أحمد28"]
[435,1000413270046500,"أحمد على435","نور الهدى28","ذكر","2004-11-09","مغنية","1ع1","سايح عمر ",null,"أولى","جدع مشترك علوم وتكنولوجيا",1,438,"إلى يومنا هذا ",null,null,null,null,null,null,null,null,null,"أحمد على435 نور الهدى28"]
[436,1000413270111200,"أحمد على436","أسماء28","ذكر","2004-05-17","مغنية","1ع1","كرعي عبد الناصر ",null,"أولى","جدع مشترك علوم وتكنولوجيا",1,439,"إلى يومنا هذا ",null,null,null,null,null,null,null,null,null,"أحمد على436 أسماء28"]
[437,1100313270128600,"أحمد على437","إسماعيل28","أنثى","2003-06-17","مغنية","1ع1","منصوري ميمون ",null,"أولى","جدع مشترك علوم وتكنولوجيا",2,441,"إلى يومنا هذا ",null,null,null,null,null,null,null,null,null,"أحمد على437 إسماعيل28"]
[438,1000113270208700,"أحمد على438","وسام28","ذكر","2001-09-30","مغنية","1ع1","منيري حمزة ",null,"أولى","جدع مشترك علوم وتكنولوجيا",2,442,"إلى يومنا هذا ",null,null,null,null,null,null,null,null,null,"أحمد على438 وسام28"]
[439,1100413270151900,"أحمد على439","عبد الصمد28","أنثى","2004-06-22","مغنية","1ع1","موقاس نصرالدين ",null,"أولى","جدع مشترك علوم وتكنولوجيا",2,443,"إلى يومنا هذا ",null,null,null,null,null,null,null,null,null,"أحمد على439 عبد الصمد28"]
[440,1000213270148700,"أحمد على440","انيس شرف الدين28","ذكر","2002-07-17","مغنية","1ع2","ميلودي مصطفى ",null,"أولى","جدع مشترك علوم وتكنولوجيا",2,444,"إلى يومنا هذا ",null,null,null,null,"خ1",null,null,null,null,"أحمد على440 انيس شرف الدين28"]
[441,1000413270333600,"أحمد على441","سيدي محمد ريان28","ذكر","2004-12-04","مغنية","1ع2","العابد بن اعمر ",null,"أولى","جدع مشترك علوم وتكنولوجيا",2,445,"إلى يومنا هذا ",null,null,null,null,null,null,null,null,null,"أحمد على441 سيدي محمد ريان28"]
[442,1000313270100300,"أحمد على442","بومدين28","ذكر","2003-05-18","مغنية","1ع2","برازي محمد ",null,"أولى","جدع مشترك علوم وتكنولوجيا",2,446,"إلى يومنا هذا ",null,null,null,null,null,null,null,null,null,"أحمد على442 بومدين28"]
[443,1000313270159700,"أحمد على443","محمد28","ذكر","2003-07-20","مغنية","1ع2","بلطرش عبد القادر ",null,"أولى","جدع مشترك علوم وتكنولوجيا",2,447,"إلى يومنا هذا ",null,null,null,null,null,null,null,null,null,"أحمد على443 محمد28"]
[444,1100413270338900,"أحمد على444","فريال28","أنثى","2004-12-08","مغنية","1ع2","بن سالم الطيب ",null,"أولى","جدع مشترك علوم وتكنولوجيا",2,449,"إلى يومنا هذا ",null,null,null,null,null,null,null,null,null,"أحمد على444 فريال28"]
[445,1100213270171200,"أحمد على445","مصطفى28","أنثى","2002-08-08","مغنية","1ع2","بن طيب نور الدين ",null,"أولى","جدع مشترك علوم وتكنولوجيا",2,450,"إلى يومنا هذا ",null,null,null,null,null,null,null,null,null,"أحمد على445 مصطفى28"]
[446,1100213270228700,"أحمد على446","حسام28","أنثى","2004-08-22","مغنية","1ع2","بورديم موفق ",null,"أولى","جدع مشترك علوم وتكنولوجيا",2,451,"إلى يومنا هذا ",null,null,null,null,null,null,null,null,null,"أحمد على446 حسام28"]
[447,1000313270261100,"أحمد على447","وسام28","ذكر","2003-11-08","مغنية","1ع2","بوزيان محمد ",null,"أولى","جدع مشترك علوم وتكنولوجيا",2,452,"إلى يومنا هذا ",null,null,null,null,null,null,null,null,null,"أحمد على447 وسام28"]
[448,1000313270030300,"أحمد على448","أسامة28","ذكر","2003-02-06","مغنية","1ع2","بوزيان مصطفى ",null,"أولى","جدع مشترك علوم وتكنولوجيا",2,453,"إلى يومنا هذا ",null,null,null,null,null,null,null,null,null,"أحمد على448 أسامة28"]
[449,1100413270089600,"أحمد على449","سهام29","أنثى","2004-04-20","مغنية","1ع2","بومدين أحمد ",null,"أولى","جدع مشترك علوم وتكنولوجيا",2,454,"إلى يومنا هذا ",null,null,null,null,null,null,null,null,null,"أحمد على449 سهام29"]
[450,1000246010009900,"أحمد على450","أحمد29","ذكر","2002-01-12","عين تيموشنت","1ع2","حمادي امبارك ",null,"أولى","جدع مشترك علوم وتكنولوجيا",2,455,"إلى يومنا هذا ",null,null,null,null,null,null,null,null,null,{"$f":"C452 & \" \" &  D452","v":"أحمد على450 أحمد29"}]
[451,1000413270236600,"أحمد على451","نور الهدى29","ذكر","2004-08-30","مغنية","1ع2","داري العيد ",null,"أولى","جدع مشترك علوم وتكنولوجيا",2,456,"إلى يومنا هذا ",null,null,null,null,null,null,null,null,null,"أحمد على451 نور الهدى29"]
[452,1000513270054500,"أحمد على452","أسماء29","ذكر","2005-03-05","مغنية","1ع2","رحال محمد ",null,"أولى","جدع مشترك علوم وتكنولوجيا",2,457,"إلى يومنا هذا ",null,null,null,null,null,null,null,null,null,"أحمد على452 أسماء29"]
[453,1100313270092300,"أحمد على453","إسماعيل29","أنثى","2003-05-08","مغنية","1ع2","زاوي الشيخ ",null,"أولى","جدع مشترك علوم وتكنولوجيا",2,458,"إلى يومنا هذا ",null,null,null,null,null,null,null,null,null,"أحمد على453 إسماعيل29"]
[454,1000413270260800,"أحمد على454","وسام29","ذكر","2004-09-25","مغنية","1ع2"," شواو محمد ",null,"أولى","جدع مشترك علوم وتكنولوجيا",2,459,"إلى يومنا هذا ",null,null,null,null,null,null,null,null,null,"أحمد على454 وسام29"]
[455,1100413270500500,"أحمد على455","عبد الصمد29","أنثى","2004-07-24","مغنية","1ع2","شيخ عبد الكريم  عبد الكريم ",null,"أولى","جدع مشترك علوم وتكنولوجيا",2,460,"إلى يومنا هذا ",null,null,null,null,null,null,null,null,null,"أحمد على455 عبد الصمد29"]
[456,1000413270196900,"أحمد على456","انيس شرف الدين29","ذكر","2004-07-24","مغنية","1ع2","عفاني مصطفى ",null,"أولى","جدع مشترك علوم وتكنولوجيا",2,461,"إلى يومنا هذا ",null,null,null,null,null,null,null,null,null,"أحمد على456 انيس شرف الدين29"]
[457,1100413270338000,"أحمد على457","سيدي محمد ريان29","أنثى","2004-12-07","مغنية","1ع2","علواني الشيخ ",null,"أولى","جدع مشترك علوم وتكنولوجيا",2,462,"إلى يومنا هذا ",null,null,null,null,null,null,null,null,null,"أحمد على457 سيدي محمد ريان29"]
[458,1100413270316300,"أحمد على458","بومدين29","أنثى","2004-11-17","مغنية","1ع2","قرد حمدون ",null,"أولى","جدع مشترك علوم وتكنولوجيا",2,463,"إلى يومنا هذا ",null,null,null,null,null,null,null,null,null,"أحمد على458 بومدين29"]
[459,1100413270048500,"أحمد على459","محمد29","أنثى","2004-02-25","مغنية","1ع2","كبيب محمد ",null,"أولى","جدع مشترك علوم وتكنولوجيا",2,464,"إلى يومنا هذا ",null,null,null,null,null,null,null,null,null,"أحمد على459 محمد29"]
[460,1000313270214800,"أحمد على460","فريال29","ذكر","2003-09-15","مغنية","1ع2","مصار عبدالله ",null,"أولى","جدع مشترك علوم وتكنولوجيا",2,465,"إلى يومنا هذا ",null,null,null,null,null,null,null,null,null,"أحمد على460 فريال29"]
[461,1100413270193900,"أحمد على461","مصطفى29","أنثى","2004-07-22","مغنية","1ع2","مصمودي فتحي ",null,"أولى","جدع مشترك علوم وتكنولوجيا",2,466,"إلى يومنا هذا ",null,null,null,null,null,null,null,null,null,"أحمد على461 مصطفى29"]
[462,1000313271032800,"أحمد على462","حسام29","ذكر","2003-09-02","مغنية","1ع2","مقدم لخضر ",null,"أولى","جدع مشترك علوم وتكنولوجيا",2,467,"إلى يومنا هذا ",null,null,null,null,null,null,null,null,null,"أحمد على462 حسام29"]
[463,1100313270109700,"أحمد على463","وسام29","أنثى","2003-12-21","مغنية","1ع2","مواليد شعبان ",null,"أولى","جدع مشترك علوم وتكنولوجيا",2,468,"إلى يومنا هذا ",null,null,null,null,null,null,null,null,null,"أحمد على463 وسام29"]
[464,1100513270044000,"أحمد على464","أسامة29","أنثى","2005-02-20","مغنية","1ع2","نوالي لخضر ",null,"أولى","جدع مشترك علوم وتكنولوجيا",2,469,"إلى يومنا هذا ",null,null,null,null,null,null,null,null,null,"أحمد على464 أسامة29"]
[465,1100413270028900,"أحمد على465","سهام30","أنثى","2004-02-02","مغنية","1ع2","بلهادي عبدالقادر ",null,"أولى","جدع مشترك علوم وتكنولوجيا",3,470,"إلى يومنا هذا ",null,null,null,null,null,null,null,null,null,"أحمد على465 سهام30"]
[466,1100327170030600,"أحمد على466","أحمد30","أنثى","2003-04-22","عشعاشة","1ع2","رحال محمد ",null,"أولى","جدع مشترك علوم وتكنولوجيا",3,471,"إلى يومنا هذا ",null,null,null,null,null,null,null,null,null,"أحمد على466 أحمد30"]
[467,1400413270244100,"أحمد على467","نور الهدى30","ذكر","2004-09-08","مغنية","1ع2","مخفي علي ",null,"أولى","جدع مشترك علوم وتكنولوجيا",3,472,"إلى يومنا هذا ",null,null,null,null,null,null,null,null,null,"أحمد على467 نور الهدى30"]
[468,1100413270157600,"أحمد على468","أسماء30","أنثى","2004-06-26","مغنية","1ع2","مرحوم طيب ",null,"أولى","جدع مشترك علوم وتكنولوجيا",3,473,"إلى يومنا هذا ",null,null,null,null,null,null,null,null,null,"أحمد على468 أسماء30"]
[469,1100413270292800,"أحمد على469","إسماعيل30","أنثى","2004-10-23","مغنية","1ع2","هواري عبد العزيز ",null,"أولى","جدع مشترك علوم وتكنولوجيا",3,474,"إلى يومنا هذا ",null,null,null,null,null,null,null,null,null,"أحمد على469 إسماعيل30"]
[470,1100413270293600,"أحمد على470","وسام30","أنثى","2004-10-24","مغنية","1ع3","بختاوي بومدين ",null,"أولى","جدع مشترك علوم وتكنولوجيا",3,475,"إلى يومنا هذا ",null,null,null,null,null,null,null,null,null,"أحمد على470 وسام30"]
[471,1100513270016000,"أحمد على471","عبد الصمد30","أنثى","2005-01-18","مغنية","1ع3","بطاهر هواري ",null,"أولى","جدع مشترك علوم وتكنولوجيا",3,476,"إلى يومنا هذا ",null,null,null,null,null,null,null,null,null,"أحمد على471 عبد الصمد30"]
[472,1100413270125800,"أحمد على472","انيس شرف الدين30","أنثى","2004-05-30","مغنية","1ع3","بن زغادي محمد ",null,"أولى","جدع مشترك علوم وتكنولوجيا",3,477,"إلى يومنا هذا ",null,null,null,null,null,null,null,null,null,"أحمد على472 انيس شرف الدين30"]
[473,1100413270140700,"أحمد على473","سيدي محمد ريان30","أنثى","2004-06-13","مغنية","1ع3","بن شقرة عبد الكريم ",null,"أولى","جدع مشترك علوم وتكنولوجيا",3,478,"إلى يومنا هذا ",null,null,null,null,null,null,null,null,null,"أحمد على473 سيدي محمد ريان30"]
[474,1100413270230900,"أحمد على474","بومدين30","أنثى","2004-08-24","مغنية","1ع3","بن عيش لخضر ",null,"أولى","جدع مشترك علوم وتكنولوجيا",3,479,"إلى يومنا هذا ",null,null,null,null,null,null,null,null,null,"أحمد على474 بومدين30"]
[475,1100213270074000,"أحمد على475","محمد30","أنثى","2002-04-20","مغنية","1ع3","بوزار صالح ",null,"أولى","جدع مشترك علوم وتكنولوجيا",3,480,"إلى يومنا هذا ",null,null,null,null,null,null,null,null,null,"أحمد على475 محمد30"]
[476,1000413270044600,"أحمد على476","فريال30","ذكر","2004-02-21","مغنية","1ع3","بوزيان نور الدين ",null,"أولى","جدع مشترك علوم وتكنولوجيا",3,481,"إلى يومنا هذا ",null,null,null,null,null,null,null,null,null,"أحمد على476 فريال30"]
[477,1100313270009700,"أحمد على477","مصطفى30","أنثى","2003-01-11","مغنية","1ع3","بوعلي محمد ",null,"أولى","جدع مشترك علوم وتكنولوجيا",3,482,"إلى يومنا هذا ",null,null,null,null,null,null,null,null,null,"أحمد على477 مصطفى30"]
[478,1000313270051000,"أحمد على478","حسام30","ذكر","2003-03-05","مغنية","1ع3","بوعيشة محمد ",null,"أولى","جدع مشترك علوم وتكنولوجيا",3,483,"إلى يومنا هذا ",null,null,null,null,null,null,null,null,null,"أحمد على478 حسام30"]
[479,1000313270299700,"أحمد على479","وسام30","ذكر","2003-12-27","مغنية","1ع3","تاسرة عبد الحميد ",null,"أولى","جدع مشترك علوم وتكنولوجيا",3,484,"إلى يومنا هذا ",null,null,null,null,null,null,null,null,null,"أحمد على479 وسام30"]
[480,1100413270293100,"أحمد على480","أسامة30","أنثى","2004-10-23","مغنية","1ع3","تواتي جمال ",null,"أولى","جدع مشترك علوم وتكنولوجيا",3,485,"إلى يومنا هذا ",null,null,null,null,null,null,null,null,null,"أحمد على480 أسامة30"]
[481,1100413270308300,"أحمد على481","سهام31","أنثى","2004-11-08","مغنية","1ع3","حوحو عقبة ",null,"أولى","جدع مشترك علوم وتكنولوجيا",3,486,"إلى يومنا هذا ",null,null,null,null,null,null,null,null,null,"أحمد على481 سهام31"]
[482,1000313350046200,"أحمد على482","أحمد31","ذكر","2003-05-28","سبدو","1ع3","راجعي عبد المجيد ",null,"أولى","جدع مشترك علوم وتكنولوجيا",3,487,"إلى يومنا هذا ",null,null,null,null,null,null,null,null,null,"أحمد على482 أحمد31"]
[483,1000313270055300,"أحمد على483","نور الهدى31","ذكر","2003-03-13","مغنية","1ع3","رمضاني بن اعمر ",null,"أولى","جدع مشترك علوم وتكنولوجيا",3,488,"إلى يومنا هذا ",null,null,null,null,null,null,null,null,null,"أحمد على483 نور الهدى31"]
[484,1000313270302600,"أحمد على484","أسماء31","ذكر","2003-05-29","تلمسان","1ع3","زحزوح نور الدين ",null,"أولى","جدع مشترك علوم وتكنولوجيا",3,490,"إلى يومنا هذا ",null,null,null,null,null,null,null,null,null,"أحمد على484 أسماء31"]
[485,1000522010076400,"أحمد على485","إسماعيل31","ذكر","2004-02-07","سيدي بلعباس","1ع3","زرقاني عبدو ",null,"أولى","جدع مشترك علوم وتكنولوجيا",3,491,"إلى يومنا هذا ",null,null,null,null,null,null,null,null,null,"أحمد على485 إسماعيل31"]
[486,1100313270059100,"أحمد على486","وسام31","أنثى","2003-03-19","مغنية","1ع3","شارف زيان ",null,"أولى","جدع مشترك علوم وتكنولوجيا",3,492,"إلى يومنا هذا ",null,null,null,null,null,null,null,null,null,"أحمد على486 وسام31"]
[487,1100413270402800,"أحمد على487","عبد الصمد31","أنثى","2004-12-06","مغنية","1ع3","شريفي عبد العزيز ",null,"أولى","جدع مشترك علوم وتكنولوجيا",3,493,"إلى يومنا هذا ",null,null,null,null,null,null,null,null,null,"أحمد على487 عبد الصمد31"]
[488,1000213270269300,"أحمد على488","انيس شرف الدين31","ذكر","2002-11-27","مغنية","1ع3","شيباني عبد القادر ",null,"أولى","جدع مشترك علوم وتكنولوجيا",3,494,"إلى يومنا هذا ",null,null,null,null,null,null,null,null,null,"أحمد على488 انيس شرف الدين31"]
[489,1000413270289500,"أحمد على489","سيدي محمد ريان31","ذكر","2004-10-20","مغنية","1ع3","عميرات لوهايبي ",null,"أولى","جدع مشترك علوم وتكنولوجيا",3,495,"إلى يومنا هذا ",null,null,null,null,null,null,null,null,null,"أحمد على489 سيدي محمد ريان31"]
[490,1100413270110600,"أحمد على490","بومدين31","أنثى","2004-05-17","مغنية","1ع3","فاطمي سليم ",null,"أولى","جدع مشترك علوم وتكنولوجيا",3,496,"إلى يومنا هذا ",null,null,null,null,null,null,null,null,null,"أحمد على490 بومدين31"]
[491,1000413270158200,"أحمد على491","محمد31","ذكر","2004-06-27","مغنية","1ع3","فايد لخضر ",null,"أولى","جدع مشترك علوم وتكنولوجيا",3,497,"إلى يومنا هذا ",null,null,null,null,null,null,null,null,null,"أحمد على491 محمد31"]
[492,1000413270057900,"أحمد على492","فريال31","ذكر","2004-03-09","مغنية","1ع3","مراس خيضر ",null,"أولى","جدع مشترك علوم وتكنولوجيا",3,498,"إلى يومنا هذا ",null,null,null,null,null,null,null,null,null,"أحمد على492 فريال31"]
[493,1000413270209800,"أحمد على493","مصطفى31","ذكر","2004-08-04","مغنية","1ع3","مفيتح فتحي ",null,"أولى","جدع مشترك علوم وتكنولوجيا",3,499,"إلى يومنا هذا ",null,null,null,null,null,null,null,null,null,"أحمد على493 مصطفى31"]
[494,1100313270260100,"أحمد على494","حسام31","أنثى","2003-11-07","مغنية","1ع3","بومدين عبد الحفيظ ",null,"أولى","جدع مشترك علوم وتكنولوجيا",4,500,"إلى يومنا هذا ",null,null,null,null,null,null,null,null,null,"أحمد على494 حسام31"]
[495,1100413270009700,"أحمد على495","وسام31","أنثى","2004-01-12","مغنية","1ع3","حمادي محمد ",null,"أولى","جدع مشترك علوم وتكنولوجيا",4,501,"إلى يومنا هذا ",null,null,null,null,null,null,null,null,null,"أحمد على495 وسام31"]
[496,1100313270091600,"أحمد على496","أسامة31","أنثى","2003-05-07","مغنية","1ع3","خاليد نبيل ",null,"أولى","جدع مشترك علوم وتكنولوجيا",4,502,"إلى يومنا هذا ",null,null,null,null,null,null,null,null,null,"أحمد على496 أسامة31"]
[497,1000313270277600,"أحمد على497","سهام32","ذكر","2003-11-29","مغنية","1ع3","دريسي بكاي ",null,"أولى","جدع مشترك علوم وتكنولوجيا",4,504,"إلى يومنا هذا ",null,null,null,null,null,null,null,null,null,"أحمد على497 سهام32"]
[498,1100513270063000,"أحمد على498","أحمد32","أنثى","2005-03-15","مغنية","1ع3","راشدي علي ",null,"أولى","جدع مشترك علوم وتكنولوجيا",4,505,"إلى يومنا هذا ",null,null,null,null,null,null,null,null,null,"أحمد على498 أحمد32"]
[499,1100313270268200,"أحمد على499","نور الهدى32","أنثى","2003-11-17","مغنية","1ع3","قريشي عمر ",null,"أولى","جدع مشترك علوم وتكنولوجيا",4,506,"إلى يومنا هذا ",null,null,null,null,null,null,null,null,null,"أحمد على499 نور الهدى32"]
[500,1100413270248500,"أحمد على500","أسماء32","أنثى","2004-09-12","مغنية","1ع4","أمبارك محمود ",null,"أولى","جدع مشترك علوم وتكنولوجيا",4,507,"إلى يومنا هذا ",null,null,null,null,null,null,null,null,null,"أحمد على500 أسماء32"]
[501,1100313270266700,"أحمد على501","إسماعيل32","أنثى","2003-11-15","مغنية","1ع4","أمحمدي الشيخ ",null,"أولى","جدع مشترك علوم وتكنولوجيا",4,508,"إلى يومنا هذا ",null,null,null,null,null,null,null,null,null,"أحمد على501 إسماعيل32"]
[502,1100413270319500,"أحمد على502","وسام32","أنثى","2004-11-20","مغنية","1ع4","أورياشت مجاهد ",null,"أولى","جدع مشترك علوم وتكنولوجيا",4,509,"إلى يومنا هذا ",null,null,null,null,null,null,null,null,null,"أحمد على502 وسام32"]
[503,1000313270107100,"أحمد على503","عبد الصمد32","ذكر","2003-05-25","مغنية","1ع4","بوزيان مصطفى ",null,"أولى","جدع مشترك علوم وتكنولوجيا",4,510,"إلى يومنا هذا ",null,null,null,null,null,null,null,null,null,"أحمد على503 عبد الصمد32"]
[504,1100413270061000,"أحمد على504","انيس شرف الدين32","أنثى","2004-03-13","مغنية","1ع4","بوستين محمد ",null,"أولى","جدع مشترك علوم وتكنولوجيا",4,511,"إلى يومنا هذا ",null,null,null,null,null,null,null,null,null,"أحمد على504 انيس شرف الدين32"]
[505,1000313270020800,"أحمد على505","سيدي محمد ريان32","ذكر","2003-01-26","مغنية","1ع4","بوطاقة فتحي ",null,"أولى","جدع مشترك علوم وتكنولوجيا",4,512,"إلى يومنا هذا ",null,null,null,null,null,null,null,null,null,"أحمد على505 سيدي محمد ريان32"]
[506,1000413270242400,"أحمد على506","بومدين32","ذكر","2004-09-06","مغنية","1ع4","بوعيشة نور الدين ",null,"أولى","جدع مشترك علوم وتكنولوجيا",4,513,"إلى يومنا هذا ",null,null,null,null,null,null,null,null,null,"أحمد على506 بومدين32"]
[507,1000113270129800,"أحمد على507","محمد32","ذكر","2001-06-28","مغنية","1ع4","جدودي ميلود ",null,"أولى","جدع مشترك علوم وتكنولوجيا",4,514,"إلى يومنا هذا ",null,null,null,null,null,null,null,null,null,"أحمد على507 محمد32"]
[508,1000313270293700,"أحمد على508","فريال32","ذكر","2003-12-20","مغنية","1ع4","حمادي يحيى ",null,"أولى","جدع مشترك علوم وتكنولوجيا",4,515,"إلى يومنا هذا ",null,null,null,null,null,null,null,null,null,"أحمد على508 فريال32"]
[509,1000213270245700,"أحمد على509","مصطفى32","ذكر","2002-11-03","مغنية","1ع4","حنيفي محمد ",null,"أولى","جدع مشترك علوم وتكنولوجيا",4,516,"إلى يومنا هذا ",null,null,null,null,null,null,null,null,null,"أحمد على509 مصطفى32"]
[510,1000413270037200,"أحمد على510","حسام32","ذكر","2004-02-11","مغنية","1ع4","دمامن خالد ",null,"أولى","جدع مشترك علوم وتكنولوجيا",4,517,"إلى يومنا هذا ",null,null,null,null,null,null,null,null,null,"أحمد على510 حسام32"]
[511,1000113270175900,"أحمد على511","وسام32","ذكر","2001-08-17","مغنية","1ع4","زرقاني محمد ",null,"أولى","جدع مشترك علوم وتكنولوجيا",4,518,"إلى يومنا هذا ",null,null,null,null,null,null,null,null,null,"أحمد على511 وسام32"]
[512,1100413270039500,"أحمد على512","أسامة32","أنثى","2004-02-14","مغنية","1ع4","سايحي بن أحمد ",null,"أولى","جدع مشترك علوم وتكنولوجيا",4,519,"إلى يومنا هذا ",null,null,null,null,null,null,null,null,null,"أحمد على512 أسامة32"]
[513,1100413270194200,"أحمد على513","سهام33","أنثى","2004-07-22","مغنية","1ع4","ستاوي عبد القادر ",null,"أولى","جدع مشترك علوم وتكنولوجيا",4,520,"إلى يومنا هذا ",null,null,null,null,null,null,null,null,null,"أحمد على513 سهام33"]
[514,1100413270129100,"أحمد على514","أحمد33","أنثى","2004-06-01","مغنية","1ع4","سدراوي لحسن ",null,"أولى","جدع مشترك علوم وتكنولوجيا",4,521,"إلى يومنا هذا ",null,null,null,null,null,null,null,null,null,{"$f":"C516 & \" \" &  D516","v":"أحمد على514 أحمد33"}]
[515,1100313270036400,"أحمد على515","نور الهدى33","أنثى","2003-02-15","مغنية","1ع4","عياد محمد ",null,"أولى","جدع مشترك علوم وتكنولوجيا",4,522,"إلى يومنا هذا ",null,null,null,null,null,null,null,null,null,"أحمد على515 نور الهدى33"]
[516,1100313270666300,"أحمد على516","أسماء33","أنثى","2003-10-19","مغنية","1ع4"," فلاح عبد الرزاق ",null,"أولى","جدع مشترك علوم وتكنولوجيا",4,523,"إلى يومنا هذا ",null,null,null,null,null,null,null,null,null,"أحمد على516 أسماء33"]
[517,1100513270000100,"أحمد على517","إسماعيل33","أنثى","2005-01-01","مغنية","1ع4","قرواو عبد الحاكم ",null,"أولى","جدع مشترك علوم وتكنولوجيا",4,524,"إلى يومنا هذا ",null,null,null,null,null,null,null,null,null,"أحمد على517 إسماعيل33"]
[518,1000413270352100,"أحمد على518","وسام33","ذكر","2004-12-23","مغنية","1ع4","كرد عبد الحميد ",null,"أولى","جدع مشترك علوم وتكنولوجيا",4,525,"إلى يومنا هذا ",null,null,null,null,null,null,null,null,null,"أحمد على518 وسام33"]
[519,1000413270098600,"أحمد على519","عبد الصمد33","ذكر","2004-07-06","مغنية","1ع4","لكحل مصطفى ",null,"أولى","جدع مشترك علوم وتكنولوجيا",4,526,"إلى يومنا هذا ",null,null,null,null,null,null,null,null,null,"أحمد على519 عبد الصمد33"]
[520,1100513270035100,"أحمد على520","انيس شرف الدين33","أنثى","2005-02-08","مغنية","1ع4","مصمودي محمد ",null,"أولى","جدع مشترك علوم وتكنولوجيا",4,527,"إلى يومنا هذا ",null,null,null,null,null,null,null,null,null,"أحمد على520 انيس شرف الدين33"]
[521,1100213270186900,"أحمد على521","سيدي محمد ريان33","أنثى","2002-08-27","مغنية","1ع4","مولاي بودخيلي محمد عبد الباسط ",null,"أولى","جدع مشترك علوم وتكنولوجيا",4,528,"إلى يومنا هذا ",null,null,null,null,null,null,null,null,null,"أحمد على521 سيدي محمد ريان33"]
[522,1000413270272900,"أحمد على522","بومدين33","ذكر","2004-10-06","مغنية","1ع4","بختاوي محمد ",null,"أولى","جدع مشترك علوم وتكنولوجيا",5,529,"إلى يومنا هذا ",null,null,null,null,null,null,null,null,null,"أحمد على522 بومدين33"]
[523,1100413270092900,"أحمد على523","محمد33","أنثى","2004-04-25","مغنية","1ع4","برواين ميلود ",null,"أولى","جدع مشترك علوم وتكنولوجيا",5,530,"إلى يومنا هذا ",null,null,null,null,null,null,null,null,null,"أحمد على523 محمد33"]
[524,1100513270035200,"أحمد على524","فريال33","أنثى","2005-02-08","مغنية","1ع4","بن هدي يحيى ",null,"أولى","جدع مشترك علوم وتكنولوجيا",5,531,"إلى يومنا هذا ",null,null,null,null,null,null,null,null,null,"أحمد على524 فريال33"]
[525,1000413270312400,"أحمد على525","مصطفى33","ذكر","2004-11-13","مغنية","1ع4","بوحفص عبد القادر ",null,"أولى","جدع مشترك علوم وتكنولوجيا",5,532,"إلى يومنا هذا ",null,null,null,null,null,null,null,null,null,"أحمد على525 مصطفى33"]
[526,1100313270177000,"أحمد على526","حسام33","أنثى","2003-08-05","مغنية","1ع4","حواسة موسى ",null,"أولى","جدع مشترك علوم وتكنولوجيا",5,533,"إلى يومنا هذا ",null,null,null,null,null,null,null,null,null,"أحمد على526 حسام33"]
[527,1100413270196400,"أحمد على527","وسام33","أنثى","2004-07-23","مغنية","1ع4","دمامن أحمد ",null,"أولى","جدع مشترك علوم وتكنولوجيا",5,535,"إلى يومنا هذا ",null,null,null,null,null,null,null,null,null,"أحمد على527 وسام33"]
[528,1100413270189600,"أحمد على528","أسامة33","أنثى","2004-07-19","مغنية","1ع4","رحموني عبد القادر ",null,"أولى","جدع مشترك علوم وتكنولوجيا",5,536,"إلى يومنا هذا ",null,null,null,null,null,null,null,null,null,"أحمد على528 أسامة33"]
[529,1000513270043200,"أحمد على529","سهام34","ذكر","2005-02-20","مغنية","1ع5","أمحمدي حبيب ",null,"أولى","جدع مشترك علوم وتكنولوجيا",5,537,"إلى يومنا هذا ",null,null,null,null,null,null,null,null,null,"أحمد على529 سهام34"]
[530,1000213270295100,"أحمد على530","أحمد34","ذكر","2002-12-25","مغنية","1ع5","بختاوي أحمد ",null,"أولى","جدع مشترك علوم وتكنولوجيا",5,538,"إلى يومنا هذا ",null,null,null,null,null,null,null,null,null,"أحمد على530 أحمد34"]
[531,1100413270287700,"أحمد على531","نور الهدى34","أنثى","2004-10-20","مغنية","1ع5","بن حلي مصطفى ",null,"أولى","جدع مشترك علوم وتكنولوجيا",5,539,"إلى يومنا هذا ",null,null,null,null,null,null,null,null,null,"أحمد على531 نور الهدى34"]
[532,1100413010041600,"أحمد على532","أسماء34","أنثى","2004-01-19","تلمسان","1ع5","بوبندير بوفلجة ",null,"أولى","جدع مشترك علوم وتكنولوجيا",5,540,"إلى يومنا هذا ",null,null,null,null,null,null,null,null,null,"أحمد على532 أسماء34"]
[533,1100313270120300,"أحمد على533","إسماعيل34","أنثى","2003-06-10","مغنية","1ع5","بوبندير يحي ",null,"أولى","جدع مشترك علوم وتكنولوجيا",5,541,"إلى يومنا هذا ",null,null,null,null,null,null,null,null,null,"أحمد على533 إسماعيل34"]
[534,1100313270259700,"أحمد على534","وسام34","أنثى","2003-11-06","مغنية","1ع5","بوجمعة عبد القادر ",null,"أولى","جدع مشترك علوم وتكنولوجيا",5,542,"إلى يومنا هذا ",null,null,null,null,null,null,null,null,null,"أحمد على534 وسام34"]
[535,1000113360015900,"أحمد على535","عبد الصمد34","ذكر","2001-01-09","بني وارسوس","1ع5","بودرقة عبد المجيد ",null,"أولى","جدع مشترك علوم وتكنولوجيا",5,543,"إلى يومنا هذا ",null,null,null,null,null,null,null,null,null,"أحمد على535 عبد الصمد34"]
[536,1100413270330500,"أحمد على536","انيس شرف الدين34","أنثى","2004-11-30","مغنية","1ع5","بوزاهري يحي ",null,"أولى","جدع مشترك علوم وتكنولوجيا",5,544,"إلى يومنا هذا ",null,null,null,null,null,null,null,null,null,"أحمد على536 انيس شرف الدين34"]
[537,1100413270246400,"أحمد على537","سيدي محمد ريان34","أنثى","2004-04-30","مغنية","1ع5","بوستين محمد ",null,"أولى","جدع مشترك علوم وتكنولوجيا",5,545,"إلى يومنا هذا ",null,null,null,null,null,null,null,null,null,"أحمد على537 سيدي محمد ريان34"]
[538,1000113270098800,"أحمد على538","بومدين34","ذكر","2001-05-20","مغنية","1ع5","زحزوح محمد ",null,"أولى","جدع مشترك علوم وتكنولوجيا",5,546,"إلى يومنا هذا ",null,null,null,null,null,null,null,null,null,"أحمد على538 بومدين34"]
[539,1100413270229900,"أحمد على539","محمد34","أنثى","2004-08-23","مغنية","1ع5","زياني الأول عبد القادر ",null,"أولى","جدع مشترك علوم وتكنولوجيا",5,547,"إلى يومنا هذا ",null,null,null,null,null,null,null,null,null,"أحمد على539 محمد34"]
[540,1000313270006700,"أحمد على540","فريال34","ذكر","2003-01-07","مغنية","1ع5","شاوش عبد الرحمن ",null,"أولى","جدع مشترك علوم وتكنولوجيا",5,548,"إلى يومنا هذا ",null,null,null,null,null,null,null,null,null,"أحمد على540 فريال34"]
[541,1100413270253400,"أحمد على541","مصطفى34","أنثى","2004-09-16","مغنية","1ع5","شياخ عبد المالك ",null,"أولى","جدع مشترك علوم وتكنولوجيا",5,549,"إلى يومنا هذا ",null,null,null,null,null,null,null,null,null,"أحمد على541 مصطفى34"]
[542,1100413270245900,"أحمد على542","حسام34","أنثى","2004-09-10","مغنية","1ع5","صافي عبد القادر ",null,"أولى","جدع مشترك علوم وتكنولوجيا",5,550,"إلى يومنا هذا ",null,null,null,null,null,null,null,null,null,"أحمد على542 حسام34"]
[543,1100413270009100,"أحمد على543","وسام34","أنثى","2004-01-12","مغنية","1ع5","طيبي عبد المجيد ",null,"أولى","جدع مشترك علوم وتكنولوجيا",5,551,"إلى يومنا هذا ",null,null,null,null,null,null,null,null,null,"أحمد على543 وسام34"]
[544,1100313270044200,"أحمد على544","أسامة34","أنثى","2003-02-23","مغنية","1ع5","عبد اللي أحمد ",null,"أولى","جدع مشترك علوم وتكنولوجيا",5,552,"إلى يومنا هذا ",null,null,null,null,null,null,null,null,null,"أحمد على544 أسامة34"]
[545,1000113270281300,"أحمد على545","سهام35","ذكر","2001-12-28","مغنية","1ع5","قوراري موسى ",null,"أولى","جدع مشترك علوم وتكنولوجيا",5,553,"إلى يومنا هذا ",null,null,null,null,null,null,null,null,null,"أحمد على545 سهام35"]
[546,1100413270388900,"أحمد على546","أحمد35","أنثى","2004-06-21","مغنية","1ع5","قيطوني عبد القادر ",null,"أولى","جدع مشترك علوم وتكنولوجيا",5,554,"إلى يومنا هذا ",null,null,null,null,null,null,null,null,null,"أحمد على546 أحمد35"]
[547,1000313270225900,"أحمد على547","نور الهدى35","ذكر","2003-09-28","مغنية","1ع5","كوشير واسيني ",null,"أولى","جدع مشترك علوم وتكنولوجيا",5,555,"إلى يومنا هذا ",null,null,null,null,null,null,null,null,null,"أحمد على547 نور الهدى35"]
[548,1000113270648700,"أحمد على548","أسماء35","ذكر","2001-06-29","مغنية","1ع5","لباد علي ",null,"أولى","جدع مشترك علوم وتكنولوجيا",5,556,"إلى يومنا هذا ",null,null,null,null,null,null,null,null,null,"أحمد على548 أسماء35"]
[549,1000313270127100,"أحمد على549","إسماعيل35","ذكر","2003-06-16","مغنية","1ع5","لحسايني أحمد ",null,"أولى","جدع مشترك علوم وتكنولوجيا",5,557,"إلى يومنا هذا ",null,null,null,null,null,null,null,null,null,"أحمد على549 إسماعيل35"]
[550,1100413270171300,"أحمد على550","وسام35","أنثى","2004-07-06","مغنية","1ع5","لزعر أحمد ",null,"أولى","جدع مشترك علوم وتكنولوجيا",5,558,"إلى يومنا هذا ",null,null,null,null,null,null,null,null,null,"أحمد على550 وسام35"]
[551,1100413270220200,"أحمد على551","عبد الصمد35","أنثى","2004-08-14","مغنية","1ع5","لعروسي بن أعمر ",null,"أولى","جدع مشترك آداب",1,559,"إلى يومنا هذا ",null,null,null,null,null,null,null,null,null,"أحمد على551 عبد الصمد35"]
[552,1100413270119200,"أحمد على552","انيس شرف الدين35","أنثى","2004-05-25","مغنية","1ع5","مرجع عبد الواحد ",null,"أولى","جدع مشترك آداب",1,560,"إلى يومنا هذا ",null,null,null,null,null,null,null,null,null,"أحمد على552 انيس شرف الدين35"]
[553,1100413270004200,"أحمد على553","سيدي محمد ريان35","أنثى","2004-01-06","مغنية","1ع5","نوالي رابح ",null,"أولى","جدع مشترك آداب",1,561,"إلى يومنا هذا ",null,null,null,null,null,null,null,null,null,"أحمد على553 سيدي محمد ريان35"]
[554,1100313270314100,"أحمد على554","بومدين35","أنثى","2003-07-12","مغنية","1ع5","يخلف ميلود ",null,"أولى","جدع مشترك آداب",1,562,"إلى يومنا هذا ",null,null,null,null,null,null,null,null,null,"أحمد على554 بومدين35"]
[555,1000213270251900,"أحمد على555","محمد35","ذكر","2002-11-10","مغنية","1ع5","بلحرفي عبد الوحيد ",null,"أولى","جدع مشترك آداب",1,563,"إلى يومنا هذا ",null,null,null,null,null,null,null,null,null,"أحمد على555 محمد35"]
[556,1100313270147300,"أحمد على556","فريال35","أنثى","2003-07-06","مغنية","1ع5","راجعي عبد الحميد ",null,"أولى","جدع مشترك آداب",1,564,"إلى يومنا هذا ",null,null,null,null,null,null,null,null,null,"أحمد على556 فريال35"]
[557,1100413270158000,"أحمد على557","مصطفى35","أنثى","2004-06-27","مغنية","1ع5","صهباتو صالح ",null,"أولى","جدع مشترك آداب",1,565,"إلى يومنا هذا ",null,null,null,null,null,null,null,null,null,"أحمد على557 مصطفى35"]
[558,1100413270080200,"أحمد على558","حسام35","أنثى","2004-04-07","مغنية","1أ1","أمبارك عبد النبي ",null,"أولى","جدع مشترك آداب",1,566,"إلى يومنا هذا ",null,null,null,null,null,null,null,null,null,"أحمد على558 حسام35"]
[559,1100413270067100,"أحمد على559","وسام35","أنثى","2004-03-20","مغنية","1أ1","أوزليفي محمد ",null,"أولى","جدع مشترك آداب",1,567,"إلى يومنا هذا ",null,null,null,null,null,null,null,null,null,"أحمد على559 وسام35"]
[560,1100113270013800,"أحمد على560","أسامة35","أنثى","2001-01-17","مغنية","1أ1","امبارك هواري ",null,"أولى","جدع مشترك آداب",1,568,"إلى يومنا هذا ",null,null,null,null,null,null,null,null,null,"أحمد على560 أسامة35"]
[561,1000513270072900,"أحمد على561","سهام36","ذكر","2005-03-28","مغنية","1أ1","امحمدي الحاج ",null,"أولى","جدع مشترك آداب",1,569,"إلى يومنا هذا ",null,null,null,null,null,null,null,null,null,"أحمد على561 سهام36"]
[562,1100313270018700,"أحمد على562","أحمد36","أنثى","2003-01-24","مغنية","1أ1","بلخياطي صافي ",null,"أولى","جدع مشترك آداب",1,570,"إلى يومنا هذا ",null,null,null,null,null,null,null,null,null,"أحمد على562 أحمد36"]
[563,1000513270041800,"أحمد على563","نور الهدى36","ذكر","2005-02-17","مغنية","1أ1","بن اعمر بوفلجة ",null,"أولى","جدع مشترك آداب",1,572,"إلى يومنا هذا ",null,null,null,null,null,null,null,null,null,"أحمد على563 نور الهدى36"]
[564,1000311010226600,"أحمد على564","أسماء36","ذكر","2003-11-08","تمنراست","1أ1","بن جيلالي عبد القادر ",null,"أولى","جدع مشترك آداب",1,573,"إلى يومنا هذا ",null,null,null,null,null,null,null,null,null,"أحمد على564 أسماء36"]
[565,1000313270056400,"أحمد على565","إسماعيل36","ذكر","2003-03-15","مغنية","1أ1","بن عزوز عبد الغاني ",null,"أولى","جدع مشترك آداب",1,574,"إلى يومنا هذا ",null,null,null,null,null,null,null,null,null,"أحمد على565 إسماعيل36"]
[566,1000213270099300,"أحمد على566","وسام36","ذكر","2002-05-24","مغنية","1أ1","بن عيش محمد ",null,"أولى","جدع مشترك آداب",1,575,"إلى يومنا هذا ",null,null,null,null,null,null,null,null,null,"أحمد على566 وسام36"]
[567,1000313270053900,"أحمد على567","عبد الصمد36","ذكر","2003-03-09","مغنية","1أ1","بن يحي حفيظ ",null,"أولى","جدع مشترك آداب",1,576,"إلى يومنا هذا ",null,null,null,null,null,null,null,null,null,"أحمد على567 عبد الصمد36"]
[568,1100213270089700,"أحمد على568","انيس شرف الدين36","أنثى","2002-05-12","مغنية","1أ1","حساين احمد ",null,"أولى","جدع مشترك آداب",1,577,"إلى يومنا هذا ",null,null,null,null,null,null,null,null,null,"أحمد على568 انيس شرف الدين36"]
[569,1100413270247600,"أحمد على569","سيدي محمد ريان36","أنثى","2004-09-11","مغنية","1أ1","دردار مصطفى ",null,"أولى","جدع مشترك آداب",1,578,"إلى يومنا هذا ",null,null,null,null,null,null,null,null,null,"أحمد على569 سيدي محمد ريان36"]
[570,1000213270089200,"أحمد على570","بومدين36","ذكر","2002-02-07","مغنية","1أ1","زاجوي عبد القادر ",null,"أولى","جدع مشترك آداب",1,579,"إلى يومنا هذا ",null,null,null,null,null,null,null,null,null,"أحمد على570 بومدين36"]
[571,1000313270292300,"أحمد على571","محمد36","ذكر","2003-12-18","مغنية","1أ1","زحزوح نور الدين ",null,"أولى","جدع مشترك آداب",1,580,"إلى يومنا هذا ",null,null,null,null,null,null,null,null,null,"أحمد على571 محمد36"]
[572,1100413270046500,"أحمد على572","فريال36","أنثى","2004-02-23","مغنية","1أ1","زمري محمود ",null,"أولى","جدع مشترك آداب",1,581,"إلى يومنا هذا ",null,null,null,null,null,null,null,null,null,"أحمد على572 فريال36"]
[573,1100213270241700,"أحمد على573","مصطفى36","أنثى","2002-10-29","مغنية","1أ1","سعادنة عبد الناصر ",null,"أولى","جدع مشترك آداب",1,583,"إلى يومنا هذا ",null,null,null,null,null,null,null,null,null,"أحمد على573 مصطفى36"]
[574,1100213270019300,"أحمد على574","حسام36","أنثى","2002-01-29","مغنية","1أ1","عبابدي معزوز ",null,"أولى","جدع مشترك آداب",1,584,"إلى يومنا هذا ",null,null,null,null,null,null,null,null,null,"أحمد على574 حسام36"]
[575,1100313270105900,"أحمد على575","وسام36","أنثى","2003-05-24","مغنية","1أ1","علوان محمد ",null,"أولى","جدع مشترك آداب",1,585,"إلى يومنا هذا ",null,null,null,null,null,null,null,null,null,"أحمد على575 وسام36"]
[576,1100313270288100,"أحمد على576","أسامة36","أنثى","2003-12-13","مغنية","1أ1","فارس عبد القادر ",null,"أولى","جدع مشترك آداب",1,586,"إلى يومنا هذا ",null,null,null,null,null,null,null,null,null,"أحمد على576 أسامة36"]
[577,1100513270025400,"أحمد على577","سهام37","أنثى","2005-01-28","مغنية","1أ1","مزاري شهبي ",null,"أولى","جدع مشترك آداب",1,587,"إلى يومنا هذا ",null,null,null,null,null,null,null,null,null,"أحمد على577 سهام37"]
[578,1000513270044700,"أحمد على578","أحمد37","ذكر","2005-02-21","مغنية","1أ1","معايسة ",null,"أولى","جدع مشترك آداب",1,588,"إلى يومنا هذا ",null,null,null,null,null,null,null,null,null,{"$f":"C580 & \" \" &  D580","v":"أحمد على578 أحمد37"}]
[579,1000113270058900,"أحمد على579","نور الهدى37","ذكر","2001-08-06","مغنية","1أ1","معموري عبد المجيد ",null,"أولى","جدع مشترك آداب",1,589,"إلى يومنا هذا ",null,null,null,null,null,null,null,null,null,"أحمد على579 نور الهدى37"]
[580,1100413270251000,"أحمد على580","أسماء37","أنثى","2004-09-15","مغنية","1أ2","معيذري محمد ",null,"أولى","جدع مشترك آداب",2,590,"إلى يومنا هذا ",null,null,null,null,null,null,null,null,null,"أحمد على580 أسماء37"]
[581,1000213270101000,"أحمد على581","إسماعيل37","ذكر","2002-05-26","مغنية","1أ2","نواوي بن اعمر ",null,"أولى","جدع مشترك آداب",2,591,"إلى يومنا هذا ",null,null,null,null,"ن د2",null,null,null,null,"أحمد على581 إسماعيل37"]
[582,1100313270003500,"أحمد على582","وسام37","أنثى","2003-01-03","مغنية","1أ2","أيلاس الجيلالي ",null,"أولى","جدع مشترك آداب",2,592,"إلى يومنا هذا ",null,null,null,null,null,null,null,null,null,"أحمد على582 وسام37"]
[583,1100213270272600,"أحمد على583","عبد الصمد37","أنثى","2002-12-01","مغنية","1أ2","بوعزاوي عبد الناصر ",null,"أولى","جدع مشترك آداب",2,593,"إلى يومنا هذا ",null,null,null,null,null,null,null,null,null,"أحمد على583 عبد الصمد37"]
[584,1000013270183300,"أحمد على584","انيس شرف الدين37","ذكر","2000-08-22","مغنية","1أ2","دقي يحي ",null,"أولى","جدع مشترك آداب",2,594,"إلى يومنا هذا ",null,null,null,null,null,null,null,null,null,"أحمد على584 انيس شرف الدين37"]
[585,1100513270005000,"أحمد على585","سيدي محمد ريان37","أنثى","2005-01-05","مغنية","1أ2","رحال بن أعمر ",null,"أولى","جدع مشترك آداب",2,595,"إلى يومنا هذا ",null,null,null,null,null,null,null,null,null,"أحمد على585 سيدي محمد ريان37"]
[586,1100213270196400,"أحمد على586","بومدين37","أنثى","2002-09-07","مغنية","1أ2","زغودي خثير ",null,"أولى","جدع مشترك آداب",2,596,"إلى يومنا هذا ",null,null,null,null,null,null,null,null,null,"أحمد على586 بومدين37"]
[587,1000413350038300,"أحمد على587","محمد37","ذكر","2004-05-02","سبدو","1أ2","صداررشيد ",null,"أولى","جدع مشترك آداب",2,597,"إلى يومنا هذا ",null,null,null,null,null,null,null,null,null,"أحمد على587 محمد37"]
[588,1000213270085000,"أحمد على588","فريال37","ذكر","2002-08-06","مغنية","1أ2","كوليلي عبد الحفيظ",null,"أولى","جدع مشترك آداب",2,598,"إلى يومنا هذا ",null,null,null,null,null,null,null,null,null,"أحمد على588 فريال37"]
[589,1100413270058700,"أحمد على589","مصطفى37","أنثى","2004-03-10","مغنية","1أ2","العابد مصطفى ",null,"أولى","جدع مشترك آداب",2,599,null,null,null,null,null,null,null,null,null,null,"أحمد على589 مصطفى37"]
[590,1100413010408100,"أحمد على590","حسام37","أنثى","2004-06-27","تلمسان","1أ2","براهمي بومدين ",null,"أولى","جدع مشترك آداب",2,600,"إلى يومنا هذا ",null,null,null,null,null,null,null,null,null,"أحمد على590 حسام37"]
[591,1000113270138400,"أحمد على591","وسام37","ذكر","2001-07-06","مغنية","1أ2","بلقاسم مصطفى ",null,"أولى","جدع مشترك آداب",2,601,"إلى يومنا هذا ",null,null,null,null,null,null,null,null,null,"أحمد على591 وسام37"]
[592,1100313270225800,"أحمد على592","أسامة37","أنثى","2003-09-28","مغنية","1أ2","بن أعمر محمد ",null,"أولى","جدع مشترك آداب",2,602,"إلى يومنا هذا ",null,null,null,null,null,null,null,null,null,"أحمد على592 أسامة37"]
[593,1100313270008000,"أحمد على593","سهام38","أنثى","2003-01-07","مغنية","1أ2","بن بوعزي أعمر ",null,"أولى","جدع مشترك آداب",2,603,null,null,null,null,null,null,null,null,null,null,"أحمد على593 سهام38"]
[594,1000313270074600,"أحمد على594","أحمد38","ذكر","2003-04-13","مغنية","1أ2","بن سالم عبد النبي ",null,"أولى","جدع مشترك آداب",2,604,"إلى يومنا هذا ",null,null,null,null,null,null,null,null,null,"أحمد على594 أحمد38"]
[595,1000213270207500,"أحمد على595","نور الهدى38","ذكر","2002-09-20","مغنية","1أ2","بن سعد مصطفى ",null,"أولى","جدع مشترك آداب",2,605,"إلى يومنا هذا ",null,null,null,null,null,null,null,null,null,"أحمد على595 نور الهدى38"]
[596,1000413270249800,"أحمد على596","أسماء38","ذكر","2004-09-13","مغنية","1أ2","بن عبد الله يوسف ",null,"أولى","جدع مشترك آداب",2,606,"إلى يومنا هذا ",null,null,null,null,null,null,null,null,null,"أحمد على596 أسماء38"]
[597,1100213270060300,"أحمد على597","إسماعيل38","أنثى","2002-03-31","مغنية","1أ2","بن عراج يحي ",null,"أولى","جدع مشترك آداب",2,607,"إلى يومنا هذا ",null,null,null,null,null,null,null,null,null,"أحمد على597 إسماعيل38"]
[598,1100408010245800,"أحمد على598","وسام38","أنثى","2004-08-08","بشار","1أ2","بن عزوز حسين ",null,"أولى","جدع مشترك آداب",2,608,"إلى يومنا هذا ",null,null,null,null,null,null,null,null,null,"أحمد على598 وسام38"]
[599,1000313270127100,"أحمد على599","عبد الصمد38","ذكر","2003-11-15","مغنية","1أ2","بن عزوز واسيني ",null,"أولى","جدع مشترك آداب",2,610,"إلى يومنا هذا ",null,null,null,null,null,null,null,null,null,"أحمد على599 عبد الصمد38"]
[600,1100413010323600,"أحمد على600","انيس شرف الدين38","أنثى","2004-11-24","البخاتة","1أ2","بن عزيزة ابراهيم ",null,"أولى","جدع مشترك آداب",2,611,"إلى يومنا هذا ",null,null,null,null,null,null,null,null,null,"أحمد على600 انيس شرف الدين38"]
[601,1100413270318200,"أحمد على601","سيدي محمد ريان38","أنثى","2004-11-19","مغنية","1أ2","بومدين العربي ",null,"أولى","جدع مشترك آداب",2,612,"إلى يومنا هذا ",null,null,null,null,null,null,null,null,null,"أحمد على601 سيدي محمد ريان38"]
[602,1100413270164300,"أحمد على602","بومدين38","أنثى","2004-06-30","مغنية","1أ2","حاج علي محمد ",null,"أولى","جدع مشترك آداب",2,613,"2019-01-12",null,null,null,null,null,null,null,null,null,"أحمد على602 بومدين38"]
[603,1100313270232600,"أحمد على603","محمد38","أنثى","2003-10-05","مغنية","1أ2","زقاي محمد ",null,"أولى","جدع مشترك آداب",2,614,"إلى يومنا هذا ",null,null,null,null,null,null,null,null,null,"أحمد على603 محمد38"]
[604,1000213270035400,"أحمد على604","فريال38","أنثى","2002-02-24","مغنية","1أ2","زياني الأول علي ",null,"أولى","جدع مشترك آداب",2,615,"إلى يومنا هذا ",null,null,null,null,null,null,null,null,null,"أحمد على604 فريال38"]
[605,1100213270206900,"أحمد على605","مصطفى38","أنثى","2002-09-19","مغنية","1أ2","عباسي بلخير ",null,"أولى","جدع مشترك آداب",2,616,"إلى يومنا هذا ",null,null,null,null,null,null,null,null,null,"أحمد على605 مصطفى38"]
[606,1000313270172500,"أحمد على606","حسام38","ذكر","2003-07-31","مغنية","1أ2","عبد المالك العيد ",null,"أولى","جدع مشترك آداب",2,617,"إلى يومنا هذا ",null,null,null,null,null,null,null,null,null,"أحمد على606 حسام38"]
[607,1000413270344300,"أحمد على607","وسام38","ذكر","2004-12-14","مغنية","1أ2","عبد المالك محمد ",null,"أولى","جدع مشترك آداب",2,618,"إلى يومنا هذا ",null,null,null,null,null,null,null,null,null,"أحمد على607 وسام38"]
[608,1100413270552600,"أحمد على608","أسامة38","أنثى","2004-08-14","تلمسان","1أ2","عريبي مبروك ",null,"أولى","جدع مشترك آداب",2,619,"إلى يومنا هذا ",null,null,null,null,null,null,null,null,null,"أحمد على608 أسامة38"]
[609,1000213270019100,"أحمد على609","سهام39","ذكر","2002-01-29","مغنية","1أ2","عشراوي واسيني ",null,"أولى","جدع مشترك آداب",3,620,"إلى يومنا هذا ",null,null,null,null,null,null,null,null,null,"أحمد على609 سهام39"]
[610,1100413270203500,"أحمد على610","أحمد39","أنثى","2004-07-29","مغنية","1أ2","قطي واسيني ",null,"أولى","جدع مشترك آداب",3,621,"إلى يومنا هذا ",null,null,null,null,null,null,null,null,null,"أحمد على610 أحمد39"]
[611,1000113270111500,"أحمد على611","نور الهدى39","ذكر","2001-06-06","مغنية","1أ2","مزاري ",null,"أولى","جدع مشترك آداب",3,622,"إلى يومنا هذا ",null,null,null,null,null,null,null,null,null,"أحمد على611 نور الهدى39"]
[612,1000313270104000,"أحمد على612","أسماء39","ذكر","2003-05-22","مغنية","1أ2","منور أمحمد ",null,"أولى","جدع مشترك آداب",3,623,"إلى يومنا هذا ",null,null,null,null,null,null,null,null,null,"أحمد على612 أسماء39"]
[613,1100413270206200,"أحمد على613","إسماعيل39","أنثى","2004-07-30","مغنية","1أ2","بلعمري حمو ",null,"أولى","جدع مشترك آداب",3,624,"إلى يومنا هذا ",null,null,null,null,null,null,null,null,null,"أحمد على613 إسماعيل39"]
[614,1100413270320100,"أحمد على614","وسام39","أنثى","2004-06-22","مغنية","1أ2","بوجورفة محمد ",null,"أولى","جدع مشترك آداب",3,625,"إلى يومنا هذا ",null,null,null,null,null,null,null,null,null,"أحمد على614 وسام39"]
[615,1000213270269700,"أحمد على615","عبد الصمد39","ذكر","2002-11-28","مغنية","1أ2","رحال بن عودة ",null,"أولى","جدع مشترك آداب",3,626,"إلى يومنا هذا ",null,null,null,null,null,null,null,null,null,"أحمد على615 عبد الصمد39"]
[616,1100413270263500,"أحمد على616","انيس شرف الدين39","أنثى","2004-09-28","مغنية","1أ2","شياخ محمد ثاني ",null,"أولى","جدع مشترك آداب",3,627,"إلى يومنا هذا ",null,null,null,null,null,null,null,null,null,"أحمد على616 انيس شرف الدين39"]
[617,1100413270317400,"أحمد على617","سيدي محمد ريان39","أنثى","2004-11-18","مغنية","1أ2","عزوز عبد الحفيظ ",null,"أولى","جدع مشترك آداب",3,628,"إلى يومنا هذا ",null,null,null,null,null,null,null,null,null,"أحمد على617 سيدي محمد ريان39"]
[618,1000213270013700,"أحمد على618","بومدين39","ذكر","2002-01-21","مغنية","1أ2","لحسايني بن عمر ",null,"أولى","جدع مشترك آداب",3,629,"إلى يومنا هذا ",null,null,null,null,null,null,null,null,null,"أحمد على618 بومدين39"]
[619,1100213270268200,"أحمد على619","محمد39","أنثى","2002-11-28","مغنية","1أ2","مبيتيل أمحمد واسيني ",null,"أولى","جدع مشترك آداب",3,630,"إلى يومنا هذا ",null,null,null,null,null,null,null,null,null,"أحمد على619 محمد39"]
[620,1100513270026200,"أحمد على620","فريال39","أنثى","2005-01-29","مغنية","1أ3","أوزليفي عبد الكريم ",null,"أولى","جدع مشترك آداب",3,631,"إلى يومنا هذا ",null,null,null,null,null,null,null,null,null,"أحمد على620 فريال39"]
[621,1100413270352000,"أحمد على621","مصطفى39","أنثى","2004-12-23","مغنية","1أ3","العياطي نور الدين ",null,"أولى","جدع مشترك آداب",3,632,"إلى يومنا هذا ",null,null,null,null,null,null,null,null,null,"أحمد على621 مصطفى39"]
[622,1100313270046500,"أحمد على622","حسام39","أنثى","2003-02-26","مغنية","1أ3","امبارك عبد الحميد ",null,"أولى","جدع مشترك آداب",3,633,"إلى يومنا هذا ",null,null,null,null,null,null,null,null,null,"أحمد على622 حسام39"]
[623,1100413270009300,"أحمد على623","وسام39","أنثى","2004-01-11","مغنية","1أ3","بلجيلالي محمد ",null,"أولى","جدع مشترك آداب",3,634,"إلى يومنا هذا ",null,null,null,null,null,null,null,null,null,"أحمد على623 وسام39"]
[624,1100313270235800,"أحمد على624","أسامة39","أنثى","2003-10-08","مغنية","1أ3","بلجيلالي عبد القادر ",null,"أولى","جدع مشترك آداب",3,635,"إلى يومنا هذا ",null,null,null,null,null,null,null,null,null,"أحمد على624 أسامة39"]
[625,1000213270173100,"أحمد على625","سهام40","ذكر","2002-08-11","مغنية","1أ3","بلخير عبدالله ",null,"أولى","جدع مشترك آداب",3,636,"إلى يومنا هذا ",null,null,null,null,null,null,null,null,null,"أحمد على625 سهام40"]
[626,1100413270242700,"أحمد على626","أحمد40","أنثى","2004-09-06","مغنية","1أ3"," بن عبد الله عبد الحفيظ ",null,"أولى","جدع مشترك آداب",3,637,"إلى يومنا هذا ",null,null,null,null,null,null,null,null,null,"أحمد على626 أحمد40"]
[627,1000313270261900,"أحمد على627","نور الهدى40","ذكر","2003-11-09","مغنية","1أ3","بورديم بلخير ",null,"أولى","جدع مشترك آداب",3,638,"إلى يومنا هذا ",null,null,null,null,null,null,null,null,null,"أحمد على627 نور الهدى40"]
[628,1100413270677100,"أحمد على628","أسماء40","أنثى","2004-04-03","مغنية","1أ3","بوطاقة هواري ",null,"أولى","جدع مشترك آداب",3,639,"إلى يومنا هذا ",null,null,null,null,null,null,null,null,null,"أحمد على628 أسماء40"]
[629,1000413270144600,"أحمد على629","إسماعيل40","ذكر","2004-06-16","مغنية","1أ3","بومنجل عبد القادر ",null,"أولى","جدع مشترك آداب",3,640,"إلى يومنا هذا ",null,null,null,null,null,null,null,null,null,"أحمد على629 إسماعيل40"]
[630,1100313270085800,"أحمد على630","وسام40","أنثى","2003-04-28","مغنية","1أ3","تاجوري أعمر ",null,"أولى","جدع مشترك آداب",3,641,"إلى يومنا هذا ",null,null,null,null,null,null,null,null,null,"أحمد على630 وسام40"]
[631,1000213270231100,"أحمد على631","عبد الصمد40","ذكر","2002-10-18","مغنية","1أ3","تادلي محمد ",null,"أولى","جدع مشترك آداب",3,642,"إلى يومنا هذا ",null,null,null,null,null,null,null,null,null,"أحمد على631 عبد الصمد40"]
[632,1000413270260100,"أحمد على632","انيس شرف الدين40","ذكر","2004-09-25","مغنية","1أ3","تادلي بن اعمر ",null,"أولى","جدع مشترك آداب",3,643,"إلى يومنا هذا ",null,null,null,null,null,null,null,null,null,"أحمد على632 انيس شرف الدين40"]
[633,1000413270047400,"أحمد على633","سيدي محمد ريان40","ذكر","2004-02-24","مغنية","1أ3","حمو امحمد ",null,"أولى","جدع مشترك آداب",3,644,"إلى يومنا هذا ",null,null,null,null,null,null,null,null,null,"أحمد على633 سيدي محمد ريان40"]
[634,1000213270101900,"أحمد على634","بومدين40","ذكر","2002-05-27","مغنية","1أ3","سلهامي عبد الكريم ",null,"أولى","جدع مشترك آداب",3,645,"إلى يومنا هذا ",null,null,null,null,null,null,null,null,null,"أحمد على634 بومدين40"]
[635,1100313270187000,"أحمد على635","محمد40","أنثى","2003-08-15","مغنية","1أ3","شهراوي نصرالدين ",null,"أولى","جدع مشترك آداب",3,646,"إلى يومنا هذا ",null,null,null,null,null,null,null,null,null,"أحمد على635 محمد40"]
[636,1000431010184200,"أحمد على636","فريال40","ذكر","2004-02-16","وهران","1أ3","عياد عبد الحكيم ",null,"أولى","جدع مشترك آداب",3,647,"إلى يومنا هذا ",null,null,null,null,null,null,null,null,null,"أحمد على636 فريال40"]
[637,1000413270208500,"أحمد على637","مصطفى40","ذكر","2004-08-03","مغنية","1أ3","غربي عمر ",null,"أولى","جدع مشترك آداب",3,648,"إلى يومنا هذا ",null,null,null,null,null,null,null,null,null,"أحمد على637 مصطفى40"]
[638,1199513030002500,"أحمد على638","حسام40","أنثى","1995-04-29","عين تالوت","1أ3","قاطع أحمد ",null,"أولى","جدع مشترك آداب",1,999,"إلى يومنا هذا ",null,null,null,null,null,null,null,null,null,"أحمد على638 حسام40"]
[639,1100329060268000,"أحمد على639","وسام40","أنثى","2003-11-20","تيغنيف","1أ3","قديم عز الدين ",null,"أولى","جدع مشترك آداب",3,0,"إلى يومنا هذا ",null,null,null,null,null,null,null,null,null,"أحمد على639 وسام40"]
[640,1100313010309600,"أحمد على640","أسامة40","أنثى","2003-06-01","تلمسان","1أ3","مرزوقي الحاج ",null,"أولى","جدع مشترك آداب",3,0,"إلى يومنا هذا ",null,null,null,null,null,null,null,null,null,"أحمد على640 أسامة40"]
[641,1000413270131500,"أحمد على641","سهام41","ذكر","2004-06-03","مغنية","1أ3","مزاري محمد ",null,"أولى","جدع مشترك علوم وتكنولوجيا",2,0,"إلى يومنا هذا ",null,null,null,null,null,null,null,null,null,"أحمد على641 سهام41"]
[642,1100513020070000,"أحمد على642","أحمد41","أنثى","2005-02-03","تلمسان","1أ3","مكاحلي محمد ",null,"أولى","جدع مشترك علوم وتكنولوجيا",4,0,"إلى يومنا هذا ",null,null,null,null,null,null,null,null,null,{"$f":"C644 & \" \" &  D644","v":"أحمد على642 أحمد41"}]
[643,1100313510111700,"أحمد على643","نور الهدى41","أنثى","2003-02-25","تلمسان","1أ3","منور أحمد ",null,"ثانية","آداب وفلسفة",1,0,"إلى يومنا هذا ",null,null,null,null,null,null,null,null,null,"أحمد على643 نور الهدى41"]
[644,1000313010449200,"أحمد على644","أسماء41","ذكر","2003-07-21","تلمسان","1أ3","نواوي بلخير ",null,"ثانية","آداب وفلسفة",2,0,"إلى يومنا هذا ",null,null,null,null,null,null,null,null,null,"أحمد على644 أسماء41"]
[645,1100213270130600,"أحمد على645","إسماعيل41","أنثى","2002-03-13","تلمسان","1أ3","بن رمضان محمد ",null,"ثالثة","علوم تجريبية",1,0,"إلى يومنا هذا ",null,null,null,null,null,null,null,null,null,"أحمد على645 إسماعيل41"]
[646,"زرقاني أسماء","أحمد على646","وسام41","مغنية","F","E2","1أ3","زرقاني نور الدين ",null,null,"حي بلال مغنية ",null,null,"إلى يومنا هذا ",null,null,null,null,null,null,null,null,null,"أحمد على646 وسام41"]
[647,"سابق زكرياء","أحمد على647","عبد الصمد41","وهران","G","E1","1أ3","سابق سنوسي ",null,null,"رقم 11 حي 08 حي الشهداء مغنية ",null,null,"إلى يومنا هذا ",null,null,null,null,null,null,null,null,null,"أحمد على647 عبد الصمد41"]
[648,"مخوخي علاء الدين","أحمد على648","انيس شرف الدين41","مغنية","G","E1","1أ3","مخوخي نور الدين ",null,null,"سيدي مجاهد 13044 ",null,null,"إلى يومنا هذا ",null,null,null,null,null,null,null,null,null,"أحمد على648 انيس شرف الدين41"]
[649,"منور أحمد ","أحمد على649","سيدي محمد ريان41","مغنية","G","D1","1ع5","منور أمحمد ",null,null,"قرية العقيد لطفي مغنية ",null,null,"إلى يومنا هذا ",null,null,null,null,null,null,null,null,null,"أحمد على649 سيدي محمد ريان41"]
[650,"بوطيش وسام","أحمد على650","بومدين41",null,"F","B2","1أ3",null,null,null,null,null,null,"إلى يومنا هذا ",null,null,null,null,null,null,null,null,null,"أحمد على650 بومدين41"]
[651,"مرابط إناس","أحمد على651","محمد41",null,"F","E2","3ع ت01",null,null,null,null,null,null,"إلى يومنا هذا ",null,null,null,null,null,null,null,null,null,"أحمد على651 محمد41"]
[652,"سفرجلي يونس","أحمد على652","فريال41",null,"G","D1","3ت إ",null,null,null,null,null,null,"إلى يومنا هذا ",null,null,null,null,null,null,null,null,null,"أحمد على652 فريال41"]
[653,"مفتاح سمية ","أحمد على653","مصطفى41",null,"F","B2","1أ1",null,null,null,null,null,null,"إلى يومنا هذا ",null,null,null,null,null,null,null,null,null,"أحمد على653 مصطفى41"]
[null,null,"أحمد على654","حسام41",null,null,null,"1أ4",null,null,null,null,null,null,"إلى يومنا هذا ",null,null,null,null,null,null,null,null,null,"أحمد على654 حسام41"]
[null,null,"أحمد على655","وسام41",null,null,null,"1أ4",null,null,null,null,null,null,"إلى يومنا هذا ",null,null,null,null,null,null,null,null,null,"أحمد على655 وسام41"]
[null,null,"أحمد على656","أسامة41",null,null,null,"1أ4",null,null,null,null,null,null,"إلى يومنا هذا ",null,null,null,null,null,null,null,null,null,"أحمد على656 أسامة41"]
[null,null,"أحمد على657","سهام42",null,null,null,"1أ4",null,null,null,null,null,null,"إلى يومنا هذا ",null,null,null,null,null,null,null,null,null,"أحمد على657 سهام42"]
[null,null,"أحمد على658","أحمد42",null,null,null,"1أ4",null,null,null,null,null,null,"إلى يومنا هذا ",null,null,null,null,null,null,null,null,null,"أحمد على658 أحمد42"]
[null,null,"أحمد على659","نور الهدى42",null,null,null,"1أ4",null,null,null,null,null,null,"إلى يومنا هذا ",null,null,null,null,null,null,null,null,null,"أحمد على659 نور الهدى42"]
[null,null,"أحمد على660","أسماء42",null,null,null,"1أ4",null,null,null,null,null,null,"إلى يومنا هذا ",null,null,null,null,null,null,null,null,null,"أحمد على660 أسماء42"]
[null,null,"أحمد على661","إسماعيل42",null,null,null,"1أ4",null,null,null,null,null,null,"إلى يومنا هذا ",null,null,null,null,null,null,null,null,null,"أحمد على661 إسماعيل42"]
[null,null,"أحمد على662","وسام42",null,null,null,"1أ4",null,null,null,null,null,null,"إلى يومنا هذا ",null,null,null,null,null,null,null,null,null,"أحمد على662 وسام42"]
[null,null,"أحمد على663","عبد الصمد42",null,null,null,"1أ4",null,null,null,null,null,null,"إلى يومنا هذا ",null,null,null,null,null,null,null,null,null,"أحمد على663 عبد الصمد42"]
[null,null,"أحمد على664","انيس شرف الدين42",null,null,null,"1أ4",null,null,null,null,null,null,"إلى يومنا هذا ",null,null,null,null,null,null,null,null,null,"أحمد على664 انيس شرف الدين42"]
[null,null,"أحمد على665","سيدي محمد ريان42",null,null,null,"1أ4",null,null,null,null,null,null,"إلى يومنا هذا ",null,null,null,null,null,null,null,null,null,"أحمد على665 سيدي محمد ريان42"]
[null,null,"أحمد على666","بومدين42",null,null,null,"1أ4",null,null,null,null,null,null,"إلى يومنا هذا ",null,null,null,null,null,null,null,null,null,"أحمد على666 بومدين42"]
[null,null,"أحمد على667","محمد42",null,null,null,"1أ4",null,null,null,null,null,null,"إلى يومنا هذا ",null,null,null,null,null,null,null,null,null,"أحمد على667 محمد42"]
[null,null,"أحمد على668","فريال42",null,null,null,"1أ4",null,null,null,null,null,null,"إلى يومنا هذا ",null,null,null,null,null,null,null,null,null,"أحمد على668 فريال42"]
[null,null,"أحمد على669","مصطفى42",null,null,null,"1أ4",null,null,null,null,null,null,"إلى يومنا هذا ",null,null,null,null,null,null,null,null,null,"أحمد على669 مصطفى42"]
[null,null,"أحمد على670","حسام42",null,null,null,"1أ4",null,null,null,null,null,null,"إلى يومنا هذا ",null,null,null,null,null,null,null,null,null,"أحمد على670 حسام42"]
[null,null,"أحمد على671","وسام42",null,null,null,"1أ4",null,null,null,null,null,null,"إلى يومنا هذا ",null,null,null,null,null,null,null,null,null,"أحمد على671 وسام42"]
[null,null,"أحمد على672","أسامة42",null,null,null,"1أ4",null,null,null,null,null,null,"إلى يومنا هذا ",null,null,null,null,null,null,null,null,null,"أحمد على672 أسامة42"]
[null,null,"أحمد على673","سهام43",null,null,null,"1أ4",null,null,null,null,null,null,"إلى يومنا هذا ",null,null,null,null,null,null,null,null,null,"أحمد على673 سهام43"]
[null,null,"أحمد على674","أحمد43",null,null,null,"1أ4",null,null,null,null,null,null,"إلى يومنا هذا ",null,null,null,null,null,null,null,null,null,"أحمد على674 أحمد43"]
[null,null,"أحمد على675","نور الهدى43",null,null,null,"1أ4",null,null,null,null,null,null,"إلى يومنا هذا ",null,null,null,null,null,null,null,null,null,"أحمد على675 نور الهدى43"]
[null,null,"أحمد على676","أسماء43",null,null,null,"1أ4",null,null,null,null,null,null,"إلى يومنا هذا ",null,null,null,null,null,null,null,null,null,"أحمد على676 أسماء43"]
[null,null,"أحمد على677","إسماعيل43",null,null,null,"1أ4",null,null,null,null,null,null,"إلى يومنا هذا ",null,null,null,null,null,null,null,null,null,"أحمد على677 إسماعيل43"]
[null,null,"أحمد على678","وسام43",null,null,null,"1أ4",null,null,null,null,null,null,"إلى يومنا هذا ",null,null,null,null,null,null,null,null,null,"أحمد على678 وسام43"]
[null,null,"أحمد على679","عبد الصمد43",null,null,null,"1أ4",null,null,null,null,null,null,"إلى يومنا هذا ",null,null,null,null,null,null,null,null,null,"أحمد على679 عبد الصمد43"]
[null,null,"أحمد على680","انيس شرف الدين43",null,null,null,"1أ4",null,null,null,null,null,null,"إلى يومنا هذا ",null,null,null,null,null,null,null,null,null,"أحمد على680 انيس شرف الدين43"]
[null,null,"أحمد على681","سيدي محمد ريان43",null,null,null,"1أ4",null,null,null,null,null,null,"إلى يومنا هذا ",null,null,null,null,null,null,null,null,null,"أحمد على681 سيدي محمد ريان43"]
[null,null,"أحمد على682","بومدين43",null,null,null,"1أ4",null,null,null,null,null,null,"إلى يومنا هذا ",null,null,null,null,null,null,null,null,null,"أحمد على682 بومدين43"]
[null,null,"أحمد على683","محمد43",null,null,null,"1أ4",null,null,null,null,null,null,"إلى يومنا هذا ",null,null,null,null,null,null,null,null,null,"أحمد على683 محمد43"]
[null,null,"أحمد على684","فريال43",null,null,null,"1أ4",null,null,null,null,null,null,"إلى يومنا هذا ",null,null,null,null,null,null,null,null,null,"أحمد على684 فريال43"]
[null,null,"أحمد على685","مصطفى43",null,null,null,"1أ4",null,null,null,null,null,null,"إلى يومنا هذا ",null,null,null,null,null,null,null,null,null,"أحمد على685 مصطفى43"]
[null,null,"أحمد على686","حسام43",null,null,null,"1أ4",null,null,null,null,null,null,"إلى يومنا هذا ",null,null,null,null,null,null,null,null,null,"أحمد على686 حسام43"]
[null,null,"أحمد على687","وسام43",null,null,null,"1أ4",null,null,null,null,null,null,"إلى يومنا هذا ",null,null,null,null,null,null,null,null,null,"أحمد على687 وسام43"]
[null,null,"أحمد على688","أسامة43",null,null,null,"1أ4",null,null,null,null,null,null,"إلى يومنا هذا ",null,null,null,null,null,null,null,null,null,"أحمد على688 أسامة43"]
[null,null,"أحمد على689","سهام44",null,null,null,"1أ4",null,null,null,null,null,null,"إلى يومنا هذا ",null,null,null,null,null,null,null,null,null,"أحمد على689 سهام44"]
[null,null,"أحمد على690","أحمد44",null,null,null,"1أ4",null,null,null,null,null,null,"إلى يومنا هذا ",null,null,null,null,null,null,null,null,null,"أحمد على690 أحمد44"]
[null,null,"أحمد على691","نور الهدى44",null,null,null,"1أ4",null,null,null,null,null,null,"إلى يومنا هذا ",null,null,null,null,null,null,null,null,null,"أحمد على691 نور الهدى44"]
[null,null,"أحمد على692","أسماء44",null,null,null,"1أ4",null,null,null,null,null,null,"إلى يومنا هذا ",null,null,null,null,null,null,null,null,null,"أحمد على692 أسماء44"]
[null,null,"أحمد على693","إسماعيل44",null,null,null,"1أ4",null,null,null,null,null,null,"إلى يومنا هذا ",null,null,null,null,null,null,null,null,null,"أحمد على693 إسماعيل44"]
[null,null,"أحمد على694","وسام44",null,null,null,"1أ4",null,null,null,null,null,null,"إلى يومنا هذا ",null,null,null,null,null,null,null,null,null,"أحمد على694 وسام44"]
[null,null,"أحمد على695","عبد الصمد44",null,null,null,"1أ4",null,null,null,null,null,null,"إلى يومنا هذا ",null,null,null,null,null,null,null,null,null,"أحمد على695 عبد الصمد44"]
[null,null,"أحمد على696","انيس شرف الدين44",null,null,null,"1أ4",null,null,null,null,null,null,"إلى يومنا هذا ",null,null,null,null,null,null,null,null,null,"أحمد على696 انيس شرف الدين44"]
[null,null,"أحمد على697","سيدي محمد ريان44",null,null,null,"1أ4",null,null,null,null,null,null,"إلى يومنا هذا ",null,null,null,null,null,null,null,null,null,"أحمد على697 سيدي محمد ريان44"]
[null,null,"أحمد على698","بومدين44",null,null,null,"1أ4",null,null,null,null,null,null,"إلى يومنا هذا ",null,null,null,null,null,null,null,null,null,"أحمد على698 بومدين44"]
[null,null,"أحمد على699","محمد44",null,null,null,"1أ4",null,null,null,null,null,null,"إلى يومنا هذا ",null,null,null,null,null,null,null,null,null,"أحمد على699 محمد44"]
[null,null,"أحمد على700","فريال44",null,null,null,"1أ4",null,null,null,null,null,null,"إلى يومنا هذا ",null,null,null,null,null,null,null,null,null,"أحمد على700 فريال44"]
[null,null,"أحمد على701","مصطفى44",null,null,null,"2ع ت03",null,null,null,null,null,null,"إلى يومنا هذا ",null,null,null,null,null,null,null,null,null,"أحمد على701 مصطفى44"]
[null,null,"أحمد على702","حسام44",null,null,null,"2ع ت03",null,null,null,null,null,null,"إلى يومنا هذا ",null,null,null,null,null,null,null,null,null,"أحمد على702 حسام44"]
[null,null,"أحمد على703","وسام44",null,null,null,"2ع ت03",null,null,null,null,null,null,"إلى يومنا هذا ",null,null,null,null,null,null,null,null,null,"أحمد على703 وسام44"]
[null,null,"أحمد على704","أسامة44",null,null,null,"2ع ت03",null,null,null,null,null,null,"إلى يومنا هذا ",null,null,null,null,null,null,null,null,null,"أحمد على704 أسامة44"]
[null,null,"أحمد على705","سهام45",null,null,null,"2ع ت03",null,null,null,null,null,null,"إلى يومنا هذا ",null,null,null,null,null,null,null,null,null,"أحمد على705 سهام45"]
[null,null,"أحمد على706","أحمد45",null,null,null,"2ع ت03",null,null,null,null,null,null,null,null,null,null,null,null,null,null,null,null,{"$f":"C708 & \" \" &  D708","v":"أحمد على706 أحمد45"}]
[null,null,"أحمد على707","نور الهدى45",null,null,null,"2ع ت03",null,null,null,null,null,null,null,null,null,null,null,null,null,null,null,null,"أحمد على707 نور الهدى45"]
[null,null,"أحمد على708","أسماء45",null,null,null,"2ع ت03",null,null,null,null,null,null,null,null,null,null,null,null,null,null,null,null,"أحمد على708 أسماء45"]
[null,null,"أحمد على709","إسماعيل45",null,null,null,"2ع ت03",null,null,null,null,null,null,null,null,null,null,null,null,null,null,null,null,"أحمد على709 إسماعيل45"]
[null,null,"أحمد على710","وسام45",null,null,null,"2ع ت03",null,null,null,null,null,null,null,null,null,null,null,null,null,null,null,null,"أحمد على710 وسام45"]
[null,null,"أحمد على711","عبد الصمد45",null,null,null,"2ع ت03",null,null,null,null,null,null,null,null,null,null,null,null,null,null,null,null,"أحمد على711 عبد الصمد45"]
[null,null,"أحمد على712","انيس شرف الدين45",null,null,null,"2ع ت03",null,null,null,null,null,null,null,null,null,null,null,null,null,null,null,null,"أحمد على712 انيس شرف الدين45"]
[null,null,"أحمد على713","سيدي محمد ريان45",null,null,null,"2ع ت03",null,null,null,null,null,null,null,null,null,null,null,null,null,null,null,null,"أحمد على713 سيدي محمد ريان45"]
[null,null,"أحمد على714","بومدين45",null,null,null,"2ع ت03",null,null,null,null,null,null,null,null,null,null,null,null,null,null,null,null,"أحمد على714 بومدين45"]
[null,null,"أحمد على715","محمد45",null,null,null,"2ع ت03",null,null,null,null,null,null,null,null,null,null,null,null,null,null,null,null,"أحمد على715 محمد45"]
[null,null,"أحمد على716","فريال45",null,null,null,"2ع ت03",null,null,null,null,null,null,null,null,null,null,null,null,null,null,null,null,"أحمد على716 فريال45"]
[null,null,"أحمد على717","مصطفى45",null,null,null,"2ع ت03",null,null,null,null,null,null,null,null,null,null,null,null,null,null,null,null,"أحمد على717 مصطفى45"]
[null,null,"أحمد على718","حسام45",null,null,null,"2ع ت03",null,null,null,null,null,null,null,null,null,null,null,null,null,null,null,null,"أحمد على718 حسام45"]
[null,null,"أحمد على719","وسام45",null,null,null,"2ع ت03",null,null,null,null,null,null,null,null,null,null,null,null,null,null,null,null,"أحمد على719 وسام45"]
[null,null,"أحمد على720","أسامة45",null,null,null,"2ع ت03",null,null,null,null,null,null,null,null,null,null,null,null,null,null,null,null,"أحمد على720 أسامة45"]
[null,null,"أحمد على721","سهام46",null,null,null,"2ع ت03",null,null,null,null,null,null,null,null,null,null,null,null,null,null,null,null,"أحمد على721 سهام46"]
[null,null,"أحمد على722","أحمد46",null,null,null,"2ع ت03",null,null,null,null,null,null,null,null,null,null,null,null,null,null,null,null,"أحمد على722 أحمد46"]
[null,null,"أحمد على723","نور الهدى46",null,null,null,"2ع ت03",null,null,null,null,null,null,null,null,null,null,null,null,null,null,null,null,"أحمد على723 نور الهدى46"]
[null,null,"أحمد على724","أسماء46",null,null,null,"2ع ت03",null,null,null,null,null,null,null,null,null,null,null,null,null,null,null,null,"أحمد على724 أسماء46"]
[null,null,"أحمد على725","إسماعيل46",null,null,null,"2ع ت03",null,null,null,null,null,null,null,null,null,null,null,null,null,null,null,null,"أحمد على725 إسماعيل46"]
[null,null,"أحمد على726","وسام46",null,null,null,"2ع ت03",null,null,null,null,null,null,null,null,null,null,null,null,null,null,null,null,"أحمد على726 وسام46"]
[null,null,"أحمد على727","عبد الصمد46",null,null,null,"2ع ت03",null,null,null,null,null,null,null,null,null,null,null,null,null,null,null,null,"أحمد على727 عبد الصمد46"]
[null,null,"أحمد على728","انيس شرف الدين46",null,null,null,"2ع ت03",null,null,null,null,null,null,null,null,null,null,null,null,null,null,null,null,"أحمد على728 انيس شرف الدين46"]
[null,null,"أحمد على729","سيدي محمد ريان46",null,null,null,"2ع ت03",null,null,null,null,null,null,null,null,null,null,null,null,null,null,null,null,"أحمد على729 سيدي محمد ريان46"]
[null,null,"أحمد على730","بومدين46",null,null,null,"2ع ت03",null,null,null,null,null,null,null,null,null,null,null,null,null,null,null,null,"أحمد على730 بومدين46"]
[null,null,"أحمد على731","محمد46",null,null,null,"2ع ت03",null,null,null,null,null,null,null,null,null,null,null,null,null,null,null,null,"أحمد على731 محمد46"]
[null,null,"أحمد على732","فريال46",null,null,null,"2ع ت03",null,null,null,null,null,null,null,null,null,null,null,null,null,null,null,null,"أحمد على732 فريال46"]
[null,null,"أحمد على733","مصطفى46",null,null,null,"2ع ت03",null,null,null,null,null,null,null,null,null,null,null,null,null,null,null,null,"أحمد على733 مصطفى46"]
[null,null,"أحمد على734","حسام46",null,null,null,"2ع ت03",null,null,null,null,null,null,null,null,null,null,null,null,null,null,null,null,"أحمد على734 حسام46"]
[null,null,"أحمد على735","وسام46",null,null,null,"2ع ت03",null,null,null,null,null,null,null,null,null,null,null,null,null,null,null,null,"أحمد على735 وسام46"]
[null,null,"أحمد على736","أسامة46",null,null,null,"2ع ت03",null,null,null,null,null,null,null,null,null,null,null,null,null,null,null,null,"أحمد على736 أسامة46"]
[null,null,"أحمد على737","سهام47",null,null,null,"2ع ت03",null,null,null,null,null,null,null,null,null,null,null,null,null,null,null,null,"أحمد على737 سهام47"]
[null,null,"أحمد على738","أحمد47",null,null,null,"2ع ت03",null,null,null,null,null,null,null,null,null,null,null,null,null,null,null,null,"أحمد على738 أحمد47"]
[null,null,"أحمد على739","نور الهدى47",null,null,null,"2ع ت03",null,null,null,null,null,null,null,null,null,null,null,null,null,null,null,null,"أحمد على739 نور الهدى47"]
[null,null,"أحمد على740","أسماء47",null,null,null,"2ع ت03",null,null,null,null,null,null,null,null,null,null,null,null,null,null,null,null,"أحمد على740 أسماء47"]
[null,null,"أحمد على741","إسماعيل47",null,null,null,"2ع ت03",null,null,null,null,null,null,null,null,null,null,null,null,null,null,null,null,"أحمد على741 إسماعيل47"]
[null,null,"أحمد على742","وسام47",null,null,null,"2ع ت03",null,null,null,null,null,null,null,null,null,null,null,null,null,null,null,null,"أحمد على742 وسام47"]
[null,null,"أحمد على743","عبد الصمد47",null,null,null,"2ع ت03",null,null,null,null,null,null,null,null,null,null,null,null,null,null,null,null,"أحمد على743 عبد الصمد47"]
[null,null,"أحمد على744","انيس شرف الدين47",null,null,null,"2ت إ02",null,null,null,null,null,null,null,null,null,null,null,null,null,null,null,null,"أحمد على744 انيس شرف الدين47"]
[null,null,"أحمد على745","سيدي محمد ريان47",null,null,null,"2ت إ02",null,null,null,null,null,null,null,null,null,null,null,null,null,null,null,null,"أحمد على745 سيدي محمد ريان47"]
[null,null,"أحمد على746","بومدين47",null,null,null,"2ت إ02",null,null,null,null,null,null,null,null,null,null,null,null,null,null,null,null,"أحمد على746 بومدين47"]
[null,null,"أحمد على747","محمد47",null,null,null,"2ت إ02",null,null,null,null,null,null,null,null,null,null,null,null,null,null,null,null,"أحمد على747 محمد47"]
[null,null,"أحمد على748","فريال47",null,null,null,"2ت إ02",null,null,null,null,null,null,null,null,null,null,null,null,null,null,null,null,"أحمد على748 فريال47"]
[null,null,"أحمد على749","مصطفى47",null,null,null,"2ت إ02",null,null,null,null,null,null,null,null,null,null,null,null,null,null,null,null,"أحمد على749 مصطفى47"]
[null,null,"أحمد على750","حسام47",null,null,null,"2ت إ02",null,null,null,null,null,null,null,null,null,null,null,null,null,null,null,null,"أحمد على750 حسام47"]
[null,null,"أحمد على751","وسام47",null,null,null,"2ت إ02",null,null,null,null,null,null,null,null,null,null,null,null,null,null,null,null,"أحمد على751 وسام47"]
[null,null,"أحمد على752","أسامة47",null,null,null,"2ت إ02",null,null,null,null,null,null,null,null,null,null,null,null,null,null,null,null,"أحمد على752 أسامة47"]
[null,null,"أحمد على753","سهام48",null,null,null,"2ت إ02",null,null,null,null,null,null,null,null,null,null,null,null,null,null,null,null,"أحمد على753 سهام48"]
[null,null,"أحمد على754","أحمد48",null,null,null,"2ت إ02",null,null,null,null,null,null,null,null,null,null,null,null,null,null,null,null,"أحمد على754 أحمد48"]
[null,null,"أحمد على755","نور الهدى48",null,null,null,"2ت إ02",null,null,null,null,null,null,null,null,null,null,null,null,null,null,null,null,"أحمد على755 نور الهدى48"]
[null,null,"أحمد على756","أسماء48",null,null,null,"2ت إ02",null,null,null,null,null,null,null,null,null,null,null,null,null,null,null,null,"أحمد على756 أسماء48"]
[null,null,"أحمد على757","إسماعيل48",null,null,null,"2ت إ02",null,null,null,null,null,null,null,null,null,null,null,null,null,null,null,null,"أحمد على757 إسماعيل48"]
[null,null,"أحمد على758","وسام48",null,null,null,"2ت إ02",null,null,null,null,null,null,null,null,null,null,null,null,null,null,null,null,"أحمد على758 وسام48"]
[null,null,"أحمد على759","عبد الصمد48",null,null,null,"2ت إ02",null,null,null,null,null,null,null,null,null,null,null,null,null,null,null,null,"أحمد على759 عبد الصمد48"]
[null,null,"أحمد على760","انيس شرف الدين48",null,null,null,"2ت إ02",null,null,null,null,null,null,null,null,null,null,null,null,null,null,null,null,"أحمد على760 انيس شرف الدين48"]
[null,null,"أحمد على761","سيدي محمد ريان48",null,null,null,"2ت إ02",null,null,null,null,null,null,null,null,null,null,null,null,null,null,null,null,"أحمد على761 سيدي محمد ريان48"]
[null,null,"أحمد على762","بومدين48",null,null,null,"2ت إ02",null,null,null,null,null,null,null,null,null,null,null,null,null,null,null,null,"أحمد على762 بومدين48"]
[null,null,"أحمد على763","محمد48",null,null,null,"2ت إ02",null,null,null,null,null,null,null,null,null,null,null,null,null,null,null,null,"أحمد على763 محمد48"]
[null,null,"أحمد على764","فريال48",null,null,null,"2ت إ02",null,null,null,null,null,null,null,null,null,null,null,null,null,null,null,null,"أحمد على764 فريال48"]
[null,null,"أحمد على765","مصطفى48",null,null,null,"2ت إ02",null,null,null,null,null,null,null,null,null,null,null,null,null,null,null,null,"أحمد على765 مصطفى48"]
[null,null,"أحمد على766","حسام48",null,null,null,"2ت إ02",null,null,null,null,null,null,null,null,null,null,null,null,null,null,null,null,"أحمد على766 حسام48"]
[null,null,"أحمد على767","وسام48",null,null,null,"2ت إ02",null,null,null,null,null,null,null,null,null,null,null,null,null,null,null,null,"أحمد على767 وسام48"]
[null,null,"أحمد على768","أسامة48",null,null,null,"1ع6",null,null,null,null,null,null,null,null,null,null,null,null,null,null,null,null,"أحمد على768 أسامة48"]
[null,null,"أحمد على769","سهام49",null,null,null,"1ع6",null,null,null,null,null,null,null,null,null,null,null,null,null,null,null,null,"أحمد على769 سهام49"]
[null,null,"أحمد على770","أحمد49",null,null,null,"1ع6",null,null,null,null,null,null,null,null,null,null,null,null,null,null,null,null,{"$f":"C772 & \" \" &  D772","v":"أحمد على770 أحمد49"}]
[null,null,"أحمد على771","نور الهدى49",null,null,null,"1ع6",null,null,null,null,null,null,null,null,null,null,null,null,null,null,null,null,"أحمد على771 نور الهدى49"]
[null,null,"أحمد على772","أسماء49",null,null,null,"1ع6",null,null,null,null,null,null,null,null,null,null,null,null,null,null,null,null,"أحمد على772 أسماء49"]
[null,null,"أحمد على773","إسماعيل49",null,null,null,"1ع6",null,null,null,null,null,null,null,null,null,null,null,null,null,null,null,null,"أحمد على773 إسماعيل49"]
[null,null,"أحمد على774","وسام49",null,null,null,"1ع6",null,null,null,null,null,null,null,null,null,null,null,null,null,null,null,null,"أحمد على774 وسام49"]
[null,null,"أحمد على775","عبد الصمد49",null,null,null,"1ع6",null,null,null,null,null,null,null,null,null,null,null,null,null,null,null,null,"أحمد على775 عبد الصمد49"]
[null,null,"أحمد على776","انيس شرف الدين49",null,null,null,"1ع6",null,null,null,null,null,null,null,null,null,null,null,null,null,null,null,null,"أحمد على776 انيس شرف الدين49"]
[null,null,"أحمد على777","سيدي محمد ريان49",null,null,null,"1ع6",null,null,null,null,null,null,null,null,null,null,null,null,null,null,null,null,"أحمد على777 سيدي محمد ريان49"]
[null,null,"أحمد على778","بومدين49",null,null,null,"1ع6",null,null,null,null,null,null,null,null,null,null,null,null,null,null,null,null,"أحمد على778 بومدين49"]
[null,null,"أحمد على779","محمد49",null,null,null,"1ع6",null,null,null,null,null,null,null,null,null,null,null,null,null,null,null,null,"أحمد على779 محمد49"]
[null,null,"أحمد على780","فريال49",null,null,null,"1ع6",null,null,null,null,null,null,null,null,null,null,null,null,null,null,null,null,"أحمد على780 فريال49"]
[null,null,"أحمد على781","مصطفى49",null,null,null,"1ع6",null,null,null,null,null,null,null,null,null,null,null,null,null,null,null,null,"أحمد على781 مصطفى49"]
[null,null,"أحمد على782","حسام49",null,null,null,"1ع6",null,null,null,null,null,null,null,null,null,null,null,null,null,null,null,null,"أحمد على782 حسام49"]
[null,null,"أحمد على783","وسام49",null,null,null,"1ع6",null,null,null,null,null,null,null,null,null,null,null,null,null,null,null,null,"أحمد على783 وسام49"]
[null,null,"أحمد على784","أسامة49",null,null,null,"1ع6",null,null,null,null,null,null,null,null,null,null,null,null,null,null,null,null,"أحمد على784 أسامة49"]
[null,null,"أحمد على785","سهام50",null,null,null,"1ع6",null,null,null,null,null,null,null,null,null,null,null,null,null,null,null,null,"أحمد على785 سهام50"]
[null,null,"أحمد على786","أحمد50",null,null,null,"1ع6",null,null,null,null,null,null,null,null,null,null,null,null,null,null,null,null,"أحمد على786 أحمد50"]
[null,null,"أحمد على787","نور الهدى50",null,null,null,"1ع6",null,null,null,null,null,null,null,null,null,null,null,null,null,null,null,null,"أحمد على787 نور الهدى50"]
[null,null,"أحمد على788","أسماء50",null,null,null,"1ع6",null,null,null,null,null,null,null,null,null,null,null,null,null,null,null,null,"أحمد على788 أسماء50"]
[null,null,"أحمد على789","إسماعيل50",null,null,null,"1ع6",null,null,null,null,null,null,null,null,null,null,null,null,null,null,null,null,"أحمد على789 إسماعيل50"]
[null,null,"أحمد على790","وسام50",null,null,null,"1ع6",null,null,null,null,null,null,null,null,null,null,null,null,null,null,null,null,"أحمد على790 وسام50"]
[null,null,"أحمد على791","عبد الصمد50",null,null,null,"1ع6",null,null,null,null,null,null,null,null,null,null,null,null,null,null,null,null,"أحمد على791 عبد الصمد50"]
[null,null,"أحمد على792","انيس شرف الدين50",null,null,null,"1ع6",null,null,null,null,null,null,null,null,null,null,null,null,null,null,null,null,"أحمد على792 انيس شرف الدين50"]
[null,null,"أحمد على793","سيدي محمد ريان50",null,null,null,"1ع6",null,null,null,null,null,null,null,null,null,null,null,null,null,null,null,null,"أحمد على793 سيدي محمد ريان50"]
[null,null,"أحمد على794","بومدين50",null,null,null,"1ع6",null,null,null,null,null,null,null,null,null,null,null,null,null,null,null,null,"أحمد على794 بومدين50"]
[null,null,"أحمد على795","محمد50",null,null,null,"1ع6",null,null,null,null,null,null,null,null,null,null,null,null,null,null,null,null,"أحمد على795 محمد50"]
[null,null,"أحمد على796","فريال50",null,null,null,"1ع6",null,null,null,null,null,null,null,null,null,null,null,null,null,null,null,null,"أحمد على796 فريال50"]
[null,null,"أحمد على797","مصطفى50",null,null,null,"1ع6",null,null,null,null,null,null,null,null,null,null,null,null,null,null,null,null,"أحمد على797 مصطفى50"]
[null,null,"أحمد على798","حسام50",null,null,null,"1ع6",null,null,null,null,null,null,null,null,null,null,null,null,null,null,null,null,"أحمد على798 حسام50"]
[null,null,"أحمد على799","وسام50",null,null,null,"1ع6",null,null,null,null,null,null,null,null,null,null,null,null,null,null,null,null,"أحمد على799 وسام50"]
[null,null,"أحمد على800","أسامة50",null,null,null,"1ع6",null,null,null,null,null,null,null,null,null,null,null,null,null,null,null,null,"أحمد على800 أسامة50"]
[null,null,"أحمد على801","سهام51",null,null,null,"1ع6",null,null,null,null,null,null,null,null,null,null,null,null,null,null,null,null,"أحمد على801 سهام51"]
[null,null,"أحمد على802","أحمد51",null,null,null,"1ع6",null,null,null,null,null,null,null,null,null,null,null,null,null,null,null,null,"أحمد على802 أحمد51"]
[null,null,"أحمد على803","نور الهدى51",null,null,null,"1ع6",null,null,null,null,null,null,null,null,null,null,null,null,null,null,null,null,"أحمد على803 نور الهدى51"]
[null,null,"أحمد على804","أسماء51",null,null,null,"1ع6",null,null,null,null,null,null,null,null,null,null,null,null,null,null,null,null,"أحمد على804 أسماء51"]
[null,null,"أحمد على805","إسماعيل51",null,null,null,"1ع6",null,null,null,null,null,null,null,null,null,null,null,null,null,null,null,null,"أحمد على805 إسماعيل51"]
[null,null,"أحمد على806","وسام51",null,null,null,"1ع6",null,null,null,null,null,null,null,null,null,null,null,null,null,null,null,null,"أحمد على806 وسام51"]
[null,null,"أحمد على807","عبد الصمد51",null,null,null,"1ع6",null,null,null,null,null,null,null,null,null,null,null,null,null,null,null,null,"أحمد على807 عبد الصمد51"]
[null,null,"أحمد على808","انيس شرف الدين51",null,null,null,"1ع6",null,null,null,null,null,null,null,null,null,null,null,null,null,null,null,null,"أحمد على808 انيس شرف الدين51"]
[null,null,"أحمد على809","سيدي محمد ريان51",null,null,null,"1ع6",null,null,null,null,null,null,null,null,null,null,null,null,null,null,null,null,"أحمد على809 سيدي محمد ريان51"]
[null,null,"أحمد على810","بومدين51",null,null,null,"1ع6",null,null,null,null,null,null,null,null,null,null,null,null,null,null,null,null,"أحمد على810 بومدين51"]
[null,null,"أحمد على811","محمد51",null,null,null,"3أ ف2",null,null,null,null,null,null,null,null,null,null,null,null,null,null,null,null,"أحمد على811 محمد51"]
[null,null,"أحمد على812","فريال51",null,null,null,"3أ ف2",null,null,null,null,null,null,null,null,null,null,null,null,null,null,null,null,"أحمد على812 فريال51"]
[null,null,"أحمد على813","مصطفى51",null,null,null,"3أ ف2",null,null,null,null,null,null,null,null,null,null,null,null,null,null,null,null,"أحمد على813 مصطفى51"]
[null,null,"أحمد على814","حسام51",null,null,null,"3أ ف2",null,null,null,null,null,null,null,null,null,null,null,null,null,null,null,null,"أحمد على814 حسام51"]
[null,null,"أحمد على815","وسام51",null,null,null,"3أ ف2",null,null,null,null,null,null,null,null,null,null,null,null,null,null,null,null,"أحمد على815 وسام51"]
[null,null,"أحمد على816","أسامة51",null,null,null,"3أ ف2",null,null,null,null,null,null,null,null,null,null,null,null,null,null,null,null,"أحمد على816 أسامة51"]
[null,null,"أحمد على817","سهام52",null,null,null,"3أ ف2",null,null,null,null,null,null,null,null,null,null,null,null,null,null,null,null,"أحمد على817 سهام52"]
[null,null,"أحمد على818","أحمد52",null,null,null,"3أ ف2",null,null,null,null,null,null,null,null,null,null,null,null,null,null,null,null,"أحمد على818 أحمد52"]
[null,null,"أحمد على819","نور الهدى52",null,null,null,"3أ ف2",null,null,null,null,null,null,null,null,null,null,null,null,null,null,null,null,"أحمد على819 نور الهدى52"]
[null,null,"أحمد على820","أسماء52",null,null,null,"3أ ف2",null,null,null,null,null,null,null,null,null,null,null,null,null,null,null,null,"أحمد على820 أسماء52"]
[null,null,"أحمد على821","إسماعيل52",null,null,null,"3أ ف2",null,null,null,null,null,null,null,null,null,null,null,null,null,null,null,null,"أحمد على821 إسماعيل52"]
[null,null,"أحمد على822","وسام52",null,null,null,"3أ ف2",null,null,null,null,null,null,null,null,null,null,null,null,null,null,null,null,"أحمد على822 وسام52"]
[null,null,"أحمد على823","عبد الصمد52",null,null,null,"3أ ف2",null,null,null,null,null,null,null,null,null,null,null,null,null,null,null,null,"أحمد على823 عبد الصمد52"]
[null,null,"أحمد على824","انيس شرف الدين52",null,null,null,"3أ ف2",null,null,null,null,null,null,null,null,null,null,null,null,null,null,null,null,"أحمد على824 انيس شرف الدين52"]
[null,null,"أحمد على825","سيدي محمد ريان52",null,null,null,"3أ ف2",null,null,null,null,null,null,null,null,null,null,null,null,null,null,null,null,"أحمد على825 سيدي محمد ريان52"]
[null,null,"أحمد على826","بومدين52",null,null,null,"3أ ف2",null,null,null,null,null,null,null,null,null,null,null,null,null,null,null,null,"أحمد على826 بومدين52"]
[null,null,"أحمد على827","محمد52",null,null,null,"3أ ف2",null,null,null,null,null,null,null,null,null,null,null,null,null,null,null,null,"أحمد على827 محمد52"]
[null,null,"أحمد على828","فريال52",null,null,null,"3أ ف2",null,null,null,null,null,null,null,null,null,null,null,null,null,null,null,null,"أحمد على828 فريال52"]
[null,null,"أحمد على829","مصطفى52",null,null,null,"3أ ف2",null,null,null,null,null,null,null,null,null,null,null,null,null,null,null,null,"أحمد على829 مصطفى52"]
[null,null,"أحمد على830","حسام52",null,null,null,"3أ ف2",null,null,null,null,null,null,null,null,null,null,null,null,null,null,null,null,"أحمد على830 حسام52"]
[null,null,"أحمد على831","وسام52",null,null,null,"3أ ف2",null,null,null,null,null,null,null,null,null,null,null,null,null,null,null,null,"أحمد على831 وسام52"]
[null,null,"أحمد على832","أسامة52",null,null,null,"3أ ف2",null,null,null,null,null,null,null,null,null,null,null,null,null,null,null,null,"أحمد على832 أسامة52"]
[null,null,"أحمد على833","سهام53",null,null,null,"3أ ف2",null,null,null,null,null,null,null,null,null,null,null,null,null,null,null,null,"أحمد على833 سهام53"]
[null,null,"أحمد على834","أحمد53",null,null,null,"3أ ف2",null,null,null,null,null,null,null,null,null,null,null,null,null,null,null,null,{"$f":"C836 & \" \" &  D836","v":"أحمد على834 أحمد53"}]
[null,null,"أحمد على835","نور الهدى53",null,null,null,"3أ ف2",null,null,null,null,null,null,null,null,null,null,null,null,null,null,null,null,"أحمد على835 نور الهدى53"]
[null,null,"أحمد على836","أسماء53",null,null,null,"3أ ف2",null,null,null,null,null,null,null,null,null,null,null,null,null,null,null,null,"أحمد على836 أسماء53"]
[null,null,"أحمد على837","إسماعيل53",null,null,null,"3أ ف2",null,null,null,null,null,null,null,null,null,null,null,null,null,null,null,null,"أحمد على837 إسماعيل53"]
[null,null,"أحمد على838","وسام53",null,null,null,"3أ ف2",null,null,null,null,null,null,null,null,null,null,null,null,null,null,null,null,"أحمد على838 وسام53"]
[null,null,"أحمد على839","عبد الصمد53",null,null,null,"3أ ف2",null,null,null,null,null,null,null,null,null,null,null,null,null,null,null,null,"أحمد على839 عبد الصمد53"]
[null,null,"أحمد على840","انيس شرف الدين53",null,null,null,"3أ ف2",null,null,null,null,null,null,null,null,null,null,null,null,null,null,null,null,"أحمد على840 انيس شرف الدين53"]
[null,null,"أحمد على841","سيدي محمد ريان53",null,null,null,"3أ ف2",null,null,null,null,null,null,null,null,null,null,null,null,null,null,null,null,"أحمد على841 سيدي محمد ريان53"]
[null,null,"أحمد على842","بومدين53",null,null,null,"3أ ف2",null,null,null,null,null,null,null,null,null,null,null,null,null,null,null,null,"أحمد على842 بومدين53"]
[null,null,"أحمد على843","محمد53",null,null,null,"3أ ف2",null,null,null,null,null,null,null,null,null,null,null,null,null,null,null,null,"أحمد على843 محمد53"]
[null,null,"أحمد على844","فريال53",null,null,null,"3أ ف2",null,null,null,null,null,null,null,null,null,null,null,null,null,null,null,null,"أحمد على844 فريال53"]
[null,null,"أحمد على845","مصطفى53",null,null,null,"3أ ف2",null,null,null,null,null,null,null,null,null,null,null,null,null,null,null,null,"أحمد على845 مصطفى53"]
[null,null,"أحمد على846","حسام53",null,null,null,"3أ ف2",null,null,null,null,null,null,null,null,null,null,null,null,null,null,null,null,"أحمد على846 حسام53"]
[null,null,"أحمد على847","وسام53",null,null,null,"3أ ف2",null,null,null,null,null,null,null,null,null,null,null,null,null,null,null,null,"أحمد على847 وسام53"]
[null,null,"أحمد على848","أسامة53",null,null,null,"3أ ف2",null,null,null,null,null,null,null,null,null,null,null,null,null,null,null,null,"أحمد على848 أسامة53"]
[null,null,"أحمد على849","سهام54",null,null,null,"3أ ف2",null,null,null,null,null,null,null,null,null,null,null,null,null,null,null,null,"أحمد على849 سهام54"]
[null,null,"أحمد على850","أحمد54",null,null,null,"3أ ف2",null,null,null,null,null,null,null,null,null,null,null,null,null,null,null,null,"أحمد على850 أحمد54"]

{"sheet":"data2","index":1,"n_rows":2,"n_cols":3,"rows_kept":2,"cut":false,"hidden":false,"merged":[]}
[]
["رقم ","اللقب و الاســم","القسم"]

{"sheet":"Feuil3","index":2,"n_rows":0,"n_cols":0,"rows_kept":0,"cut":false,"hidden":false,"merged":[]}